{"text_format":"1","workbook":"xlsx","n_sheets":6,"sheets":["Př vč financ","BV 082023 ","KV 082023","Výdaje za oddíly","energie","Stav Bú,TV a úvěrů"],"not_rendered":{"charts":0,"images":0,"macros":0,"external_links":0,"defined_names":6,"comments":1,"pivot_tables":0},"unopened":[],"bounds":{"document_bytes":16777216,"sheet_cells":100000,"rows_first":2000,"rows_last":500,"rows_between":2000,"halvings":0,"cell_chars":16384,"cell_head_chars":4096},"cells_cut":0,"cells_raw":0,"read":"whole","date_system":"1900"}

{"sheet":"Př vč financ","index":0,"n_rows":142,"n_cols":15,"rows_kept":142,"cut":false,"hidden":false,"merged":[[132,0,132,4],[125,0,125,6],[123,0,123,6],[124,0,124,6],[141,0,141,5],[136,0,136,5],[138,0,138,5],[139,0,139,5],[134,0,134,4],[135,0,135,4],[140,0,140,5],[127,5,127,10],[13,0,13,5],[24,0,24,5],[26,0,26,5],[106,0,106,6],[93,0,93,6],[27,0,27,5],[28,0,28,6],[56,0,56,6],[70,0,70,6],[92,0,92,6],[85,0,85,6],[88,0,88,6],[89,0,89,6],[0,0,0,5],[4,7,4,11],[2,0,2,11],[11,0,11,5],[1,6,1,11],[1,0,1,5],[129,7,129,11],[108,3,108,5],[109,3,109,5],[95,3,95,5],[101,3,101,5],[103,3,103,5],[102,3,102,5],[99,3,99,5],[100,3,100,5],[107,3,107,5],[114,0,114,11],[115,7,115,11],[121,0,121,6],[110,0,110,6],[111,0,111,6],[112,0,112,6]]}
["00248266 Město Humpolec"]
["Horní náměstí 300 Humpolec"]
["Plnění rozpisu rozpočtu příjmů a financování k 31.08.2023 v tisících Kč"]
[]
["POL(1)","POL(2)","POL(4)","Popis","ODPA(4)","Popis","ORG",2023]
[null,null,null,null,null,null,null,"Schválený rozp.","Upravený rozp.","Skutečnost k 31.8.","Plnění v Kč k UR","Plnění v % k UR","Skutečnost k 31.8.2022","SK23/SK22 v %","predikce Cityfinance z 8.9.2023 "]
["1","11","1111","Příjem z daně z příjmů fyzických osob placené plátci",null,null,null,36100,36100,24979.787649999998,11120.21235,69.196087673130194,20645.070739999999,{"$f":"J7/M7*100","v":120.9963771235787},39350]
["1","11","1112","Příjem z daně z příjmů fyzických osob placené poplatníky",null,null,null,2200,2200,1446.87735,753.12265000000002,65.767152272727273,1459.92992,{"$f":"J8/M8*100","v":99.105945441545572},2880]
["1","11","1113","Příjem z daně z příjmů fyzických osob vybírané srážkou podle zvláštní sazby daně",null,null,null,7100,7100,5504.3208599999998,1595.67914,77.525645915492959,3927.0501899999999,140.16426054386639,8420]
["1","11","1121","Příjem z daně z příjmů právnických osob",null,null,null,48750,48750,41210.374150000003,7539.6258500000004,84.534100820512819,30036.404350000001,137.20142287936673,62630]
["1","11","1122","Příjem z daně z příjmů právnických osob v případech, kdy poplatníkem je obec",null,null,null,15000,17339.400000000001,17339.400000000001,0,100,14157.66,122.47362911667608]
["POL(2) 11 Daně z příjmů, zisku a kapitálových výnosů",null,null,null,null,null,null,109150,111489.4,90480.76,21008.639999999999,81.16,70226.11,128.84205034281408]
["1","12","1211","Příjem z daně z přidané hodnoty",null,null,null,117000,117000,75002.385330000005,41997.614670000003,64.104602846153853,70459.781140000006,106.44708813524993,117050]
["POL(2) 12 Daně, poplatky a jiná obdobná peněžitá plnění ze zboží a služeb v tuzemsku",null,null,null,null,null,null,117000,117000,75002.39,41997.61,64.099999999999994,70459.78,106.44709648539919]
["1","13",1334,"Příjem z odvodů za odnětí půdy ze zemědělského půdního fondu podle zákona na ochranu ZPF",null,null,null,null,null,null,null,null,44.8566]
["1","13","1335","Příjem z poplatku za odnětí pozemku podle lesního zákona",null,null,null,5,5,11.02173,-6.0217299999999998,220.43459999999999,2.4504000000000001,449.79309500489711]
["1","13","1341","Příjem z poplatku ze psů",null,null,null,250,250,274.53399999999999,-24.533999999999999,109.81359999999999,283.36700000000002,96.882840980071776]
["1","13","1343","Příjem z poplatku za užívání veřejného prostranství",null,null,null,150,150,46.66,103.34,31.106666666666666,81.177999999999997,57.478627214269871]
["1","13","1345","Příjem z poplatku za odpadové hospodářství a odkládání komunálního odpadu z nemovité věci",null,null,null,7500,7500,7759.9892399999999,-259.98924,103.4665232,7740.8689199999999,100.24700482849669]
["1","13","1353","Příjem za zkoušky z odborné způsobilosti od žadatelů o řidičské oprávnění",null,null,null,250,250,212,38,84.8,209.8,101.04861773117253]
["1","13","1359","Příjem z odvodů z vybraných činností a služeb jinde neuvedené",null,null,null,0,0,3,-3,0,33,9.0909090909090917]
["1","13","1361","Příjem ze správních poplatků",null,null,null,4700,4700,4118.6769999999997,581.32299999999998,87.6314255319149,3699.98,111.31619630376379]
["1","13","1381","Příjem z daně z hazardních her s výjimkou dílčí daně z technických her",null,null,null,1500,1500,1240.05206,259.94794000000002,82.670137333333329,1151.3742,107.7019148075404]
["1","13","1385","Příjem z dílčí daně z technických her",null,null,null,19000,19000,17173.35484,1826.64516,90.386078105263152,13835.41382,124.12606564159856]
["POL(2) 13 Daně a poplatky z vybraných činností a služeb",null,null,null,null,null,null,33355,33355,30839.279999999999,2515.7199999999998,92.46,27082.29,113.87249748821094]
["1","15","1511","Příjem z daně z nemovitých věcí",null,null,null,9900,9900,6847.3082000000004,3052.6918000000001,69.164729292929295,6808.2870800000001,100.57314151917342]
["POL(2) 15 Příjem z majetkových daní",null,null,null,null,null,null,9900,9900,6847.31,3052.69,69.16,6808.29,100.5731248228263]
["POL(1) 1 Daňové příjmy",null,null,null,null,null,null,269405,271744.40000000002,203169.74,68574.66,74.77,174576.47,116.37865057072123]
["z toho sdílené daně (POL 1111+1112+1113+1121+1211)",null,null,null,null,null,null,{"$f":"H7+H8+H9+H10+H13","v":211150},{"$f":"I7+I8+I9+I10+I13","v":211150},{"$f":"J7+J8+J9+J10+J13","v":148143.74534000002},{"$f":"K7+K8+K9+K10+K13","v":63006.254660000006},{"$f":"J29/I29*100","v":70.160428766279907},{"$f":"M7+M8+M9+M10+M13","v":126528.23634},117.08354563792068,{"$f":"O7+O8+O9+O10+O13","v":230330}]
["2","21","2111","Příjem z poskytování služeb, výrobků, prací, výkonů a práv","1039","Ostatní záležitosti lesního hospodářství",null,2,2,1,1,50,null,{"$error":"#DIV/0!"}]
["2","21","2111","Příjem z poskytování služeb, výrobků, prací, výkonů a práv","2310","Pitná voda",null,55000,55000,38745.970249999998,16254.02975,70.447218636363644,38034.115039999997,101.871622908148]
["2","21","2111","Příjem z poskytování služeb, výrobků, prací, výkonů a práv","3612","Bytové hospodářství",null,7900,7900,5971.9790899999998,1928.02091,75.594672025316456,4513.9289699999999,132.30113122493375]
["2","21","2111","Příjem z poskytování služeb, výrobků, prací, výkonů a práv","3613","Nebytové hospodářství",null,10,10,6.72,3.28,67.2,6.72,100]
["2","21","2111","Příjem z poskytování služeb, výrobků, prací, výkonů a práv","3725","Využívání a zneškodňování komunálních odpadů-Odměna za vytříděné složky odpadu","0372500010",3000,0,0,0,0,1437.4102800000001,0]
["2","21","2111","Příjem z poskytování služeb, výrobků, prací, výkonů a práv","3900","Ostatní činnosti související se službami pro obyvatelstvo",null,20,20,24.135000000000002,-4.1349999999999998,120.675,59.881999999999998,40.304265054607399]
["2","21","2111","Příjem z poskytování služeb, výrobků, prací, výkonů a práv","6171","Činnost místní správy",null,10,10,0.22,9.7799999999999994,2.2000000000000002,1.1890000000000001,18.502943650126156]
["2","21","2112","Příjem z prodeje zboží (již nakoupeného za účelem prodeje)","6171","Činnost místní správy",null,2,2,0.91500000000000004,1.085,45.75,12.565,7.282132908873856]
["2","21","2119","Ostatní příjmy z vlastní činnosti","6171","Činnost místní správy",null,120,120,1411.3924,-1291.3924,1176.1603333333333,360.78395,391.20154873851789]
["2","21","2122","Příjem z odvodů příspěvkových organizací","3111","Mateřské školy",null,509,509,247.608,261.392,48.645972495088408,258.28199999999998,95.86730782632938]
["2","21","2122","Příjem z odvodů příspěvkových organizací","3113","ZŠ Hálkova","0000000321",1040,1040,522.12714000000005,517.87285999999995,50.204532692307694,515.96762999999999,101.19377837714356]
["2","21","2122","Příjem z odvodů příspěvkových organizací","3113","ZŠ Hradská","0000000322",801,801,388.73322000000002,412.26677999999998,48.530988764044942,509.85185999999999,76.244346740247266]
["2","21","2122","Příjem z odvodů příspěvkových organizací","3231","Základní umělecké školy",null,82,82,61.92,20.079999999999998,75.512195121951223,41.28,150]
["2","21","2122","Příjem z odvodů příspěvkových organizací","3233","Střediska volného času",null,282,282,141.267,140.733,50.094680851063828,137.93600000000001,102.4148880640297]
["2","21","2122","Příjem z odvodů příspěvkových organizací","3319","Ostatní záležitosti kultury",null,714,714,357.13799999999998,356.86200000000002,50.019327731092432,357.13799999999998,100]
["2","21","2131","Příjem z pronájmu pozemků","1039","Ostatní záležitosti lesního hospodářství",null,7260,7260,0,7260,0,28329.771140000001,0]
["2","21","2131","Příjem z pronájmu pozemků","3639","Komunální služby a územní rozvoj jinde nezařazené",null,782,782,589.88914,192.11086,75.433393861892583,638.93263999999999,92.324151729046122]
["2","21","2132","Příjem z pronájmu ostatních nemovitých věcí  a jejich částí","2310","Pitná voda",null,0.121,0.121,0,0.121,0,0.121,0]
["2","21","2132","Příjem z pronájmu ostatních nemovitých věcí  a jejich částí","3612","Bytové hospodářství",null,14700,14700,9858.3101700000007,4841.6898300000003,67.06333448979592,9339.5575399999998,105.55435980535755]
["2","21","2132","Příjem z pronájmu ostatních nemovitých věcí  a jejich částí","3613","Nebytové hospodářství",null,6400,6400,5063.8896800000002,1336.11032,79.123276250000004,5221.8662999999997,96.974709597601162]
["2","21","2132","Příjem z pronájmu ostatních nemovitých věcí  a jejich částí","3639","Komunální služby a územní rozvoj jinde nezařazené",null,6,6,0,6,0,null,{"$f":"J50/M50*100","v":{"$error":"#DIV/0!"}}]
["2","21","2132","Příjem z pronájmu ostatních nemovitých věcí  a jejich částí","6221","Humanitární zahraniční pomoc přímá",null,50,50,50.4,-0.4,100.8,51,{"$f":"J51/M51*100","v":98.823529411764696}]
["2","21","2133","Příjem z pronájmu movitých věcí","3639","Komunální služby a územní rozvoj jinde nezařazené",null,175,175,0,175,0,1.1906399999999999,0]
["2","21","2139","Ostatní příjmy z pronájmu majetku","3632","Pohřebnictví",null,200,200,253.102,-53.101999999999997,126.551,204.23500000000001,123.92684897299679]
["2","21","2139","Ostatní příjmy z pronájmu majetku","3639","Komunální služby a územní rozvoj jinde nezařazené",null,100,100,86.575999999999993,13.423999999999999,86.575999999999993,null,{"$error":"#DIV/0!"}]
["2","21","2141","Příjem z úroků","6310","Obecné příjmy a výdaje z finančních operací",null,5010,5010,7088.6153400000003,-2078.6153399999998,141.48932814371258,2122.0645,334.04334976623005]
["2","21","2143","Kursové rozdíly v příjmech","2299","Ostatní záležitosti v dopravě",null,2,2,-0.12086,2.12086,-6.0430000000000001,-0.56503999999999999,21.389636131955257]
["POL(2) 21 Příjem z vlastní činnosti a odvody přebytků organizací s přímým vztahem",null,null,null,null,null,null,104177.12,101177.12,70871.81,30305.32,70.05,{"$f":"SUM(M30:M56)","v":92155.223449999976},76.904821394581532]
["2","22","2212","Příjem sankčních plateb přijatých od jiných subjektů","2169","Ostatní správa v průmyslu,stavebnictví, obchodu a službách",null,10,10,22,-12,220,null,{"$error":"#DIV/0!"}]
["2","22","2212","Příjem sankčních plateb přijatých od jiných subjektů","2212","Silnice",null,126,126,144,-18,114.28571428571429,null,{"$error":"#DIV/0!"}]
["2","22","2212","Příjem sankčních plateb přijatých od jiných subjektů","2299","Ostatní záležitosti v dopravě",null,400,400,602.10933,-202.10933,150.5273325,1449.1831500000001,41.548187335741517]
["2","22","2212","Příjem sankčních plateb přijatých od jiných subjektů","3612","Bytové hospodářství",null,20,20,58.299500000000002,-38.299500000000002,291.4975,null,{"$error":"#DIV/0!"}]
["2","22","2212","Příjem sankčních plateb přijatých od jiných subjektů","3769","Ostatní správa v ochraně životního prostředí",null,50,50,21.9,28.1,43.8,null,{"$error":"#DIV/0!"}]
["2","22","2212","Příjem sankčních plateb přijatých od jiných subjektů","5311","Bezpečnost a veřejný pořádek",null,70,70,58.256700000000002,11.7433,83.223857142857142,null,{"$error":"#DIV/0!"}]
["2","22","2229","Ostatní přijaté vratky transferů a podobné příjmy","3111","Mateřská škola","0000000301",16.911999999999999,16.911999999999999,16.911999999999999,0,100,null,{"$error":"#DIV/0!"}]
["2","22","2229","Ostatní přijaté vratky transferů a podobné příjmy","3113","ZŠ Hálkova","0000000321",348,348,348,0,100,null,{"$error":"#DIV/0!"}]
["2","22","2229","Ostatní přijaté vratky transferů a podobné příjmy","3113","ZŠ Hradská","0000000322",180.99754999999999,180.99754999999999,180.99754999999999,0,100,null,{"$error":"#DIV/0!"}]
["2","22","2229","Ostatní přijaté vratky transferů a podobné příjmy","3319","Ostatní záležitosti kultury",null,235,0,0,0,0,null,{"$error":"#DIV/0!"}]
["2","22","2229","Ostatní přijaté vratky transferů a podobné příjmy","3319","Ostatní záležitosti kultury-MěKIS","0000000376",0,235,235,0,100,null,{"$error":"#DIV/0!"}]
["2","22","2229","Ostatní přijaté vratky transferů a podobné příjmy","6402","Finanční vypořádání",null,476.43400000000003,476.43400000000003,486.084,-9.65,102.02546417761957,574.41860999999994,84.6219101431968]
["2","22","2229","Ostatní přijaté vratky transferů a podobné příjmy","6402","Finanční vypořádání-SVČ-neinv.průtok.dotace Míčkování anebo zatočíme s rýmou a kašlem","0323300001",5.843,5.843,5.843,0,100,null,{"$error":"#DIV/0!"}]
["POL(2) 22 Přijaté sankční platby a vratky transferů",null,null,null,null,null,null,1939.18,1939.18,2179.4,-240.22,112.39,2722.43,80.053481632218279]
["2","23","2310","Příjem z prodeje krátkodobého a drobného dlouhodobého neinvestičního majetku","6171","Činnost místní správy",null,1,";",16.23,-15.23,1623,null,{"$f":"J72/M72*100","v":{"$error":"#DIV/0!"}}]
["2","23","2322","Příjem z pojistných náhrad","6171","Činnost místní správy",null,100,100,520.98099999999999,-420.98099999999999,520.98099999999999,null,{"$error":"#DIV/0!"}]
["2","23","2324","Přijaté neinvestiční příspěvky a náhrady","1036","Správa v lesním hospodářství-Projekt-Lesní hosp.osnovy Humpolecko","0103600004",0,732.05,732.05,0,100,null,{"$error":"#DIV/0!"}]
["2","23","2324","Přijaté neinvestiční příspěvky a náhrady","1039","Ostatní záležitosti lesního hospodářství",null,0,0,23.282,-23.282,0,null,{"$error":"#DIV/0!"}]
["2","23","2324","Přijaté neinvestiční příspěvky a náhrady","2169","Ostatní správa v průmyslu,stavebnictví, obchodu a službách",null,2,2,9,-7,450,null,{"$error":"#DIV/0!"}]
["2","23","2324","Přijaté neinvestiční příspěvky a náhrady","2299","Ostatní záležitosti v dopravě",null,10,10,20.503799999999998,-10.5038,205.03800000000001,null,{"$error":"#DIV/0!"}]
["2","23","2324","Přijaté neinvestiční příspěvky a náhrady","3632","Pohřebnictví",null,50,50,84.885000000000005,-34.884999999999998,169.77,null,{"$error":"#DIV/0!"}]
["2","23","2324","Přijaté neinvestiční příspěvky a náhrady","3725","Využívání a zneškodňování komunálních odpadů-Odměna za vytříděné složky odpadu","0372500010",0,3000,1544.88815,1455.11185,51.496271666666665,1437.4102800000001,107.47718807187047]
["2","23","2324","Přijaté neinvestiční příspěvky a náhrady","5311","Bezpečnost a veřejný pořádek",null,5,5,10.966609999999999,-5.9666100000000002,219.3322,null,{"$error":"#DIV/0!"}]
["2","23","2324","Přijaté neinvestiční příspěvky a náhrady","6171","Činnost místní správy",null,5,5,0,5,0,null,{"$error":"#DIV/0!"}]
["2","23","2329","Ostatní nedaňové příjmy jinde nezařazené","2212","Silnice",null,0,0,77.941419999999994,-77.941419999999994,0,null,{"$error":"#DIV/0!"}]
["2","23","2329","Ostatní nedaňové příjmy jinde nezařazené","3632","Pohřebnictví",null,0,0,12.827999999999999,-12.827999999999999,0]
["2","23","2329","Ostatní nedaňové příjmy jinde nezařazené","6171","Činnost místní správy",null,10,10,53.370959999999997,-43.370959999999997,533.70960000000002,null,{"$error":"#DIV/0!"}]
["2","23","2329","Ostatní nedaňové příjmy jinde nezařazené","6409","Ostatní činnosti jinde nezařazené",null,0,0,45.7669,-45.7669,0,null,{"$error":"#DIV/0!"}]
["POL(2) 23 Příjem z prodeje neinvestičního majetku, ostatní nedaňové příjmy",null,null,null,null,null,null,183,3915.05,3152.7,762.35,80.53,298.32,1056.8181818181818]
["2","24","2412","Splátky půjčených prostředků od podnikatelských nefinančních subjektů - právn.osob-TS-bezúročná zápůjčka 2023",null,null,"0363900041",15000,15000,0,15000,0,null,{"$error":"#DIV/0!"}]
["2","24","2460","Splátky půjčených prostředků od obyvatelstva-SF",null,null,null,10,10,0,10,0,null,{"$error":"#DIV/0!"}]
["POL(2) 24 Přijaté splátky půjčených prostředků",null,null,null,null,null,null,15010,15010,0,15010,0,null,{"$error":"#DIV/0!"}]
["POL(1) 2 Nedaňové příjmy",null,null,null,null,null,null,121309.3,122041.35,76203.91,45837.45,62.44,95175.98,80.066325558192318]
["3","31","3111","Příjem z prodeje pozemků","3639","Komunální služby a územní rozvoj jinde nezařazené",null,300,300,1311.7270000000001,-1011.727,437.24233333333331,null,{"$error":"#DIV/0!"}]
[3,31,"3121","Přijaté dary na pořízení dlouhodobého majetku","2212","Silnice",null,0,0,162.48400000000001,-162.48400000000001,0,null,{"$error":"#DIV/0!"}]
["POL(2) 31 Příjem z prodeje dlouhodobého majetku a ostatní kapitálové příjmy",null,null,null,null,null,null,300,300,1474.21,-1174.21,491.4,554.42999999999995,265.89650632180803]
["POL(1) 3 Kapitálové příjmy",null,null,null,null,null,null,300,300,1474.21,-1174.21,491.4,554.42999999999995,265.89650632180803]
["4","41","4111","Neinvestiční přijaté transfery z všeobecné pokladní správy státního rozpočtu-Volba prezidenta ČR",null,null,"0000098008",594,552.81895999999995,552.81895999999995,0,100,null,{"$error":"#DIV/0!"}]
["4","41","4111","Neinvestiční přijaté transfery z všeobecné pokladní správy státního rozpočtu-Volby-zastupit.obce (Obec Hojanovice)",null,null,"0000098074",0,8.4130000000000003,8.4130000000000003,0,100,null,{"$error":"#DIV/0!"}]
["4","41","4112","Neinvestiční přijaté transfery ze SR v rámci souhrnného dotačního vztahu",null,null,null,22497.9,22497.9,14998.4,7499.5,66.665777694807062,14076.8,106.54694248692884]
["4","41","4116","Ostatní neinvestiční přijaté transfery ze státního rozpočtu-dotace na výkon sociální práce (vyjma SPOD)",null,null,"0000013015",0,496.57400000000001,496.57400000000001,0,100,463.14400000000001,107.21805745081443]
["4","41","4116","Ostatní neinvestiční přijaté transfery ze státního rozpočtu-dotace sociálně-právní ochrana dětí",null,null,"0000013024",0,2560.4,2560.4,0,100,2305.1,111.07544141252008]
["4","41","4116","Ostatní neinvestiční přijaté transfery ze státního rozpočtu-MŠMT Šablony OP JAK-podpora ZŠ Hálkova-průtok.neinv.dotace",null,null,"0000321002",0,0,4102.8119999999999,-4102.8119999999999,0,null,{"$error":"#DIV/0!"}]
["4","41","4116","Ostatní neinvestiční přijaté transfery ze státního rozpočtu-MZE-Oprava a odbahnění rybníků Velký (p.č.62) a Malý (p.č.61)v k.ú. Petrovice u HU",null,null,"0234100002",0,0,77,-77,0,null,{"$error":"#DIV/0!"}]
["4","41","4116","Ostatní neinvestiční přijaté transfery ze státního rozpočtu-MZE-Oprava a odbahnění rybníka Kamšovák (p.č. 524/1)v k.ú.Petrovice u HU",null,null,"0234100003",0,17,17,0,100,null,{"$error":"#DIV/0!"}]
["4","41","4116","Ostatní neinvestiční přijaté transfery ze státního rozpočtu-OÚE-průtok neinv.dotace MŠMT \"Šablony OP JAK\" pro MŠ HU",null,null,"0311100007",0,0,1323.2739999999999,-1323.2739999999999,0,null,{"$error":"#DIV/0!"}]
["4","41","4116","Ostatní neinvestiční přijaté transfery ze státního rozpočtu-Průtok-MěKIS neinv.dotace od MKČR-Příroda v knihovně",null,null,"0331900026",0,15,15,0,100,null,{"$error":"#DIV/0!"}]
["4","41","4121","Neinvestiční přijaté transfery od obcí - za školní obědy 1-6/2023 a výkon přenesené působnosti za rok 2022",null,null,null,0,313.678,313.678,0,100,null,{"$error":"#DIV/0!"}]
["4","41","4122","Neinvestiční přijaté transfery od krajů-OÚE-Humpolecké vánoční kluziště",null,null,"0342900024",0,60,60,0,100,null,{"$error":"#DIV/0!"}]
["POL(2) 41 Neinvestiční přijaté transfery",null,null,null,null,null,null,23091.9,26521.78,24525.360000000001,1996.42,92.47,18974.2,129.2563586343561]
["4","42","4216","Ostatní investiční přijaté transfery ze státního rozpočtu-MZE-Oprava a odbahnění rybníků Velký (p.č.62) a Malý (p.č.61)v k.ú. Petrovice u HU",null,null,"0234100002",0,0,1923,-1923,0,null,{"$error":"#DIV/0!"}]
["4","42","4216","Ostatní investiční přijaté transfery ze státního rozpočtu-MZE-Oprava a odbahnění rybníka Kamšovák (p.č. 524/1)v k.ú.Petrovice u HU",null,null,"0234100003",0,1125.038,1678,-552.96199999999999,149.15051758251721,null,{"$error":"#DIV/0!"}]
["4","42","4222","Investiční přijaté transfery od krajů-OÚE-ICT 2022-Napojení LPR kamer PČR na optickou síť a trasování směr Želiv",null,null,"0617100027",209.20599999999999,219.20599999999999,219.20599999999999,0,100,null,{"$error":"#DIV/0!"}]
["POL(2) 42 Investiční přijaté transfery",null,null,null,null,null,null,209.21,1344.25,3820.21,-2475.96,284.19,1137.8,335.75408683424155]
["POL(1) 4 Přijaté transfery",null,null,null,null,null,null,23301.11,27866.03,28345.57,-479.54,101.72,20112,140.9385938743039]
["Celkem PŘÍJMY",null,null,null,null,null,null,414315.41,421951.78,309193.43,112758.36,73.28,290418.88,106.4646451360187]
[]
["Podmínka: AND POL=8*"]
["POL(1)","POL(2)","POL(4)","Popis","ODPA(4)","Popis","ORG",2023]
[null,null,null,null,null,null,null,"Schválený rozp.","Upravený rozp.","Skutečnost k 31. 08.","Plnění v Kč k UR","Plnění v % k UR","Skutečnost k 31.8.2022","SK23/SK22 v %"]
["8","81","8115","Změny stavů krátkodobých prostředků na bankovních účtech kromě OSFA",null,null,null,209873.71685,206534.97685000001,213352.78104999999,-6817.8041999999996,103.30104096845135,86139.484020000004,{"$f":"J118/M118*100","v":247.68291042985976}]
["8","81","8117","Aktivní krátkodobé operace řízení likvidity - příjmy",null,"ČSOB Term.týdenní vklad",null,167000,167000,0,167000,0,0,{"$error":"#DIV/0!"}]
["8","81","8118","Aktivní krátkodobé operace řízení likvidity - výdaje",null,"ČSOB Term.týdenní vklad",null,-167000,-167000,-167000,0,100,-159500,104.70219435736676]
["8","81","8124","Uhrazené splátky dlouhodobých přijatých půjčených prostř.",null,null,null,-33831.227359999997,-33831.227359999997,-32690.7562,-1140.4711600000001,96.628939447380432,-3140.4711600000001,1040.9506897047895]
["POL(2) 81 Financování z tuzemska",null,null,null,null,null,null,176042.49,172703.75,13662.02,159041.73000000001,7.91,-76500.990000000005,-17.858618561668287]
["8","89","8901","Operace z peněžních účtů organizace nemající charakter příjmů/výdajů","DPH",null,null,0,0,-800.13743999999997,800.13743999999997,0,-1412.1176399999999,56.662236724130153]
["POL(2) 89 Opravné položky k peněžním operacím",null,null,null,null,null,null,0,0,-800.14,800.14,0,-1412.12,56.662323315298991]
["POL(1) 8 Financování",null,null,null,null,null,null,176042.49,172703.75,12861.88,159841.87,7.45,-77913.11,-16.507979209147212]
["Celkem PŘÍJMY + FINANCOVÁNÍ",null,null,null,null,null,null,{"$f":"H125+H113","v":590357.89999999991},{"$f":"I125+I113","v":594655.53},322055.31,272600.23,{"$f":"J126/I126*100","v":54.15829732551213},{"$f":"M125+M113","v":212505.77000000002},151.55132493578878]
[]
[null,null,null,null,null,"alikvotní podíl 66,7 %"]
[]
[null,null,null,null,null,null,null,2023]
[null,null,null,null,null,null,null,"Schválený rozp.","Upravený rozp.","Skutečnost k 31. 08.","Plnění v Kč k UR","Plnění v % k UR","Skutečnost k 31.8.2022"]
["PŘÍJMY",null,null,null,null,null,null,{"$f":"H113","v":414315.41},{"$f":"I113","v":421951.78},309193.43,112758.36,{"$f":"J132/I132*100","v":73.276958329219511},290418.88]
["Běžné výdaje ",null,null,null,null,null,null,363339.91,361595.54,209531.04,152064.67000000001,57.95,172277.43]
["z toho:",null,5171,"opravy a udržování",null,null,null,41106,36720,10726.17,25993.84,29.21,9015.82]
["Kapitálové výdaje",null,null,null,null,null,null,227018,233060,112524.41,120535.64,48.28,40228.339999999997]
["Celkem výdaje",null,null,null,null,null,null,{"$f":"SUM(H135,H133)","v":590357.90999999992},{"$f":"SUM(I135,I133)","v":594655.54},322055.45,272600.31,{"$f":"J136/I136*100","v":54.158319957802789},212505.77]
["Rozpočtový výsledek hospodaření: (- schodek)",null,null,null,null,null,null,{"$f":"H132-H136","v":-176042.49999999994},{"$f":"I132-I136","v":-172703.76},{"$f":"J132-J136","v":-12862.020000000019},{"$f":"K132-K136","v":-159841.95000000001},{"$f":"J137/I137*100","v":7.4474464250228358},{"$f":"M132-M136","v":77913.110000000015}]
["snížení schodku o úroky na term.vkladu (v okamžiku převodu úroků z TV na běžný účet) na 10 979 tis. Kč",null,null,null,null,null,null,null,null,1882.7449999999999]
["Běžné příjmy (třída 1 + 2 + tř.4 neinvestiční transfery)",null,null,null,null,null,null,{"$f":"H28+H90+H107","v":413806.2},{"$f":"I28+I90+I107","v":420307.53},{"$f":"J28+J90+J107","v":303899.01},{"$f":"K28+K90+K107","v":116408.53},{"$f":"J139/I139*100","v":72.303965146662961},{"$f":"M28+M90+M107","v":288726.65000000002}]
["Běžné výdaje",null,null,null,null,null,null,{"$f":"H133","v":363339.91},{"$f":"I133","v":361595.54},209531.04,152064.67000000001,{"$f":"J140/I140*100","v":57.946245686548018},{"$f":"M133","v":172277.43}]
["Provozní saldo (běžné příjmy mínus běžné výdaje)",null,null,null,null,null,null,{"$f":"H139-H140","v":50466.290000000037},{"$f":"I139-I140","v":58711.990000000049},94367.97,-35656.140000000014,null,116449.22000000003]
["Ukazatel provozního salda, tj. % podíl provozního salda na běžných příjmech",null,null,null,null,null,null,{"$f":"H141/H139*100","v":12.195634091514346},{"$f":"I141/I139*100","v":13.968817070681567},{"$f":"J141/J139*100","v":31.052411128288966},null,null,{"$f":"M141/M139*100","v":40.331995678265251}]

{"sheet":"BV 082023 ","index":1,"n_rows":580,"n_cols":13,"rows_kept":580,"cut":false,"hidden":false,"merged":[[15,0,15,7],[393,0,393,7],[441,0,441,7],[447,0,447,7],[477,0,477,7],[0,7,0,12],[0,0,0,6],[4,8,4,12],[2,0,2,12],[1,0,1,6],[1,7,1,12],[19,0,19,7],[45,0,45,7],[66,0,66,7],[82,0,82,7],[86,0,86,7],[578,0,578,7],[579,0,579,7],[135,0,135,7],[202,0,202,7],[347,0,347,7],[398,0,398,7],[433,0,433,7],[553,0,553,7],[563,0,563,7],[570,0,570,7]]}
["00248266 Město Humpolec"]
["Horní náměstí 300 Humpolec"]
["Plnění rozpisu rozpočtu běžných výdajů k 31.08.2023 v tisících Kč"]
[]
["ODPA(2)","Popis","ODPA(4)","Popis","POL(4)","Popis","ORG","Popis",2023]
[null,null,null,null,null,null,null,null,"Schválený rozp.","Upravený rozp.","Skutečnost k 31. 08.","Plnění v Kč k UR","Plnění v % k UR"]
["10","Zemědělství, lesní hospodářství a rybářství","1014","Ozdravování hospodářských zvířat, polních a speciálních plodin a zvláštní veterinární péče","5137","Drobný dlouhodobý hmotný majetek","0101400001","Péče o opuštěná zvířata",10,10,5.3150000000000004,4.6849999999999996,53.15]
["10","Zemědělství, lesní hospodářství a rybářství","1014","Ozdravování hospodářských zvířat, polních a speciálních plodin a zvláštní veterinární péče","5169","Nákup ostatních služeb","0101400001","Péče o opuštěná zvířata",400,400,237.81100000000001,162.18899999999999,59.452750000000002]
["10","Zemědělství, lesní hospodářství a rybářství","1014","Ozdravování hospodářských zvířat, polních a speciálních plodin a zvláštní veterinární péče","5169","Nákup ostatních služeb","0101400002","Deratizace",198,198,7.8649999999999998E-2,197.92134999999999,3.9722222222222221E-2]
["10","Zemědělství, lesní hospodářství a rybářství","1014","Ozdravování hospodářských zvířat, polních a speciálních plodin a zvláštní veterinární péče","5169","Nákup ostatních služeb","0101400003","Kastrace koček",20,20,1.7,18.3,8.5]
["10","Zemědělství, lesní hospodářství a rybářství","1014","Ozdravování hospodářských zvířat, polních a speciálních plodin a zvláštní veterinární péče","5492","Dary fyzickým osobám","0101400003","Kastrace koček",50,50,2,48,4]
["10","Zemědělství, lesní hospodářství a rybářství","1039","Ostatní záležitosti lesního hospodářství","5169","Nákup ostatních služeb","0103900001","Lesní hosp.-odborný lesní hospodář",270,290,190.61099999999999,99.388999999999996,65.727931034482765]
["10","Zemědělství, lesní hospodářství a rybářství","1039","Ostatní záležitosti lesního hospodářství","5169","Nákup ostatních služeb","0103900004","Ostatní lesnické práce",20,0,0,0,0]
["10","Zemědělství, lesní hospodářství a rybářství","1039","Ostatní záležitosti lesního hospodářství","5171","Opravy a udržování","0103900005","Opravy lesních cest",600,600,23.050999999999998,576.94899999999996,3.8418333333333332]
["10","Zemědělství, lesní hospodářství a rybářství","1039","Ostatní záležitosti lesního hospodářství","5179","Ostatní nákupy jinde nezařazené","0103900006","Sdružení vlastníků obecních a soukromých lesů ČR-členský příspěvek",12,12,6.12,5.88,51]
["ODPA(2) 10 Zemědělství, lesní hospodářství a rybářství",null,null,null,null,null,null,null,1580,1580,466.69,1113.32,29.54]
["21","Průmysl, stavebnictví, obchod a služby","2141","Vnitřní obchod","5137","Drobný dlouhodobý hmotný majetek","0214100003","Trhy - DDHM",15,15,0,15,0]
["21","Průmysl, stavebnictví, obchod a služby","2141","Vnitřní obchod","5139","Nákup materiálu jinde nezařazený","0214100001","Trhy-materiál",20,20,0,20,0]
["21","Průmysl, stavebnictví, obchod a služby","2141","Vnitřní obchod","5169","Nákup ostatních služeb","0214100002","Trhy-služby",140,200,25.725999999999999,174.274,12.863]
["ODPA(2) 21 Průmysl, stavebnictví, obchod a služby",null,null,null,null,null,null,null,175,235,25.73,209.27,10.95]
["22","Doprava","2212","Silnice","5166","Konzultační, poradenské a právní služby","0221200001","Studie komunikací",500,530,15.837,514.16300000000001,2.9881132075471695]
["22","Doprava","2212","Silnice","5166","Konzultační, poradenské a právní služby","0221200157","Dopravní model města",300,300,0,300,0]
["22","Doprava","2212","Silnice","5166","Konzultační, poradenské a právní služby","0221200158","Křižovatka Billa-studie",400,400,0,400,0]
["22","Doprava","2212","Silnice","5169","Nákup ostatních služeb","0221200002","Čištění komunikací",3100,3100,2008.635,1091.365,64.794677419354841]
["22","Doprava","2212","Silnice","5169","Nákup ostatních služeb","0221200003","Čištění MK- vybrané akce",120,120,1.8620000000000001,118.13800000000001,1.5516666666666667]
["22","Doprava","2212","Silnice","5169","Nákup ostatních služeb","0221200004","Čištění MK- psí exkrementy",700,700,208.95699999999999,491.04300000000001,29.850999999999999]
["22","Doprava","2212","Silnice","5169","Nákup ostatních služeb","0221200005","Zimní údržba komunikací",2800,2800,1470.7271499999999,1329.2728500000001,52.525969642857149]
["22","Doprava","2212","Silnice","5169","Nákup ostatních služeb","0221200009","Opravy MK město",0,50,0,50,0]
["22","Doprava","2212","Silnice","5171","Opravy a udržování","0221200006","Dopravní značení-zrcadla",90,90,29.001000000000001,60.999000000000002,32.223333333333329]
["22","Doprava","2212","Silnice","5171","Opravy a udržování","0221200008","Údržba kanalizačních vpustí",400,400,179.55799999999999,220.44200000000001,44.889499999999998]
["22","Doprava","2212","Silnice","5171","Opravy a udržování","0221200009","Opravy MK město",2000,1850,306.89699999999999,1543.1030000000001,16.589027027027026]
["22","Doprava","2212","Silnice","5171","Opravy a udržování","0221200010","Opravy MK-místní části",2000,1970,401.70434999999998,1568.29565,20.391083756345179]
["22","Doprava","2212","Silnice","5171","Opravy a udržování","0221200021","Dopravní značení - město",300,400,277.29599999999999,122.70399999999999,69.323999999999998]
["22","Doprava","2212","Silnice","5171","Opravy a udržování","0221200022","Údržba přechodů",300,300,0,300,0]
["22","Doprava","2212","Silnice","5171","Opravy a udržování","0221200062","Dopravní značení MČ",130,130,70.709000000000003,59.290999999999997,54.391538461538467]
["22","Doprava","2212","Silnice","5171","Opravy a udržování","0221200072","Opravy MK-metoda infra",700,700,0,700,0]
["22","Doprava","2212","Silnice","5171","Opravy a udržování","0221200140","Označení ulic-nové cedule",180,180,0,180,0]
["22","Doprava","2212","Silnice","5171","Opravy a udržování","0221200149","Radary měření rychlosti-opravy",100,100,0,100,0]
["22","Doprava","2219","Ostatní záležitosti pozemních komunikací","5166","Konzultační, poradenské a právní služby","0221900001","Studie a projekty chodníků",250,250,29.712,220.28800000000001,11.8848]
["22","Doprava","2219","Ostatní záležitosti pozemních komunikací","5169","Nákup ostatních služeb","0221900007","Zimní údržba chodníků",1200,1200,522.44600000000003,677.55399999999997,43.537166666666664]
["22","Doprava","2219","Ostatní záležitosti pozemních komunikací","5169","Nákup ostatních služeb","0221900074","Mlžící rám-město-zařízení pro osvěž.vzduchu-inst.",5,5,3.4660000000000002,1.534,69.319999999999993]
["22","Doprava","2219","Ostatní záležitosti pozemních komunikací","5171","Opravy a udržování","0221900002","Opravy chodníků",450,450,172.72200000000001,277.27800000000002,38.382666666666665]
["22","Doprava","2221","Provoz veřejné silniční dopravy","5171","Opravy a udržování","0222100001","Opravy autobusových čekáren",100,100,5.7460000000000004,94.254000000000005,5.7460000000000004]
["22","Doprava","2229","Ostatní záležitosti v silniční dopravě","5169","Nákup ostatních služeb","0222900001","Likvidace autovraků",20,20,0,20,0]
["22","Doprava","2292","Dopravní obslužnost veřejnými službami-linková","5213","Neinvestiční transfery nefinančním podnikatelům-právnickým osobám","0229200002","Dopravní obslužnost",80,80,25.338920000000002,54.661079999999998,31.673649999999999]
["ODPA(2) 22 Doprava",null,null,null,null,null,null,null,16225,16225,5730.64,10494.37,35.32]
["23","Vodní hospodářství","2310","Pitná voda","5151","Studená voda včetně stočného a úplaty za odvod deštových vod","0231000001","Voda - nákup pitné vody",8000,8000,4472.0085399999998,3527.9914600000002,55.900106749999999]
["23","Vodní hospodářství","2310","Pitná voda","5164","Nájemné","0231000001","Voda - nákup pitné vody",4,4,0,4,0]
["23","Vodní hospodářství","2310","Pitná voda","5166","Konzultační, poradenské a právní služby","0231000002","Voda - nové studie",100,100,0,100,0]
["23","Vodní hospodářství","2310","Pitná voda","5169","Nákup ostatních služeb","0231000010","Vodovod - provozovatelská smlouva",14200,14200,7223.8784800000003,6976.1215199999997,50.872383661971831]
["23","Vodní hospodářství","2310","Pitná voda","5169","Nákup ostatních služeb","0231000057","Oprava vodovodu ul.5.května (PD)",160,160,0,160,0]
["23","Vodní hospodářství","2310","Pitná voda","5169","Nákup ostatních služeb","0231000058","Oprava vodovodu ul.Hradská (PD)",130,130,0,130,0]
["23","Vodní hospodářství","2310","Pitná voda","5169","Nákup ostatních služeb","0231000059","Oprava vodovodu ul.Vosmíkova (PD)",120,120,0,120,0]
["23","Vodní hospodářství","2310","Pitná voda","5171","Opravy a udržování","0231000011","Vodovod - běžné opravy",2000,2000,134.14345,1865.85655,6.7071725000000004]
["23","Vodní hospodářství","2321","Odvádění a čištění odpadních vod a nakládání s kaly","5166","Konzultační, poradenské a právní služby","0232100001","Kanalizace-studie (ČOV Humpolec,...)",250,360,0,360,0]
["23","Vodní hospodářství","2321","Odvádění a čištění odpadních vod a nakládání s kaly","5166","Konzultační, poradenské a právní služby","0232100042","Čištění Světlice-Plačkov (studie proveditelnosti)",500,500,0,500,0]
["23","Vodní hospodářství","2321","Odvádění a čištění odpadních vod a nakládání s kaly","5166","Konzultační, poradenské a právní služby","0232100057","Řešení likvidace a odvádění dešťových vod ul. Pelhřimovská (STUDIE)",0,100,0,100,0]
["23","Vodní hospodářství","2321","Odvádění a čištění odpadních vod a nakládání s kaly","5169","Nákup ostatních služeb","0232100004","Provoz ČOV v LTRN",300,300,163.3192,136.6808,54.439733333333336]
["23","Vodní hospodářství","2321","Odvádění a čištění odpadních vod a nakládání s kaly","5169","Nákup ostatních služeb","0232100007","Kanalizace - provozovatelská smlouva",17100,17100,9355.1445299999996,7744.8554700000004,54.708447543859648]
["23","Vodní hospodářství","2321","Odvádění a čištění odpadních vod a nakládání s kaly","5169","Nákup ostatních služeb","0232100049","Oprava kanalizace-5.května (PD)",120,120,0,120,0]
["23","Vodní hospodářství","2321","Odvádění a čištění odpadních vod a nakládání s kaly","5169","Nákup ostatních služeb","0232100050","Oprava kanalizace-Hradská (PD)",200,200,0,200,0]
["23","Vodní hospodářství","2321","Odvádění a čištění odpadních vod a nakládání s kaly","5169","Nákup ostatních služeb","0232100051","Oprava kanalizace-Vosmíkova (PD)",160,160,0,160,0]
["23","Vodní hospodářství","2321","Odvádění a čištění odpadních vod a nakládání s kaly","5171","Opravy a udržování","0232100008","Kanalizace - běžné opravy",2000,1960,759.73036999999999,1200.26963,38.761753571428571]
["23","Vodní hospodářství","2341","Vodní díla v zemědělské krajině","5169","Nákup ostatních služeb","0234100001","Oprava návesních rybníků Petrovice",200,200,146.59,53.41,73.295000000000002]
["23","Vodní hospodářství","2341","Vodní díla v zemědělské krajině","5171","Opravy a udržování","0234100002","OÚE-Oprava a odbahnění rybníků Velký (p.č.62) a Malý (p.č.61)v k.ú. Petrovice u HU",3440,880,405.66217999999998,474.33782000000002,46.097974999999998]
["23","Vodní hospodářství","2341","Vodní díla v zemědělské krajině","5171","Opravy a udržování","0234100003","OÚE-Oprava a odbahnění rybníka Kamšovák (p.č. 524/1)v k.ú.Petrovice u HU",3060,850,632.48900000000003,217.511,74.410470588235299]
["ODPA(2) 23 Vodní hospodářství",null,null,null,null,null,null,null,52044,47444,23292.959999999999,24151.040000000001,49.1]
["31","Vzdělávání a školské služby","3111","Mateřské školy","5137","Drobný dlouhodobý hmotný majetek","0311100006","Vybavení školní zahrady MŠ Podhrad",0,352,345.22987000000001,6.77013,98.07666761363636]
["31","Vzdělávání a školské služby","3111","Mateřské školy","5331","Neinvestiční příspěvky zřízeným příspěvkovým organizacím","0000000301","Mateřská škola",6090,7839,4666,3173,59.522898328868479]
["31","Vzdělávání a školské služby","3111","Mateřské školy","5331","Neinvestiční příspěvky zřízeným příspěvkovým organizacím","0311100301","MŠ spec.pedagog",100,100,20.7,79.3,20.7]
["31","Vzdělávání a školské služby","3111","Mateřské školy","5336","Neinvestiční transfery zřízeným příspěvkovým organizacím","0311100007","OÚE-průtok neinv.dotace MŠMT \"Šablony OP JAK\" pro MŠ HU",0,0,1323.2739999999999,-1323.2739999999999,0]
["31","Vzdělávání a školské služby","3111","Mateřské školy","5901","Nespecifikované rezervy","0311100005","Provoz a drobné vybavení pracoviště a zahrady MŠ Podhrad",2000,0,0,0,0]
["31","Vzdělávání a školské služby","3113","Základní školy","5166","Konzultační, poradenské a právní služby","0311300004","Rozšíření kapacit základních škol v Humpolci",800,800,155.48500000000001,644.51499999999999,19.435625000000002]
["31","Vzdělávání a školské služby","3113","Základní školy","5331","Neinvestiční příspěvky zřízeným příspěvkovým organizacím","0000000321","ZŠ Hálkova",10587,10607,6872.2,3734.8,64.789290091449047]
["31","Vzdělávání a školské služby","3113","Základní školy","5331","Neinvestiční příspěvky zřízeným příspěvkovým organizacím","0000000322","ZŠ Hradská",7992,7772,5275.2,2496.8000000000002,67.874420998455989]
["31","Vzdělávání a školské služby","3113","Základní školy","5331","Neinvestiční příspěvky zřízeným příspěvkovým organizacím","0311300001","ZŠ spec.pedag, šk.psycholog",400,400,128.54400000000001,271.45600000000002,32.136000000000003]
["31","Vzdělávání a školské služby","3113","Základní školy","5331","Neinvestiční příspěvky zřízeným příspěvkovým organizacím","0999000321","Neinv.příspěvek-ZŠ Hálkova-participativní rozpočet",100,100,0,100,0]
["31","Vzdělávání a školské služby","3113","Základní školy","5331","Neinvestiční příspěvky zřízeným příspěvkovým organizacím","0999000322","Neinv.příspěvek-ZŠ Hradská-participativní rozpočet",100,100,100,0,100]
["31","Vzdělávání a školské služby","3113","Základní školy","5336","Neinvestiční transfery zřízeným příspěvkovým organizacím","0000321002","MŠMT Šablony OP JAK-podpora ZŠ Hálkova-průtok.neinv.dotace",0,0,4102.8119999999999,-4102.8119999999999,0]
["31","Vzdělávání a školské služby","3119","Ostatní záležitosti základního vzdělávání","5169","Nákup ostatních služeb","0311900001","Projekt Post Bellum",150,150,139.94999999999999,10.050000000000001,93.3]
["31","Vzdělávání a školské služby","3121","Gymnázia","5339","Neinvestiční transfery cizím příspěvkovým organizacím","0312100001","Dotace B3-Gymnázium Dr.A.Hrdličky (projekty školy,spolupráce se ZUŠ a ZŠ)",0,54,54,0,100]
["31","Vzdělávání a školské služby","3121","Gymnázia","5339","Neinvestiční transfery cizím příspěvkovým organizacím","0999312101","Dar particip.rozpočet-Gymnázium Dr.A.Hrdličky",100,100,100,0,100]
["ODPA(2) 31 Vzdělávání a školské služby",null,null,null,null,null,null,null,28419,28374,23283.39,5090.62,82.06]
["32","Vzdělávání a školské služby","3231","Základní umělecké školy","5331","Neinvestiční příspěvky zřízeným příspěvkovým organizacím","0000000324","ZUŠ",880,880,660,220,75]
["32","Vzdělávání a školské služby","3233","Střediska volného času","5331","Neinvestiční příspěvky zřízeným příspěvkovým organizacím","0000000325","SVČ",3866,3506,2511.6,994.4,71.637193382772395]
["32","Vzdělávání a školské služby","3299","Ostatní záležitosti vzdělávání","5222","Neinvestiční transfery spolkům","0329900001","Dotace B2-Vzdělávání pro budoucnost,z.s. (činnost)",18,18,18,0,100]
["ODPA(2) 32 Vzdělávání a školské služby",null,null,null,null,null,null,null,4764,4404,3189.6,1214.4000000000001,72.430000000000007]
["33","Kultura, církve a sdělovací prostředky","3312","Hudební činnost","5222","Neinvestiční transfery spolkům","0331200001","Dotace B2-Spol.pro rozvoj kulturních tradic Vysočiny (hudební slavnosti)",100,100,100,0,100]
["33","Kultura, církve a sdělovací prostředky","3313","Filmová tvorba, distribuce, kina a shromažďování audiovizuál. archiválií","5221","Neinvestiční transfery fundacím, ústavům a obecně prospěšným společnostem","0331300001","Dotace-Castrum (film.a folk.festival)",58,58,58,0,100]
["33","Kultura, církve a sdělovací prostředky","3319","Ostatní záležitosti kultury","5151","Studená voda včetně stočného a úplaty za odvod deštových vod","0331900020","Spolk.dům.čp.59",400,400,11.164999999999999,388.83499999999998,2.7912499999999998]
["33","Kultura, církve a sdělovací prostředky","3319","Ostatní záležitosti kultury","5153","Plyn","0331900020","Spolk.dům.čp.59",500,500,431.09872999999999,68.901269999999997,86.219746000000001]
["33","Kultura, církve a sdělovací prostředky","3319","Ostatní záležitosti kultury","5154","Elektrická energie","0331900020","Spolk.dům.čp.59",1000,1000,34.543909999999997,965.45609000000002,3.4543910000000002]
["33","Kultura, církve a sdělovací prostředky","3319","Ostatní záležitosti kultury","5166","Konzultační, poradenské a právní služby","0331900024","Studie využití městského bloku \"SPOLKOVÝ DŮM-HUSOVA\"",1000,1000,85.817999999999998,914.18200000000002,8.5817999999999994]
["33","Kultura, církve a sdělovací prostředky","3319","Ostatní záležitosti kultury","5169","Nákup ostatních služeb","0331900012","Varhanní koncerty Concentus Moraviae-festival Varhanní Vysočina",50,50,0,50,0]
["33","Kultura, církve a sdělovací prostředky","3319","Ostatní záležitosti kultury","5169","Nákup ostatních služeb","0331900016","Administrace dotace PKC-Centrum Mikádo",10,10,0,10,0]
["33","Kultura, církve a sdělovací prostředky","3319","Ostatní záležitosti kultury","5169","Nákup ostatních služeb","0331900020","Spolk.dům.čp.59",100,100,1.8149999999999999,98.185000000000002,1.8149999999999999]
["33","Kultura, církve a sdělovací prostředky","3319","Ostatní záležitosti kultury","5169","Nákup ostatních služeb","0331900021","TS-odměna správa-Spolk.dům.čp.59",320,320,232.32,87.68,72.599999999999994]
["33","Kultura, církve a sdělovací prostředky","3319","Ostatní záležitosti kultury","5171","Opravy a udržování","0331900020","Spolk.dům.čp.59",1000,1000,78.743669999999995,921.25633000000005,7.8743670000000003]
["33","Kultura, církve a sdělovací prostředky","3319","Ostatní záležitosti kultury","5222","Neinvestiční transfery spolkům","0331900025","Dar RM-ARCHITECTURA,z.s.-Landscape festival Humpolec 2023-č.usn.239/13/RM/2023",0,20,20,0,100]
["33","Kultura, církve a sdělovací prostředky","3319","Ostatní záležitosti kultury","5331","Neinvestiční příspěvky zřízeným příspěvkovým organizacím","0000000376","MěKIS",17099,17099,11115.4,5983.6,65.006140709983029]
["33","Kultura, církve a sdělovací prostředky","3319","Ostatní záležitosti kultury","5336","Neinvestiční transfery zřízeným příspěvkovým organizacím","0331900026","Průtok-MěKIS neinv.dotace od MKČR-Příroda v knihovně",0,15,15,0,100]
["33","Kultura, církve a sdělovací prostředky","3319","Ostatní záležitosti kultury","5339","Neinvestiční transfery cizím příspěvkovým organizacím","0312100001","Dotace B3-Gymnázium Dr.A.Hrdličky (projekty školy,spolupráce se ZUŠ a ZŠ)",54,0,0,0,0]
["33","Kultura, církve a sdělovací prostředky","3319","Ostatní záležitosti kultury","5339","Neinvestiční transfery cizím příspěvkovým organizacím","0312200001","Dotace B2-Česká zem.akademie (akce školy)",17,17,17,0,100]
["33","Kultura, církve a sdělovací prostředky","3319","Ostatní záležitosti kultury","5493","Účelové neinvestiční transfery fyzickým osobám","0331900001","Dotace B2-Zabloudilová(pořádání sletu čarodějnic)",15,15,15,0,100]
["33","Kultura, církve a sdělovací prostředky","3319","Ostatní záležitosti kultury","5493","Účelové neinvestiční transfery fyzickým osobám","0331900022","Dotace B2-Háva Samuel(podpora amat.loutk.souboru Zlá sazenice)",15,15,15,0,100]
["33","Kultura, církve a sdělovací prostředky","3319","Ostatní záležitosti kultury","5493","Účelové neinvestiční transfery fyzickým osobám","0331900023","Dotace B3-Šarfová Blanka (vydání a tisk knihy beletrie s historickou tematikou)",10,10,10,0,100]
["33","Kultura, církve a sdělovací prostředky","3319","Ostatní záležitosti kultury","5901","Nespecifikované rezervy","0000000020","Rezerva na Dotace B \"Zásad\"-obl. kultury",118,118,0,118,0]
["33","Kultura, církve a sdělovací prostředky","3322","Zachování a obnova kulturních památek","5154","Elektrická energie","0332200010","Budova čp. 338 Zichpil",30,30,4.0460700000000003,25.95393,13.4869]
["33","Kultura, církve a sdělovací prostředky","3322","Zachování a obnova kulturních památek","5166","Konzultační, poradenské a právní služby","0332200001","Státní památková péče -posudky",20,56,47.19,8.81,84.267857142857153]
["33","Kultura, církve a sdělovací prostředky","3322","Zachování a obnova kulturních památek","5169","Nákup ostatních služeb","0332200002","Hrad Orlík-provozní výdaje",200,200,34.53,165.47,17.265000000000001]
["33","Kultura, církve a sdělovací prostředky","3322","Zachování a obnova kulturních památek","5169","Nákup ostatních služeb","0332200003","Budova čp. 253 Dol. náměstí -údržba, revize, opravy",30,30,0,30,0]
["33","Kultura, církve a sdělovací prostředky","3322","Zachování a obnova kulturních památek","5169","Nákup ostatních služeb","0332200010","Budova čp. 338 Zichpil",3,13,1.26,11.74,9.6923076923076916]
["33","Kultura, církve a sdělovací prostředky","3322","Zachování a obnova kulturních památek","5171","Opravy a udržování","0332200002","Hrad Orlík-provozní výdaje",500,364,7.9862900000000003,356.01371,2.1940357142857141]
["33","Kultura, církve a sdělovací prostředky","3322","Zachování a obnova kulturních památek","5171","Opravy a udržování","0332200003","Budova čp. 253 Dol. náměstí -údržba, revize, opravy",100,65,8.4390000000000001,56.561,12.983076923076924]
["33","Kultura, církve a sdělovací prostředky","3322","Zachování a obnova kulturních památek","5171","Opravy a udržování","0332200006","St.pam.péče - opr.neudržitelných památek",10,0,0,0,0]
["33","Kultura, církve a sdělovací prostředky","3322","Zachování a obnova kulturních památek","5171","Opravy a udržování","0332200009","Budova čp. 250 Dolní náměstí",30,30,0,30,0]
["33","Kultura, církve a sdělovací prostředky","3322","Zachování a obnova kulturních památek","5171","Opravy a udržování","0332200010","Budova čp. 338 Zichpil",170,25,0,25,0]
["33","Kultura, církve a sdělovací prostředky","3322","Zachování a obnova kulturních památek","5171","Opravy a udržování","0332200032","OÚE-Humpolec č.p.338-opravy a udržovací práce (Zichpil)",0,270,264.41404,5.58596,97.931125925925926]
["33","Kultura, církve a sdělovací prostředky","3326","Pořízení, zachování a obnova hodnot místního kulturního, národního a historického povědomí","5154","Elektrická energie","0332600004","Toleranční kostel",8,8,1.7453799999999999,6.2546200000000001,21.817250000000001]
["33","Kultura, církve a sdělovací prostředky","3326","Pořízení, zachování a obnova hodnot místního kulturního, národního a historického povědomí","5169","Nákup ostatních služeb","0332600001","Kapličky - revize",25,25,0,25,0]
["33","Kultura, církve a sdělovací prostředky","3326","Pořízení, zachování a obnova hodnot místního kulturního, národního a historického povědomí","5171","Opravy a udržování","0332600002","Boží muka, křížky - opravy",10,10,3.044,6.9560000000000004,30.44]
["33","Kultura, církve a sdělovací prostředky","3326","Pořízení, zachování a obnova hodnot místního kulturního, národního a historického povědomí","5171","Opravy a udržování","0332600003","Kapličky - opravy",160,160,40.06,119.94,25.037500000000001]
["33","Kultura, církve a sdělovací prostředky","3326","Pořízení, zachování a obnova hodnot místního kulturního, národního a historického povědomí","5171","Opravy a udržování","0332600005","Zvonička Hněvkovice-oprava",5,15,0,15,0]
["33","Kultura, církve a sdělovací prostředky","3326","Pořízení, zachování a obnova hodnot místního kulturního, národního a historického povědomí","5901","Nespecifikované rezervy","0332600022","rezerva-Dotace na opravu fasád hist.objektů",1000,1000,0,1000,0]
["33","Kultura, církve a sdělovací prostředky","3330","Činnosti registrovaných církví a náboženských společností","5223","Neinvestiční transfery církvím a náboženským společnostem","0333000003","Dotace-Čes.církev evangel. (oprava v areálu evang.kostela)",275,275,275,0,100]
["33","Kultura, církve a sdělovací prostředky","3330","Činnosti registrovaných církví a náboženských společností","5223","Neinvestiční transfery církvím a náboženským společnostem","0333000004","Dotace-Římskokat. církev (výchova mládeže)",12,12,12,0,100]
["33","Kultura, církve a sdělovací prostředky","3330","Činnosti registrovaných církví a náboženských společností","5223","Neinvestiční transfery církvím a náboženským společnostem","0333000005","Dotace D2-Římskokat. církev (restaur. kostela Sv.Mikuláše)",225,225,225,0,100]
["33","Kultura, církve a sdělovací prostředky","3392","Zájmová činnost v kultuře","5222","Neinvestiční transfery spolkům","0339200001","Dotace-Divadlo za Komínem-představení pro děti",50,50,50,0,100]
["33","Kultura, církve a sdělovací prostředky","3399","Ostatní záležitosti kultury, církví a sdělovacích prostředků","5139","Nákup materiálu jinde nezařazený","0339900001","KPOZ-materiál",70,70,0.29499999999999998,69.704999999999998,0.42142857142857143]
["33","Kultura, církve a sdělovací prostředky","3399","Ostatní záležitosti kultury, církví a sdělovacích prostředků","5169","Nákup ostatních služeb","0339900002","KPOZ-služby",30,30,10.218,19.782,34.06]
["33","Kultura, církve a sdělovací prostředky","3399","Ostatní záležitosti kultury, církví a sdělovacích prostředků","5194","Výdaje na věcné dary","0339900003","KPOZ-věcné dary",700,700,55.091099999999997,644.90890000000002,7.8701571428571429]
["33","Kultura, církve a sdělovací prostředky","3399","Ostatní záležitosti kultury, církví a sdělovacích prostředků","5213","Neinvestiční transfery nefinančním podnikatelům-právnickým osobám","0339900011","Dotace B2-MŠ a ZŠ Bambi-kult.akce",10,10,10,0,100]
["33","Kultura, církve a sdělovací prostředky","3399","Ostatní záležitosti kultury, církví a sdělovacích prostředků","5222","Neinvestiční transfery spolkům","0339900008","Dotace B3-Společnost pro rozvoj Humpolecka-Den MAS",5,5,5,0,100]
["33","Kultura, církve a sdělovací prostředky","3399","Ostatní záležitosti kultury, církví a sdělovacích prostředků","5222","Neinvestiční transfery spolkům","0339900010","Dotace B2-Svařený sáně (kult.program advent)",30,30,30,0,100]
["33","Kultura, církve a sdělovací prostředky","3399","Ostatní záležitosti kultury, církví a sdělovacích prostředků","5222","Neinvestiční transfery spolkům","0437900005","Dotace C1-Svaz tělesně postižených Humpolec (činnost)",11,11,11,0,100]
["ODPA(2) 33 Kultura, církve a sdělovací prostředky",null,null,null,null,null,null,null,25585,25566,13337.24,12228.79,52.17]
["34","Sport a zájmová činnost","3412","Sportovní zařízení ve vlastnictví obce","5137","Drobný dlouhodobý hmotný majetek","0341200109","Zdrav.vybav.1.pomoc-ZS a Žabák",50,50,0,50,0]
["34","Sport a zájmová činnost","3412","Sportovní zařízení ve vlastnictví obce","5137","Drobný dlouhodobý hmotný majetek","0341200121","Vybavení sportovišť-místní části",100,160,73.69,86.31,46.056249999999999]
["34","Sport a zájmová činnost","3412","Sportovní zařízení ve vlastnictví obce","5137","Drobný dlouhodobý hmotný majetek","0341200122","Vybavení sportovišť-město",40,40,0,40,0]
["34","Sport a zájmová činnost","3412","Sportovní zařízení ve vlastnictví obce","5139","Nákup materiálu jinde nezařazený","0341200118","Městská hřiště",10,10,0,10,0]
["34","Sport a zájmová činnost","3412","Sportovní zařízení ve vlastnictví obce","5169","Nákup ostatních služeb","0341200029","Sportoviště - revize, kontroly, služby ostatní",500,500,287.69785000000002,212.30215000000001,57.539569999999998]
["34","Sport a zájmová činnost","3412","Sportovní zařízení ve vlastnictví obce","5169","Nákup ostatních služeb","0341200088","Revize motorů atrakcí",100,100,0,100,0]
["34","Sport a zájmová činnost","3412","Sportovní zařízení ve vlastnictví obce","5169","Nákup ostatních služeb","0341200089","Zimní stadion-administrace",15,15,2.42,12.58,16.133333333333333]
["34","Sport a zájmová činnost","3412","Sportovní zařízení ve vlastnictví obce","5169","Nákup ostatních služeb","0341200119","TS-sportoviště-provoz-příkazní smlouva",8000,8000,4822.3919999999998,3177.6080000000002,60.279899999999998]
["34","Sport a zájmová činnost","3412","Sportovní zařízení ve vlastnictví obce","5171","Opravy a udržování","0341200001","Údržba městských hřišť",1000,1000,729.92449999999997,270.07549999999998,72.992450000000005]
["34","Sport a zájmová činnost","3412","Sportovní zařízení ve vlastnictví obce","5171","Opravy a udržování","0341200002","Údržba hřišť v místních částech",700,640,97.497,542.50300000000004,15.23390625]
["34","Sport a zájmová činnost","3412","Sportovní zařízení ve vlastnictví obce","5171","Opravy a udržování","0341200003","Sportovní areál Okružní - opravy",1300,1300,534.07407999999998,765.92592000000002,41.082621538461538]
["34","Sport a zájmová činnost","3412","Sportovní zařízení ve vlastnictví obce","5171","Opravy a udržování","0341200050","Fotbalové hřiště - údržba přírodní trávy",450,450,140.7593,309.2407,31.279844444444443]
["34","Sport a zájmová činnost","3412","Sportovní zařízení ve vlastnictví obce","5171","Opravy a udržování","0341200063","Tenisová hala Hálkova - údržba",20,20,0,20,0]
["34","Sport a zájmová činnost","3412","Sportovní zařízení ve vlastnictví obce","5171","Opravy a udržování","0341200067","Tenisová hala Hradská - údržba",20,20,0,20,0]
["34","Sport a zájmová činnost","3412","Sportovní zařízení ve vlastnictví obce","5171","Opravy a udržování","0341200123","Tenisová hala Hálkova-výmalba",150,150,105.96,44.04,70.64]
["34","Sport a zájmová činnost","3412","Sportovní zařízení ve vlastnictví obce","5171","Opravy a udržování","0341200124","ZS generální oprava rolby",300,301.25,0,301.25,0]
["34","Sport a zájmová činnost","3412","Sportovní zařízení ve vlastnictví obce","5171","Opravy a udržování","0341200125","ZS výmalba šaten(bočních)+chodba",150,148.75,20,128.75,13.445378151260503]
["34","Sport a zájmová činnost","3419","Ostatní sportovní činnost","5139","Nákup materiálu jinde nezařazený","0341900026","Sportovní akce města a jejich podpora (např. Kemp vítězů)",5,5,0,5,0]
["34","Sport a zájmová činnost","3419","Ostatní sportovní činnost","5169","Nákup ostatních služeb","0341900026","Sportovní akce města a jejich podpora (např. Kemp vítězů)",40,40,10.677,29.323,26.692499999999999]
["34","Sport a zájmová činnost","3419","Ostatní sportovní činnost","5175","Pohoštění","0341900026","Sportovní akce města a jejich podpora (např. Kemp vítězů)",5,5,0,5,0]
["34","Sport a zájmová činnost","3419","Ostatní sportovní činnost","5221","Neinvestiční transfery fundacím, ústavům a obecně prospěšným společnostem","0341900008","Dotace-Soutěže podkovy (Zlatá podkova)",175,175,175,0,100]
["34","Sport a zájmová činnost","3419","Ostatní sportovní činnost","5222","Neinvestiční transfery spolkům","0341900002","Dotace-TJ Jiskra (činnost)",4887,4887,4887,0,100]
["34","Sport a zájmová činnost","3419","Ostatní sportovní činnost","5222","Neinvestiční transfery spolkům","0341900003","Dotace-TJ Jiskra (trenéři mládeže)",707,707,707,0,100]
["34","Sport a zájmová činnost","3419","Ostatní sportovní činnost","5222","Neinvestiční transfery spolkům","0341900004","Dotace-LTC (činnost,nájemné)",1345,1345,1345,0,100]
["34","Sport a zájmová činnost","3419","Ostatní sportovní činnost","5222","Neinvestiční transfery spolkům","0341900005","Dotace-LTC (trenéři mládeže)",80,80,80,0,100]
["34","Sport a zájmová činnost","3419","Ostatní sportovní činnost","5222","Neinvestiční transfery spolkům","0341900013","Dotace-Spolek přátel Krasoňova (pořádání akcí)",16,16,16,0,100]
["34","Sport a zájmová činnost","3419","Ostatní sportovní činnost","5222","Neinvestiční transfery spolkům","0341900014","Dotace-TJ Krasoňov (sportovní a kulturní akce)",16,16,16,0,100]
["34","Sport a zájmová činnost","3419","Ostatní sportovní činnost","5222","Neinvestiční transfery spolkům","0341900016","Dotace-C1- Vysočina Petrovice z.s.(sportovní a kulturní akce)",57,57,57,0,100]
["34","Sport a zájmová činnost","3419","Ostatní sportovní činnost","5222","Neinvestiční transfery spolkům","0341900017","Dotace-TJ Plačkov  (provozní náklady, provoz hřiště)",60,60,60,0,100]
["34","Sport a zájmová činnost","3419","Ostatní sportovní činnost","5222","Neinvestiční transfery spolkům","0341900018","Dotace-Automotoklub (závody)",440,440,413.12299999999999,26.876999999999999,93.891590909090908]
["34","Sport a zájmová činnost","3419","Ostatní sportovní činnost","5222","Neinvestiční transfery spolkům","0341900019","Dotace-Jezdecký klub(závody)",26,26,26,0,100]
["34","Sport a zájmová činnost","3419","Ostatní sportovní činnost","5222","Neinvestiční transfery spolkům","0341900021","Dotace-Jezdecký klub(trenéři)",20,20,20,0,100]
["34","Sport a zájmová činnost","3419","Ostatní sportovní činnost","5222","Neinvestiční transfery spolkům","0551200004","Dotace-SDH Hněvkovice (trenéři mládeže)",30,30,30,0,100]
["34","Sport a zájmová činnost","3419","Ostatní sportovní činnost","5909","Ostatní neinvestiční výdaje jinde nezařazené","0341900030","Sportoviště - místní části",20,20,0,20,0]
["34","Sport a zájmová činnost","3421","Využití volného času dětí a mládeže","5137","Drobný dlouhodobý hmotný majetek","0342100002","Dopravní hřiště",30,30,0,30,0]
["34","Sport a zájmová činnost","3421","Využití volného času dětí a mládeže","5139","Nákup materiálu jinde nezařazený","0342100002","Dopravní hřiště",12,6.5,3.8238400000000001,2.6761599999999999,58.828307692307696]
["34","Sport a zájmová činnost","3421","Využití volného času dětí a mládeže","5169","Nákup ostatních služeb","0342100002","Dopravní hřiště",5,5,0,5,0]
["34","Sport a zájmová činnost","3421","Využití volného času dětí a mládeže","5171","Opravy a udržování","0342100001","Dopravní hřiště - opravy kol",15,15,10.923,4.077,72.819999999999993]
["34","Sport a zájmová činnost","3421","Využití volného času dětí a mládeže","5175","Pohoštění","0342100002","Dopravní hřiště",8,8,2.54,5.46,31.75]
["34","Sport a zájmová činnost","3421","Využití volného času dětí a mládeže","5222","Neinvestiční transfery spolkům","0342100003","Dotace-A1-AFC (činnost)",2340,2340,2340,0,100]
["34","Sport a zájmová činnost","3421","Využití volného času dětí a mládeže","5222","Neinvestiční transfery spolkům","0342100004","Dotace-A1-AFC (trenéři mládeže)",220,220,220,0,100]
["34","Sport a zájmová činnost","3421","Využití volného času dětí a mládeže","5222","Neinvestiční transfery spolkům","0342100005","Dotace-C1-KČT Šlápoty Hněvkovice (činnost)",82,82,82,0,100]
["34","Sport a zájmová činnost","3421","Využití volného času dětí a mládeže","5222","Neinvestiční transfery spolkům","0342100007","Dotace C1-Junák (pořízení IT vybavení)",63,63,63,0,100]
["34","Sport a zájmová činnost","3421","Využití volného času dětí a mládeže","5494","Neinvestiční transfery fyzickým osobám nemající povahu daru","0342100002","Dopravní hřiště",0,5.5,5.18398,0.31602000000000002,94.25418181818182]
["34","Sport a zájmová činnost","3429","Ostatní zájmová činnost a rekreace","5169","Nákup ostatních služeb","0342900026","Humpolecké vánoční kluziště",600,600,92.399000000000001,507.601,15.399833333333335]
["34","Sport a zájmová činnost","3429","Ostatní zájmová činnost a rekreace","5222","Neinvestiční transfery spolkům","0234900001","Dotace-Český ryb.svaz (trenéři mládeže)",10,10,10,0,100]
["34","Sport a zájmová činnost","3429","Ostatní zájmová činnost a rekreace","5222","Neinvestiční transfery spolkům","0234900002","Dotace-Český ryb.svaz (činnost)",50,50,50,0,100]
["34","Sport a zájmová činnost","3429","Ostatní zájmová činnost a rekreace","5222","Neinvestiční transfery spolkům","0342900002","Dotace-Klub Veteráni(přehlídka historických vozidel)",9,9,9,0,100]
["34","Sport a zájmová činnost","3429","Ostatní zájmová činnost a rekreace","5222","Neinvestiční transfery spolkům","0342900003","Dotace C1-Turisté Humpolec (činnost)",22,22,22,0,100]
["34","Sport a zájmová činnost","3429","Ostatní zájmová činnost a rekreace","5222","Neinvestiční transfery spolkům","0342900004","Dotace-Klub českých turistů (činnost)",66,66,66,0,100]
["34","Sport a zájmová činnost","3429","Ostatní zájmová činnost a rekreace","5222","Neinvestiční transfery spolkům","0342900005","Dotace C1-Senioři ČR Humpolec (volnočasové aktivity,kultura)",58,58,58,0,100]
["34","Sport a zájmová činnost","3429","Ostatní zájmová činnost a rekreace","5222","Neinvestiční transfery spolkům","0342900006","Dotace-Svaz chovatelů (výstava drobného zvířectva)",10,10,10,0,100]
["34","Sport a zájmová činnost","3429","Ostatní zájmová činnost a rekreace","5222","Neinvestiční transfery spolkům","0342900008","Dotace C1-Český svaz včelařů (údržba a opravy skanzenu,výroba přístřešků pro venk.exponáty)",51,51,51,0,100]
["34","Sport a zájmová činnost","3429","Ostatní zájmová činnost a rekreace","5222","Neinvestiční transfery spolkům","0342900010","Dotace C1-Myslivecký spolek Vysočina Petrovice (obnova zeleně, nájem)",23,23,23,0,100]
["34","Sport a zájmová činnost","3429","Ostatní zájmová činnost a rekreace","5222","Neinvestiční transfery spolkům","0342900014","Dotace A3-Basketbal.klub 3x3 Humpolec (provoz)",40,40,40,0,100]
["34","Sport a zájmová činnost","3429","Ostatní zájmová činnost a rekreace","5493","Účelové neinvestiční transfery fyzickým osobám","0331900003","Dotace-Krejčí (celoroční akce v Plačkově)",30,30,30,0,100]
["34","Sport a zájmová činnost","3429","Ostatní zájmová činnost a rekreace","5493","Účelové neinvestiční transfery fyzickým osobám","0331900005","Dotace-Vyvadilová (celoroční akce Rozkoš)",40,40,40,0,100]
["34","Sport a zájmová činnost","3429","Ostatní zájmová činnost a rekreace","5493","Účelové neinvestiční transfery fyzickým osobám","0342900001","Dotace A2-Marek David (triatlon)",14,14,14,0,100]
["34","Sport a zájmová činnost","3429","Ostatní zájmová činnost a rekreace","5493","Účelové neinvestiční transfery fyzickým osobám","0342900012","Dotace A2-Jirák Lukáš (sportovní akce-běh)",12,12,12,0,100]
["34","Sport a zájmová činnost","3429","Ostatní zájmová činnost a rekreace","5493","Účelové neinvestiční transfery fyzickým osobám","0342900013","Dotace-Prokůpek Vít (zavody horských kol)",6,6,6,0,100]
["34","Sport a zájmová činnost","3429","Ostatní zájmová činnost a rekreace","5493","Účelové neinvestiční transfery fyzickým osobám","0342900015","Dotace-Macháček Jan (cyklistický závod)",9,9,9,0,100]
["34","Sport a zájmová činnost","3429","Ostatní zájmová činnost a rekreace","5493","Účelové neinvestiční transfery fyzickým osobám","0342900016","Dotace A3-Havlová Anna (jezdecké soutěže-mezin.)",15,15,15,0,100]
["34","Sport a zájmová činnost","3429","Ostatní zájmová činnost a rekreace","5493","Účelové neinvestiční transfery fyzickým osobám","0342900020","Dotace C2 Polidarová Petra (uspořádání herního odpoledne)",3,3,3,0,100]
["34","Sport a zájmová činnost","3429","Ostatní zájmová činnost a rekreace","5493","Účelové neinvestiční transfery fyzickým osobám","0342900025","Dotace A3-Sukdolák Matěj (mezin.jezd.soutěže,ME,OH)",64,64,64,0,100]
["34","Sport a zájmová činnost","3429","Ostatní zájmová činnost a rekreace","5493","Účelové neinvestiční transfery fyzickým osobám","0342900027","Dotace C2-Horčic Miloš (turnaj v nohejbale)",3,3,3,0,100]
["34","Sport a zájmová činnost","3429","Ostatní zájmová činnost a rekreace","5901","Nespecifikované rezervy","0000000030","Rezerva na Dotace C \"Zásad\"-obl.ost.zájm.činností",138.30000000000001,138.30000000000001,0,138.30000000000001,0]
["ODPA(2) 34 Sport a zájmová činnost",null,null,null,null,null,null,null,24882.3,24882.3,18012.07,6870.23,72.39]
["36","Bydlení, komunální služby a územní rozvoj","3612","Bytové hospodářství","5137","Drobný dlouhodobý hmotný majetek","0000000404","BHS",35,35,0,35,0]
["36","Bydlení, komunální služby a územní rozvoj","3612","Bytové hospodářství","5139","Nákup materiálu jinde nezařazený","0000000404","BHS",45,45,{"$f":"SUM(K206:K213)","v":32.599000000000004},{"$f":"J205-K205","v":12.400999999999996},{"$f":"K205/J205*100","v":72.442222222222227}]
["36","Bydlení, komunální služby a územní rozvoj","3612","Bytové hospodářství","5139","Nákup materiálu jinde nezařazený","0000000073","BHS-Masarykova 73",null,"z toho:",9.9000000000000005E-2]
["36","Bydlení, komunální služby a územní rozvoj","3612","Bytové hospodářství","5139","Nákup materiálu jinde nezařazený","0000000074","BHS-Masarykova 74",null,"z toho:",2.706]
["36","Bydlení, komunální služby a územní rozvoj","3612","Bytové hospodářství","5139","Nákup materiálu jinde nezařazený","0000000730","BHS-Školní 730",null,"z toho:",8.5549999999999997]
["36","Bydlení, komunální služby a územní rozvoj","3612","Bytové hospodářství","5139","Nákup materiálu jinde nezařazený","0000000926","BHS-Hálkova 926",null,"z toho:",0.58599999999999997]
["36","Bydlení, komunální služby a územní rozvoj","3612","Bytové hospodářství","5139","Nákup materiálu jinde nezařazený","0000000927","BHS-Hálkova 927",null,"z toho:",0.28100000000000003]
["36","Bydlení, komunální služby a územní rozvoj","3612","Bytové hospodářství","5139","Nákup materiálu jinde nezařazený","0000001313","BHS-Na Rybníčku 1313",null,"z toho:",7.1310000000000002]
["36","Bydlení, komunální služby a územní rozvoj","3612","Bytové hospodářství","5139","Nákup materiálu jinde nezařazený","0000001326","BHS-Na Rybníčku 1326",null,"z toho:",3.242]
["36","Bydlení, komunální služby a územní rozvoj","3612","Bytové hospodářství","5139","Nákup materiálu jinde nezařazený","0000001353","BHS-Komenského 1353",null,"z toho:",9.9990000000000006]
["36","Bydlení, komunální služby a územní rozvoj","3612","Bytové hospodářství","5151","Studená voda včetně stočného a úplaty za odvod deštových vod","0000000404","BHS",1400,1400,787.85699999999997,612.14300000000003,56.275500000000001]
["36","Bydlení, komunální služby a územní rozvoj","3612","Bytové hospodářství","5152","Teplo","0000000404","BHS",7200,6860,3777.3549899999998,3082.6450100000002,55.063483819241988]
["36","Bydlení, komunální služby a územní rozvoj","3612","Bytové hospodářství","5153","Plyn","0000000404","BHS",20,20,12.088100000000001,7.9119000000000002,60.4405]
["36","Bydlení, komunální služby a územní rozvoj","3612","Bytové hospodářství","5154","Elektrická energie","0000000404","BHS",900,900,464.36032,435.63968,51.595591111111112]
["36","Bydlení, komunální služby a územní rozvoj","3612","Bytové hospodářství","5157","Teplá voda","0000000404","BHS",1440,1440,{"$f":"754.7874+96.823","v":851.61040000000003},{"$f":"J218-K218","v":588.38959999999997},{"$f":"K218/J218*100","v":59.139611111111115}]
["36","Bydlení, komunální služby a územní rozvoj","3612","Bytové hospodářství","5161","Poštovní služby","0000000404","BHS",50,50,10.698,39.302,21.396000000000001]
["36","Bydlení, komunální služby a územní rozvoj","3612","Bytové hospodářství","5162","Služby elektronických komunikací","0000000404","BHS",10,10,4.5011999999999999,5.4988000000000001,45.012]
["36","Bydlení, komunální služby a územní rozvoj","3612","Bytové hospodářství","5169","Nákup ostatních služeb","0361200010","BHS-provozní služby",1100,1100,{"$f":"SUM(K222:K237)","v":417.48493000000002},{"$f":"J221-K221","v":682.51506999999992},{"$f":"K221/J221*100","v":37.953175454545459}]
["36","Bydlení, komunální služby a územní rozvoj","3612","Bytové hospodářství","5169","Nákup ostatních služeb","0000000019","BHS-Fügnerova 19",null,"z toho:",10.909000000000001]
["36","Bydlení, komunální služby a územní rozvoj","3612","Bytové hospodářství","5169","Nákup ostatních služeb","0000000073","BHS-Masarykova 73",null,"z toho:",15.699199999999999]
["36","Bydlení, komunální služby a územní rozvoj","3612","Bytové hospodářství","5169","Nákup ostatních služeb","0000000074","BHS-Masarykova 74",null,"z toho:",33.973100000000002]
["36","Bydlení, komunální služby a územní rozvoj","3612","Bytové hospodářství","5169","Nákup ostatních služeb","0000000245","BHS-Jana Zábrany 245",null,"z toho:",8.5945]
["36","Bydlení, komunální služby a územní rozvoj","3612","Bytové hospodářství","5169","Nákup ostatních služeb","0000000601","BHS-Hálkova 601",null,"z toho:",0.44600000000000001]
["36","Bydlení, komunální služby a územní rozvoj","3612","Bytové hospodářství","5169","Nákup ostatních služeb","0000000730","BHS-Školní 730",null,"z toho:",67.434799999999996]
["36","Bydlení, komunální služby a územní rozvoj","3612","Bytové hospodářství","5169","Nákup ostatních služeb","0000000926","BHS-Hálkova 926",null,"z toho:",13.330500000000001]
["36","Bydlení, komunální služby a územní rozvoj","3612","Bytové hospodářství","5169","Nákup ostatních služeb","0000000927","BHS-Hálkova 927",null,"z toho:",8.4335000000000004]
["36","Bydlení, komunální služby a územní rozvoj","3612","Bytové hospodářství","5169","Nákup ostatních služeb","0000001027","BHS-Hálkova 1027",null,"z toho:",7.2655000000000003]
["36","Bydlení, komunální služby a územní rozvoj","3612","Bytové hospodářství","5169","Nákup ostatních služeb","0000001028","BHS-Máchova 1028",null,"z toho:",9.7765000000000004]
["36","Bydlení, komunální služby a územní rozvoj","3612","Bytové hospodářství","5169","Nákup ostatních služeb","0000001039","BHS-Hálkova 1039",null,"z toho:",7.4734999999999996]
["36","Bydlení, komunální služby a územní rozvoj","3612","Bytové hospodářství","5169","Nákup ostatních služeb","0000001313","BHS-Na Rybníčku 1313",null,"z toho:",79.174999999999997]
["36","Bydlení, komunální služby a územní rozvoj","3612","Bytové hospodářství","5169","Nákup ostatních služeb","0000001326","BHS-Na Rybníčku 1326",null,"z toho:",42.515500000000003]
["36","Bydlení, komunální služby a územní rozvoj","3612","Bytové hospodářství","5169","Nákup ostatních služeb","0000001353","BHS-Komenského 1353",null,"z toho:",100.22732999999999]
["36","Bydlení, komunální služby a územní rozvoj","3612","Bytové hospodářství","5169","Nákup ostatních služeb","0000001607","BHS-Máchova 1607",null,"z toho:",8.9510000000000005]
["36","Bydlení, komunální služby a územní rozvoj","3612","Bytové hospodářství","5169","Nákup ostatních služeb","0000001608","BHS-Jihlavská 1608",null,"z toho:",3.28]
["36","Bydlení, komunální služby a územní rozvoj","3612","Bytové hospodářství","5169","Nákup ostatních služeb","0361200009","BHS-sml. s TS-správa bytů",1100,1100,620.23500000000001,479.76499999999999,56.384999999999998]
["36","Bydlení, komunální služby a územní rozvoj","3612","Bytové hospodářství","5171","Opravy a udržování","0000000019","BHS-Fügnerova 19",400,400,32.036949999999997,367.96305000000001,8.0092374999999993]
["36","Bydlení, komunální služby a územní rozvoj","3612","Bytové hospodářství","5171","Opravy a udržování","0000000073","BHS-Masarykova 73",600,600,23.287500000000001,576.71249999999998,3.8812500000000001]
["36","Bydlení, komunální služby a územní rozvoj","3612","Bytové hospodářství","5171","Opravy a udržování","0000000074","BHS-Masarykova 74",300,300,10.86905,289.13094999999998,3.623016666666667]
["36","Bydlení, komunální služby a územní rozvoj","3612","Bytové hospodářství","5171","Opravy a udržování","0000000245","BHS-Jana Zábrany 245",300,300,6.3859500000000002,293.61405000000002,2.1286499999999999]
["36","Bydlení, komunální služby a územní rozvoj","3612","Bytové hospodářství","5171","Opravy a udržování","0000000601","BHS-Hálkova 601",800,200,5.6040999999999999,194.39590000000001,2.8020499999999999]
["36","Bydlení, komunální služby a územní rozvoj","3612","Bytové hospodářství","5171","Opravy a udržování","0000000730","BHS-Školní 730",500,500,146.39461,353.60539,29.278922000000001]
["36","Bydlení, komunální služby a územní rozvoj","3612","Bytové hospodářství","5171","Opravy a udržování","0000000926","BHS-Hálkova 926",300,300,78.418589999999995,221.58141000000001,26.139530000000001]
["36","Bydlení, komunální služby a územní rozvoj","3612","Bytové hospodářství","5171","Opravy a udržování","0000000927","BHS-Hálkova 927",300,700,603.64215000000002,96.357849999999999,86.234592857142857]
["36","Bydlení, komunální služby a územní rozvoj","3612","Bytové hospodářství","5171","Opravy a udržování","0000001027","BHS-Hálkova 1027",600,600,115.54235,484.45765,19.257058333333333]
["36","Bydlení, komunální služby a územní rozvoj","3612","Bytové hospodářství","5171","Opravy a udržování","0000001028","BHS-Máchova 1028",400,400,78.401250000000005,321.59875,19.600312500000001]
["36","Bydlení, komunální služby a územní rozvoj","3612","Bytové hospodářství","5171","Opravy a udržování","0000001039","BHS-Hálkova 1039",300,300,28.1083,271.89170000000001,9.3694333333333333]
["36","Bydlení, komunální služby a územní rozvoj","3612","Bytové hospodářství","5171","Opravy a udržování","0000001313","BHS-Na Rybníčku 1313",500,900,796.20230000000004,103.79770000000001,88.466922222222223]
["36","Bydlení, komunální služby a územní rozvoj","3612","Bytové hospodářství","5171","Opravy a udržování","0000001326","BHS-Na Rybníčku 1326",500,500,133.88839999999999,366.11160000000001,26.77768]
["36","Bydlení, komunální služby a územní rozvoj","3612","Bytové hospodářství","5171","Opravy a udržování","0000001353","BHS-Komenského 1353",600,600,401.16669999999999,198.83330000000001,66.861116666666661]
["36","Bydlení, komunální služby a územní rozvoj","3612","Bytové hospodářství","5171","Opravy a udržování","0000001607","BHS-Máchova 1607",400,400,184.7783,215.2217,46.194575]
["36","Bydlení, komunální služby a územní rozvoj","3612","Bytové hospodářství","5171","Opravy a udržování","0000001608","BHS-Jihlavská 1608",400,200,1.972,198.02799999999999,0.98599999999999999]
["36","Bydlení, komunální služby a územní rozvoj","3612","Bytové hospodářství","5182","Převody vlastní pokladně",null,null,0,0,4.6120000000000001,-4.6120000000000001,0]
["36","Bydlení, komunální služby a územní rozvoj","3612","Bytové hospodářství","5909","Ostatní neinvestiční výdaje jinde nezařazené","0000000404","BHS",0,0,-5.2,5.2,0]
["36","Bydlení, komunální služby a územní rozvoj","3612","Bytové hospodářství","5909","Ostatní neinvestiční výdaje jinde nezařazené","0361200012","BHS-vratka přeplatků z vyúčt.služeb",1000,1340,1339.252,0.748,99.944179104477612]
["36","Bydlení, komunální služby a územní rozvoj","3613","Nebytové hospodářství","5123","Podlimitní technické zhodnocení","0361300081","Nebyt.hosp.-čp.934 SOS-DÚ",0,9.1,9.09436,5.64E-3,99.938021978021979]
["36","Bydlení, komunální služby a územní rozvoj","3613","Nebytové hospodářství","5123","Podlimitní technické zhodnocení","0361300117","Nebyt.hosp.-čp.730 Školní",0,30.3,30.275410000000001,2.4590000000000001E-2,99.918844884488465]
["36","Bydlení, komunální služby a územní rozvoj","3613","Nebytové hospodářství","5137","Drobný dlouhodobý hmotný majetek","0361300117","Nebyt.hosp.-čp.730 Školní",350,350,0,350,0]
["36","Bydlení, komunální služby a územní rozvoj","3613","Nebytové hospodářství","5137","Drobný dlouhodobý hmotný majetek","0361300181","Nebyt.hosp.-polikliniky-vybavení čekáren (věšáky, lavice, výmalba...)",900,900,0,900,0]
["36","Bydlení, komunální služby a územní rozvoj","3613","Nebytové hospodářství","5137","Drobný dlouhodobý hmotný majetek","0361300189","Nebyt.-Altán Stromovka-gastro myčka",0,34,33.828000000000003,0.17199999999999999,99.494117647058829]
["36","Bydlení, komunální služby a územní rozvoj","3613","Nebytové hospodářství","5139","Nákup materiálu jinde nezařazený","0361300001","Nebyt.hosp.- označení budov čp.",30,30,0,30,0]
["36","Bydlení, komunální služby a územní rozvoj","3613","Nebytové hospodářství","5139","Nákup materiálu jinde nezařazený","0361304424","Nebytové hosp.-veřejné WC",20,20,6.4640000000000004,13.536,32.32]
["36","Bydlení, komunální služby a územní rozvoj","3613","Nebytové hospodářství","5151","Studená voda včetně stočného a úplaty za odvod deštových vod","0361300003","Nebyt.ostatní - voda,teplo,plyn,el.energie",120,120,35.096449999999997,84.903549999999996,29.247041666666668]
["36","Bydlení, komunální služby a územní rozvoj","3613","Nebytové hospodářství","5152","Teplo","0361300003","Nebyt.ostatní - voda,teplo,plyn,el.energie",240,240,45.617899999999999,194.38210000000001,19.007458333333336]
["36","Bydlení, komunální služby a územní rozvoj","3613","Nebytové hospodářství","5153","Plyn","0361300003","Nebyt.ostatní - voda,teplo,plyn,el.energie",500,500,55.100250000000003,444.89974999999998,11.020049999999999]
["36","Bydlení, komunální služby a územní rozvoj","3613","Nebytové hospodářství","5154","Elektrická energie","0361300003","Nebyt.ostatní - voda,teplo,plyn,el.energie",900,900,300.44977999999998,599.55021999999997,33.383308888888891]
["36","Bydlení, komunální služby a územní rozvoj","3613","Nebytové hospodářství","5169","Nákup ostatních služeb","0361300005","Nebytové hosp.-revize",500,446.29500000000002,189.12071,257.17428999999998,42.375717854782152]
["36","Bydlení, komunální služby a územní rozvoj","3613","Nebytové hospodářství","5169","Nákup ostatních služeb","0361300007","Nebytové-TS odměna za správu",730,730,367.70299999999997,362.29700000000003,50.370273972602732]
["36","Bydlení, komunální služby a územní rozvoj","3613","Nebytové hospodářství","5169","Nákup ostatních služeb","0361300084","Nebyt.hosp.-provoz zabezpeč.zařízení na DZS a poliklinice",60,60,31.738299999999999,28.261700000000001,52.897166666666671]
["36","Bydlení, komunální služby a územní rozvoj","3613","Nebytové hospodářství","5169","Nákup ostatních služeb","0361300137","Nebyt.hosp.-altán Stromovka-odměna",60,60,20.292999999999999,39.707000000000001,33.821666666666665]
["36","Bydlení, komunální služby a územní rozvoj","3613","Nebytové hospodářství","5169","Nákup ostatních služeb","0361300153","Nebyt.hosp.-altán Stromovka-drobná údržba,opravy,služby...",0,50,43.622160000000001,6.37784,87.244320000000002]
["36","Bydlení, komunální služby a územní rozvoj","3613","Nebytové hospodářství","5169","Nákup ostatních služeb","0361300183","Nebytové hosp.-OV Kletečná",0,13.1,13.086,1.4E-2,99.89312977099236]
["36","Bydlení, komunální služby a územní rozvoj","3613","Nebytové hospodářství","5169","Nákup ostatních služeb","0361304424","Nebytové hosp.-veřejné WC",1500,1500,573.13684000000001,926.86315999999999,38.209122666666666]
["36","Bydlení, komunální služby a územní rozvoj","3613","Nebytové hospodářství","5171","Opravy a udržování","0361300033","Nebytové hosp.-poliklinika čp.885 - DÚ",400,750,216.25767999999999,533.74231999999995,28.834357333333337]
["36","Bydlení, komunální služby a územní rozvoj","3613","Nebytové hospodářství","5171","Opravy a udržování","0361300040","Nebytové hosp.-město-drobná údržba",250,250,101.3967,148.60329999999999,40.558680000000003]
["36","Bydlení, komunální služby a územní rozvoj","3613","Nebytové hospodářství","5171","Opravy a udržování","0361300041","Nebytové hosp.-OV místní části-DÚ",700,700,330.80065999999999,369.19934000000001,47.257237142857143]
["36","Bydlení, komunální služby a územní rozvoj","3613","Nebytové hospodářství","5171","Opravy a udržování","0361300055","Nebyt.-Čp.389 DZS - drobná údržba",300,300,50.009569999999997,249.99043,16.669856666666668]
["36","Bydlení, komunální služby a územní rozvoj","3613","Nebytové hospodářství","5171","Opravy a udržování","0361300078","Nebyt.hosp.-čp.422-drobná údržba HZS",100,100,40.159370000000003,59.840629999999997,40.159370000000003]
["36","Bydlení, komunální služby a územní rozvoj","3613","Nebytové hospodářství","5171","Opravy a udržování","0361300081","Nebyt.hosp.-čp.934 SOS-DÚ",150,140.9,16.231449999999999,124.66855,11.519836763662171]
["36","Bydlení, komunální služby a územní rozvoj","3613","Nebytové hospodářství","5171","Opravy a udržování","0361300087","Nebyt.hosp.-čp.803 LTRN-drobná údržba",500,300,85.033370000000005,214.96663000000001,28.34445666666667]
["36","Bydlení, komunální služby a územní rozvoj","3613","Nebytové hospodářství","5171","Opravy a udržování","0361300088","Nebyt.hosp.-čp.391 Husova-škola-drobná údržba",150,150,33.741129999999998,116.25887,22.494086666666664]
["36","Bydlení, komunální služby a územní rozvoj","3613","Nebytové hospodářství","5171","Opravy a udržování","0361300093","Nebyt.hosp.-čp.391 Husova-ŠJ-DÚ",100,100,39.655500000000004,60.344499999999996,39.655500000000004]
["36","Bydlení, komunální služby a územní rozvoj","3613","Nebytové hospodářství","5171","Opravy a udržování","0361300113","Nebyt.hosp.-čp.422-RZS drobná údržba",100,100,4.5108800000000002,95.48912,4.5108800000000002]
["36","Bydlení, komunální služby a územní rozvoj","3613","Nebytové hospodářství","5171","Opravy a udržování","0361300116","Nebyt.hosp.-čp.1353-Komenského drobná údržba",200,200,1.0164,198.9836,0.50819999999999999]
["36","Bydlení, komunální služby a územní rozvoj","3613","Nebytové hospodářství","5171","Opravy a udržování","0361300117","Nebyt.hosp.-čp.730 Školní",300,269.7,105.36505,164.33494999999999,39.06750092695588]
["36","Bydlení, komunální služby a územní rozvoj","3613","Nebytové hospodářství","5171","Opravy a udržování","0361300119","Nebyt.hosp.-čp.1607 Máchova-drobná údržba",50,50,3.5610900000000001,46.43891,7.1221800000000002]
["36","Bydlení, komunální služby a územní rozvoj","3613","Nebytové hospodářství","5171","Opravy a udržování","0361300120","Nebyt.hosp.-čp.245 J.Zábrany-drobná údržba (světla,malba stropu)",50,50,4.1575600000000001,45.842440000000003,8.3151200000000003]
["36","Bydlení, komunální služby a územní rozvoj","3613","Nebytové hospodářství","5171","Opravy a udržování","0361300139","Nebyt.hosp.-budovy SDH MČ",250,250,19.266069999999999,230.73392999999999,7.7064279999999998]
["36","Bydlení, komunální služby a územní rozvoj","3613","Nebytové hospodářství","5171","Opravy a udržování","0361300143","Nebyt.-Čp.885-opravy úklidových komor",250,100,0,100,0]
["36","Bydlení, komunální služby a územní rozvoj","3613","Nebytové hospodářství","5171","Opravy a udržování","0361300147","Nebyt.-Čp.803 LTRN-oprava krytiny,svody stříšek nad vstupy",150,150,0,150,0]
["36","Bydlení, komunální služby a územní rozvoj","3613","Nebytové hospodářství","5171","Opravy a udržování","0361300153","Nebyt.hosp.-altán Stromovka-drobná údržba,opravy,služby...",200,150,43.524000000000001,106.476,29.015999999999998]
["36","Bydlení, komunální služby a územní rozvoj","3613","Nebytové hospodářství","5171","Opravy a udržování","0361300161","Nebyt.hosp.-čp.389-DZS-výměna světel",50,50,0,50,0]
["36","Bydlení, komunální služby a územní rozvoj","3613","Nebytové hospodářství","5171","Opravy a udržování","0361300164","Nebyt.hosp.-čp.245-výměna plyn.kotle-kotelna",100,100,75.082139999999995,24.917860000000001,75.082139999999995]
["36","Bydlení, komunální služby a územní rozvoj","3613","Nebytové hospodářství","5171","Opravy a udržování","0361300165","Nebyt.hosp.-DÚ,oprava městského mobiliáře",100,100,0,100,0]
["36","Bydlení, komunální služby a územní rozvoj","3613","Nebytové hospodářství","5171","Opravy a udržování","0361300171","Nebyt.hosp.-čp.389-oprava soc.zařízení 1NP",120,120,0,120,0]
["36","Bydlení, komunální služby a územní rozvoj","3613","Nebytové hospodářství","5171","Opravy a udržování","0361300179","Nebyt.hosp.-čp.252 budova ČS-drobná údržba",200,200,1.8875999999999999,198.11240000000001,0.94379999999999997]
["36","Bydlení, komunální služby a územní rozvoj","3613","Nebytové hospodářství","5171","Opravy a udržování","0361300182","Nebytové hosp.-OV Hněvkovice",600,600,195.04499999999999,404.95499999999998,32.5075]
["36","Bydlení, komunální služby a územní rozvoj","3613","Nebytové hospodářství","5171","Opravy a udržování","0361300183","Nebytové hosp.-OV Kletečná",600,586.9,89.998589999999993,496.90141,15.334569773385585]
["36","Bydlení, komunální služby a územní rozvoj","3613","Nebytové hospodářství","5171","Opravy a udržování","0361300184","Nebyt.hosp.-oprava střechy garáží ul. Palackého",250,250,0,250,0]
["36","Bydlení, komunální služby a územní rozvoj","3613","Nebytové hospodářství","5171","Opravy a udržování","0361304424","Nebytové hosp.-veřejné WC",150,150,49.225999999999999,100.774,32.817333333333337]
["36","Bydlení, komunální služby a územní rozvoj","3631","Veřejné osvětlení","5154","Elektrická energie","0363100001","VO-elektrická energie",5300,5300,3581.7121400000001,1718.2878599999999,67.579474339622649]
["36","Bydlení, komunální služby a územní rozvoj","3631","Veřejné osvětlení","5169","Nákup ostatních služeb","0363100002","VO-provoz,služby",1500,1500,1008.17346,491.82654000000002,67.211563999999996]
["36","Bydlení, komunální služby a územní rozvoj","3631","Veřejné osvětlení","5169","Nákup ostatních služeb","0363100010","VO-vánoční výzdoba",300,300,114.355,185.64500000000001,38.118333333333332]
["36","Bydlení, komunální služby a územní rozvoj","3631","Veřejné osvětlení","5169","Nákup ostatních služeb","0363100061","Certifikace ISO 50001",350,350,345.89596999999998,4.1040299999999998,98.827420000000004]
["36","Bydlení, komunální služby a územní rozvoj","3631","Veřejné osvětlení","5171","Opravy a udržování","0363100003","VO-údržba fontány a pítka",90,90,28.242000000000001,61.758000000000003,31.38]
["36","Bydlení, komunální služby a územní rozvoj","3631","Veřejné osvětlení","5171","Opravy a udržování","0363100004","VO-běžné opravy, údržba",500,500,243.04351,256.95648999999997,48.608702000000001]
["36","Bydlení, komunální služby a územní rozvoj","3632","Pohřebnictví","5137","Drobný dlouhodobý hmotný majetek","0363200023","Hřbitov, urnový háj - DDHM",15,15,0,15,0]
["36","Bydlení, komunální služby a územní rozvoj","3632","Pohřebnictví","5137","Drobný dlouhodobý hmotný majetek","0363200025","Pohřebnictví-úprava interiéru SOS čp.934",50,50,0,50,0]
["36","Bydlení, komunální služby a územní rozvoj","3632","Pohřebnictví","5139","Nákup materiálu jinde nezařazený","0363200019","Pohřebnictví - hřbitov-materiál",10,10,3.5950000000000002,6.4050000000000002,35.950000000000003]
["36","Bydlení, komunální služby a územní rozvoj","3632","Pohřebnictví","5151","Studená voda včetně stočného a úplaty za odvod deštových vod","0363200005","Hřbitov,urnový háj-el.energie",60,60,45.292000000000002,14.708,75.486666666666665]
["36","Bydlení, komunální služby a územní rozvoj","3632","Pohřebnictví","5154","Elektrická energie","0363200005","Hřbitov,urnový háj-el.energie",90,90,0.74946999999999997,89.250529999999998,0.83274444444444451]
["36","Bydlení, komunální služby a územní rozvoj","3632","Pohřebnictví","5169","Nákup ostatních služeb","0363200001","Pohřebnictví-hřbitov-služby",600,600,477.06950000000001,122.93049999999999,79.511583333333334]
["36","Bydlení, komunální služby a územní rozvoj","3632","Pohřebnictví","5169","Nákup ostatních služeb","0363200002","Pohřebnictví-urnový háj-služby",400,400,185.00899999999999,214.99100000000001,46.252249999999997]
["36","Bydlení, komunální služby a územní rozvoj","3632","Pohřebnictví","5169","Nákup ostatních služeb","0363200003","Hřbitov,UH-údržba stromů, výsadby",385,385,231.08500000000001,153.91499999999999,60.022077922077919]
["36","Bydlení, komunální služby a územní rozvoj","3632","Pohřebnictví","5169","Nákup ostatních služeb","0363200025","Pohřebnictví-úprava interiéru SOS čp.934",300,300,87.724999999999994,212.27500000000001,29.241666666666667]
["36","Bydlení, komunální služby a územní rozvoj","3632","Pohřebnictví","5171","Opravy a udržování","0363200012","Hřbitov-opravy pomníků",16,16,8.7119999999999997,7.2880000000000003,54.45]
["36","Bydlení, komunální služby a územní rozvoj","3632","Pohřebnictví","5171","Opravy a udržování","0363200014","Hřbitov,UH- opravy",50,50,12.1905,37.8095,24.381]
["36","Bydlení, komunální služby a územní rozvoj","3632","Pohřebnictví","5171","Opravy a udržování","0363200024","Hřbitov-lakování cest",100,100,0,100,0]
["36","Bydlení, komunální služby a územní rozvoj","3632","Pohřebnictví","5171","Opravy a udržování","0363200025","Pohřebnictví-úprava interiéru SOS čp.934",250,250,137.40638999999999,112.59361,54.962555999999999]
["36","Bydlení, komunální služby a územní rozvoj","3632","Pohřebnictví","5811","Výdaje na náhrady za nezpůsobenou újmu","0363200011","Pohřebnictví-náklady za cizí zesnulé",150,250,115.502,134.49799999999999,46.200800000000001]
["36","Bydlení, komunální služby a územní rozvoj","3635","Územní plánování","5169","Nákup ostatních služeb","0363500010","Komise pro architekturu a urbanismus",400,400,219.01,180.99,54.752499999999998]
["36","Bydlení, komunální služby a územní rozvoj","3635","Územní plánování","5169","Nákup ostatních služeb","0363500013","Koordinátor investic, KAU a územního plánování",500,500,180,320,36]
["36","Bydlení, komunální služby a územní rozvoj","3639","Komunální služby a územní rozvoj jinde nezařazené","5042","Odměny za užití počítačových programů","0000000999","Komunální služby-participativní rozpočet-licence program",10,10,0,10,0]
["36","Bydlení, komunální služby a územní rozvoj","3639","Komunální služby a územní rozvoj jinde nezařazené","5122","Podlimitní věcná břemena","0363900002","Geodetické práce, znalecké posudky",0,70,45.711210000000001,24.288789999999999,65.301728571428569]
["36","Bydlení, komunální služby a územní rozvoj","3639","Komunální služby a územní rozvoj jinde nezařazené","5137","Drobný dlouhodobý hmotný majetek","0363900022","Komunální služby-vývěsky(DDHM)",80,80,8.7909199999999998,71.20908,10.98865]
["36","Bydlení, komunální služby a územní rozvoj","3639","Komunální služby a územní rozvoj jinde nezařazené","5164","Nájemné","0363900001","Komunál.služby-nájemné za užívané pozemky",140,140,106.07299999999999,33.927,75.766428571428577]
["36","Bydlení, komunální služby a územní rozvoj","3639","Komunální služby a územní rozvoj jinde nezařazené","5166","Konzultační, poradenské a právní služby","0363900038","Komunální služby-ZTV Kletečná studie",100,100,0,100,0]
["36","Bydlení, komunální služby a územní rozvoj","3639","Komunální služby a územní rozvoj jinde nezařazené","5166","Konzultační, poradenské a právní služby","0363900042","Komunální služby-územní studie",500,500,0,500,0]
["36","Bydlení, komunální služby a územní rozvoj","3639","Komunální služby a územní rozvoj jinde nezařazené","5166","Konzultační, poradenské a právní služby","0363900043","Komunální služby-územní studie Plačkov",500,500,0,500,0]
["36","Bydlení, komunální služby a územní rozvoj","3639","Komunální služby a územní rozvoj jinde nezařazené","5166","Konzultační, poradenské a právní služby","0363900045","Komunální služby-studie revitalizace Horního a Dolního náměstí",1000,1000,0,1000,0]
["36","Bydlení, komunální služby a územní rozvoj","3639","Komunální služby a územní rozvoj jinde nezařazené","5168","Zpracování dat a služby související s informačními a komunikačnímni technologiemi","0363900005","Aktualizace a správa map DTTM a pasportů",600,600,380.52996999999999,219.47003000000001,63.421661666666665]
["36","Bydlení, komunální služby a územní rozvoj","3639","Komunální služby a územní rozvoj jinde nezařazené","5168","Zpracování dat a služby související s informačními a komunikačnímni technologiemi","0363900010","Aktualizace dat ÚAP a rozbory",400,400,0,400,0]
["36","Bydlení, komunální služby a územní rozvoj","3639","Komunální služby a územní rozvoj jinde nezařazené","5169","Nákup ostatních služeb","0363900002","Geodetické práce, znalecké posudky",350,500,176.19749999999999,323.80250000000001,35.2395]
["36","Bydlení, komunální služby a územní rozvoj","3639","Komunální služby a územní rozvoj jinde nezařazené","5169","Nákup ostatních služeb","0363900039","Komunální služby-dezinfekce města",100,100,0,100,0]
["36","Bydlení, komunální služby a územní rozvoj","3639","Komunální služby a územní rozvoj jinde nezařazené","5169","Nákup ostatních služeb","0363900044","Komunální služby-manuál veřejného prostranství",500,500,0,500,0]
["36","Bydlení, komunální služby a územní rozvoj","3639","Komunální služby a územní rozvoj jinde nezařazené","5169","Nákup ostatních služeb","0363900046","Komun. služby-Rada dětí a mládeže-příspěvek na zapojení do grant.programu",30,30,0,30,0]
["36","Bydlení, komunální služby a územní rozvoj","3639","Komunální služby a územní rozvoj jinde nezařazené","5171","Opravy a udržování","0363900023","Komunální služby-vývěsky-opravy",60,60,22.207999999999998,37.792000000000002,37.013333333333335]
["36","Bydlení, komunální služby a územní rozvoj","3639","Komunální služby a územní rozvoj jinde nezařazené","5362","Platby daní státnímu rozpočtu","0363900014","Komunální služby-kolky na vklady do KN, popl.ZPF a LPF",50,50,12.548999999999999,37.451000000000001,25.097999999999999]
["36","Bydlení, komunální služby a územní rozvoj","3639","Komunální služby a územní rozvoj jinde nezařazené","5613","Neinvestiční půjčené prostředky nefinančním podnikatelům - PO","0363900041","TS-bezúročná zápůjčka 2023",15000,15000,8000,7000,53.333333333333329]
["36","Bydlení, komunální služby a územní rozvoj","3699","Ostatní záležitosti bydlení, komunálních služeb a územního rozvoje","5179","Ostatní nákupy jinde nezařazené","0369900003","Společnost pro rozvoj Humpolecka-členský příspěvek",0.5,0.5,0,0.5,0]
["36","Bydlení, komunální služby a územní rozvoj","3699","Ostatní záležitosti bydlení, komunálních služeb a územního rozvoje","5179","Ostatní nákupy jinde nezařazené","0369900004","Svaz měst a obcí ČR-členský příspěvek",40,40,39.800840000000001,0.19916,99.502099999999999]
["36","Bydlení, komunální služby a územní rozvoj","3699","Ostatní záležitosti bydlení, komunálních služeb a územního rozvoje","5179","Ostatní nákupy jinde nezařazené","0369900005","Sdružení obcí Vysočiny-členský příspěvek",77,79.400000000000006,79.331000000000003,6.9000000000000006E-2,99.913098236775809]
["36","Bydlení, komunální služby a územní rozvoj","3699","Ostatní záležitosti bydlení, komunálních služeb a územního rozvoje","5179","Ostatní nákupy jinde nezařazené","0369900006","Národní síť zdravých města ČR-členský příspěvek",27,24.6,20.852499999999999,3.7475000000000001,84.766260162601625]
["36","Bydlení, komunální služby a územní rozvoj","3699","Ostatní záležitosti bydlení, komunálních služeb a územního rozvoje","5212","Neinvestiční transfery nefinančním podnikatelům-fyzickým osobám","0369900002","Dotace-soc.sl.-Neuber Jaromír (pojízdná prodejna-provoz)",24.5,24.5,24.5,0,100]
["36","Bydlení, komunální služby a územní rozvoj","3699","Ostatní záležitosti bydlení, komunálních služeb a územního rozvoje","5329","Ostatní neinvestiční transfery veřejným rozpočtům územní úrovně","0369900007","Svazek obcí mikroregionu Zálesí-členský příspěvek",75.186999999999998,128.892,128.892,0,100]
["ODPA(2) 36 Bydlení, komunální služby a územní rozvoj",null,null,null,null,null,null,null,64860.19,65214.19,30294.959999999999,34919.279999999999,46.45]
["37","Ochrana životního prostředí","3722","Sběr a svoz komunálních odpadů","5139","Nákup materiálu jinde nezařazený","0372200001","Sběr a svoz PDO-Nákup kontejnerů a košů, materiál",200,650,433.54399999999998,216.45599999999999,66.69907692307693]
["37","Ochrana životního prostředí","3722","Sběr a svoz komunálních odpadů","5169","Nákup ostatních služeb","0372200002","Sběr a svoz PDO-svoz odpadů (popelnice)-SOMPO",9900,9350,7007.6148000000003,2342.3852000000002,74.947751871657758]
["37","Ochrana životního prostředí","3722","Sběr a svoz komunálních odpadů","5169","Nákup ostatních služeb","0372200003","Sběr a svoz PDO-sběr odpadů",3800,3600,1334.13364,2265.86636,37.059267777777777]
["37","Ochrana životního prostředí","3722","Sběr a svoz komunálních odpadů","5169","Nákup ostatních služeb","0372200004","Sběr a svoz PDO-svoz košů",1500,1500,929.79,570.21,61.985999999999997]
["37","Ochrana životního prostředí","3722","Sběr a svoz komunálních odpadů","5169","Nákup ostatních služeb","0372200005","Provoz uzavřené skládky odpadů",180,180,56.19,123.81,31.216666666666669]
["37","Ochrana životního prostředí","3722","Sběr a svoz komunálních odpadů","5169","Nákup ostatních služeb","0372200007","Odvoz a drcení sutě",50,50,0,50,0]
["37","Ochrana životního prostředí","3722","Sběr a svoz komunálních odpadů","5171","Opravy a udržování","0372200015","Stání-opravy,drobná údržba",50,200,23.056999999999999,176.94300000000001,11.528499999999999]
["37","Ochrana životního prostředí","3722","Sběr a svoz komunálních odpadů","5192","Poskytnuté náhrady","0372200018","D2D nádoby",50,50,0,50,0]
["37","Ochrana životního prostředí","3725","Využívání a zneškodňování komunálních odpadů","5154","Elektrická energie","0372500003","Kompostárna-elektrická energie",280,280,87.427580000000006,192.57241999999999,31.224135714285715]
["37","Ochrana životního prostředí","3725","Využívání a zneškodňování komunálních odpadů","5163","Služby peněžních ústavů","0372500004","Kompostárna-pojištění strojů",40,40,9.1950000000000003,30.805,22.987500000000001]
["37","Ochrana životního prostředí","3725","Využívání a zneškodňování komunálních odpadů","5169","Nákup ostatních služeb","0372500005","Kompostárna-provoz",5000,5000,3042.6459500000001,1957.3540499999999,60.852919]
["37","Ochrana životního prostředí","3725","Využívání a zneškodňování komunálních odpadů","5169","Nákup ostatních služeb","0372500010","Odměna za vytříděné složky odpadu",3000,3000,2402.5277000000001,597.47230000000002,80.084256666666661]
["37","Ochrana životního prostředí","3725","Využívání a zneškodňování komunálních odpadů","5171","Opravy a udržování","0372500001","Kompostárna-opravy strojní,stání kontejneru",100,250,122.22,127.78,48.887999999999998]
["37","Ochrana životního prostředí","3733","Monitoring půdy a podzemní vody","5169","Nákup ostatních služeb","0373300001","Monitoring kvality vody a půdy",80,80,8.4820899999999995,71.517910000000001,10.602612499999999]
["37","Ochrana životního prostředí","3744","Protierozní, protilavinová a protipožární ochrana","5169","Nákup ostatních služeb","0374400001","Srážkoměrná stanice-údržba",160,160,5.7917500000000004,154.20824999999999,3.6198437499999998]
["37","Ochrana životního prostředí","3744","Protierozní, protilavinová a protipožární ochrana","5169","Nákup ostatních služeb","0374400004","Povodňový plán-údržba",60,60,42.35,17.649999999999999,70.583333333333343]
["37","Ochrana životního prostředí","3745","Péče o vzhled obcí a veřejnou zeleň","5137","Drobný dlouhodobý hmotný majetek","0374500065","Péče o vzhled obce-květináče",150,150,0,150,0]
["37","Ochrana životního prostředí","3745","Péče o vzhled obcí a veřejnou zeleň","5166","Konzultační, poradenské a právní služby","0374500004","Projekty na výsadbu zeleně",60,60,0,60,0]
["37","Ochrana životního prostředí","3745","Péče o vzhled obcí a veřejnou zeleň","5169","Nákup ostatních služeb","0374500005","Veřejná zeleň (údržba)",5500,5400,3771.163,1628.837,69.836351851851859]
["37","Ochrana životního prostředí","3745","Péče o vzhled obcí a veřejnou zeleň","5169","Nákup ostatních služeb","0374500006","Veřejná zeleň (lesopark - údržba)",200,200,177.94300000000001,22.056999999999999,88.971500000000006]
["37","Ochrana životního prostředí","3745","Péče o vzhled obcí a veřejnou zeleň","5169","Nákup ostatních služeb","0374500007","Veřejná zeleň (park Podhrad)",200,200,0,200,0]
["37","Ochrana životního prostředí","3745","Péče o vzhled obcí a veřejnou zeleň","5169","Nákup ostatních služeb","0374500021","Veřejná zeleň-úklid listí",1200,1200,0,1200,0]
["37","Ochrana životního prostředí","3745","Péče o vzhled obcí a veřejnou zeleň","5169","Nákup ostatních služeb","0374500026","Veřejná zeleň-sečení",4100,4100,2499.4569999999999,1600.5429999999999,60.962365853658532]
["37","Ochrana životního prostředí","3745","Péče o vzhled obcí a veřejnou zeleň","5169","Nákup ostatních služeb","0374500030","Veřejná zeleň-údržba v  MČ",80,80,19.536999999999999,60.463000000000001,24.421250000000001]
["37","Ochrana životního prostředí","3745","Péče o vzhled obcí a veřejnou zeleň","5169","Nákup ostatních služeb","0374500033","Veřejná zeleň-park LTRN",200,200,105.38,94.62,52.69]
["37","Ochrana životního prostředí","3745","Péče o vzhled obcí a veřejnou zeleň","5169","Nákup ostatních služeb","0374500035","Veřejná zeleň-ošetření vzrostlých stromů",200,300,196.303,103.697,65.434333333333328]
["37","Ochrana životního prostředí","3745","Péče o vzhled obcí a veřejnou zeleň","5169","Nákup ostatních služeb","0374500036","Veřejná zeleň-ošetření stromů Stromovka-SFŽP+administrace",30,30,0,30,0]
["37","Ochrana životního prostředí","3745","Péče o vzhled obcí a veřejnou zeleň","5169","Nákup ostatních služeb","0374500084","Park Stromovka-údržba",400,400,240.631,159.369,60.15775]
["37","Ochrana životního prostředí","3745","Péče o vzhled obcí a veřejnou zeleň","5169","Nákup ostatních služeb","0374500088","Veř.zeleň-sečení lesopark Discgolf",250,250,44.855499999999999,205.14449999999999,17.9422]
["37","Ochrana životního prostředí","3745","Péče o vzhled obcí a veřejnou zeleň","5169","Nákup ostatních služeb","0374500102","Veřejná zeleň-výsadby u zálivů kontejn.stání",100,100,0,100,0]
["37","Ochrana životního prostředí","3745","Péče o vzhled obcí a veřejnou zeleň","5169","Nákup ostatních služeb","0374500107","Veřejná zeleň-realizace projektů výsadeb",300,250,0,250,0]
["37","Ochrana životního prostředí","3745","Péče o vzhled obcí a veřejnou zeleň","5169","Nákup ostatních služeb","0374500109","Veřejná zeleň-úpravy sídliště Na Skalce",0,100,0,100,0]
["37","Ochrana životního prostředí","3745","Péče o vzhled obcí a veřejnou zeleň","5171","Opravy a udržování","0374500005","Veřejná zeleň (údržba)",50,50,17.553999999999998,32.445999999999998,35.107999999999997]
["37","Ochrana životního prostředí","3745","Péče o vzhled obcí a veřejnou zeleň","5171","Opravy a udržování","0374500040","Lavičky-opravy a doplnění",200,200,0,200,0]
["37","Ochrana životního prostředí","3745","Péče o vzhled obcí a veřejnou zeleň","5171","Opravy a udržování","0374500108","Parčík ul. Jihlavská",50,50,0,50,0]
["37","Ochrana životního prostředí","3745","Péče o vzhled obcí a veřejnou zeleň","5171","Opravy a udržování","0374500109","Veřejná zeleň-úpravy sídliště Na Skalce",0,100,0,100,0]
["37","Ochrana životního prostředí","3749","Ostatní činnosti k ochraně přírody a krajiny","5139","Nákup materiálu jinde nezařazený","0374900004","Likvidace černých skládek",0,2,0.27600000000000002,1.724,13.8]
["37","Ochrana životního prostředí","3749","Ostatní činnosti k ochraně přírody a krajiny","5169","Nákup ostatních služeb","0374900001","Posudky na ochranu ŽP",80,80,0,80,0]
["37","Ochrana životního prostředí","3749","Ostatní činnosti k ochraně přírody a krajiny","5169","Nákup ostatních služeb","0374900002","Označení památných stromů",30,30,0,30,0]
["37","Ochrana životního prostředí","3749","Ostatní činnosti k ochraně přírody a krajiny","5169","Nákup ostatních služeb","0374900003","Ochrana jírovců",50,50,0,50,0]
["37","Ochrana životního prostředí","3749","Ostatní činnosti k ochraně přírody a krajiny","5169","Nákup ostatních služeb","0374900004","Likvidace černých skládek",50,48,3.8330000000000002,44.167000000000002,7.9854166666666666]
["37","Ochrana životního prostředí","3749","Ostatní činnosti k ochraně přírody a krajiny","5169","Nákup ostatních služeb","0374900006","Naučná stezka Březina",20,0,0,0,0]
["37","Ochrana životního prostředí","3749","Ostatní činnosti k ochraně přírody a krajiny","5171","Opravy a udržování","0374900006","Naučná stezka Březina",40,30,1.73756,28.262440000000002,5.7918666666666665]
["37","Ochrana životního prostředí","3749","Ostatní činnosti k ochraně přírody a krajiny","5171","Opravy a udržování","0374900011","OÚE-Naučná stezka Březina",0,80,0,80,0]
["37","Ochrana životního prostředí","3749","Ostatní činnosti k ochraně přírody a krajiny","5901","Nespecifikované rezervy","0374900010","Rezerva-zlepšení kvality ovzduší-dotace",500,500,0,500,0]
["ODPA(2) 37 Ochrana životního prostředí",null,null,null,null,null,null,null,38490,38690,22583.64,16106.37,58.37]
["39","Ostatní činnosti související se službami pro fyzické osoby","3900","Ostatní činnosti související se službami pro fyzické osoby","5139","Nákup materiálu jinde nezařazený","0000003900","Místní agenda 21",31,31,9.68,21.32,31.2258064516129]
["39","Ostatní činnosti související se službami pro fyzické osoby","3900","Ostatní činnosti související se službami pro fyzické osoby","5164","Nájemné","0000003900","Místní agenda 21",7,7,7,0,100]
["39","Ostatní činnosti související se službami pro fyzické osoby","3900","Ostatní činnosti související se službami pro fyzické osoby","5169","Nákup ostatních služeb","0000003900","Místní agenda 21",30,30,29.27,0.73,97.566666666666677]
["39","Ostatní činnosti související se službami pro fyzické osoby","3900","Ostatní činnosti související se službami pro fyzické osoby","5175","Pohoštění","0000003900","Místní agenda 21",2,2,0.23799999999999999,1.762,11.9]
["ODPA(2) 39 Ostatní činnosti související se službami pro fyzické osoby",null,null,null,null,null,null,null,70,70,46.19,23.81,65.989999999999995]
["43","Sociální služby a společné činnosti v sociálním zabezpečení a politice zaměstnanosti","4341","Sociální pomoc osobám v hmotné nouzi a občanům sociálně nepřizpůsobivým","5169","Nákup ostatních služeb","0434100001","Sociální služby-azylové ubytování",10,10,0,10,0]
["43","Sociální služby a společné činnosti v sociálním zabezpečení a politice zaměstnanosti","4341","Sociální pomoc osobám v hmotné nouzi a občanům sociálně nepřizpůsobivým","5169","Nákup ostatních služeb","0434100002","Sociální služby-sociálně právní ochrana dětí",5,5,0,5,0]
["43","Sociální služby a společné činnosti v sociálním zabezpečení a politice zaměstnanosti","4350","Domovy pro seniory","5223","Neinvestiční transfery církvím a náboženským společnostem","0435000001","Dotace-Domov bl.Bronislavy (provoz)",350,350,350,0,100]
["43","Sociální služby a společné činnosti v sociálním zabezpečení a politice zaměstnanosti","4351","Osobní asistence, pečovatelská služba a podpora samost.bydlení","5223","Neinvestiční transfery církvím a náboženským společnostem","0435100002","Dotace-Obl.charita Jihlava (Diecéze Brno)-registr.soc.terénní s.-U Větrníku",75.8,75.8,75.8,0,100]
["43","Sociální služby a společné činnosti v sociálním zabezpečení a politice zaměstnanosti","4351","Osobní asistence, pečovatelská služba a podpora samost.bydlení","5223","Neinvestiční transfery církvím a náboženským společnostem","0435100004","Dotace-Oblastní charita Havlíčkův Brod -neregistr.soc.služby",127.5,127.5,127.5,0,100]
["43","Sociální služby a společné činnosti v sociálním zabezpečení a politice zaměstnanosti","4351","Osobní asistence, pečovatelská služba a podpora samost.bydlení","5223","Neinvestiční transfery církvím a náboženským společnostem","0435100005","Dotace-Oblastní charita Havlíčkův Brod -dobrovolnictví",10.8,10.8,10.8,0,100]
["43","Sociální služby a společné činnosti v sociálním zabezpečení a politice zaměstnanosti","4351","Osobní asistence, pečovatelská služba a podpora samost.bydlení","5223","Neinvestiční transfery církvím a náboženským společnostem","0435100011","Dotace-Oblastní charita HB-registr.soc.služby-Astra",596.9,596.9,596.9,0,100]
["43","Sociální služby a společné činnosti v sociálním zabezpečení a politice zaměstnanosti","4351","Osobní asistence, pečovatelská služba a podpora samost.bydlení","5223","Neinvestiční transfery církvím a náboženským společnostem","0435100012","Dotace-Oblastní charita HB -registr.soc.služby-Charitní pečovat.sl.",1023.3,1023.3,1023.3,0,100]
["43","Sociální služby a společné činnosti v sociálním zabezpečení a politice zaměstnanosti","4351","Osobní asistence, pečovatelská služba a podpora samost.bydlení","5223","Neinvestiční transfery církvím a náboženským společnostem","0435100013","Dotace-Oblastní charita HB -registr.soc.služby-Charitní domov",41.7,41.7,41.7,0,100]
["43","Sociální služby a společné činnosti v sociálním zabezpečení a politice zaměstnanosti","4351","Osobní asistence, pečovatelská služba a podpora samost.bydlení","5223","Neinvestiční transfery církvím a náboženským společnostem","0435100014","Dotace-Oblastní charita HB -registr.soc.služby-Soc.terap.dílna",121.3,121.3,121.3,0,100]
["43","Sociální služby a společné činnosti v sociálním zabezpečení a politice zaměstnanosti","4351","Osobní asistence, pečovatelská služba a podpora samost.bydlení","5223","Neinvestiční transfery církvím a náboženským společnostem","0435100015","Dotace-Oblastní charita HB -registr.soc.služby-SAS Šipka",256.7,256.7,256.7,0,100]
["43","Sociální služby a společné činnosti v sociálním zabezpečení a politice zaměstnanosti","4351","Osobní asistence, pečovatelská služba a podpora samost.bydlení","5223","Neinvestiční transfery církvím a náboženským společnostem","0435100016","Dotace-Oblastní charita HB -registr.soc.služby-Středisko rané péče",351,351,351,0,100]
["43","Sociální služby a společné činnosti v sociálním zabezpečení a politice zaměstnanosti","4351","Osobní asistence, pečovatelská služba a podpora samost.bydlení","5223","Neinvestiční transfery církvím a náboženským společnostem","0435100017","Dotace-Oblastní charita HB -registr.soc.služby-Centrum osobní asistence",50.2,50.2,50.2,0,100]
["43","Sociální služby a společné činnosti v sociálním zabezpečení a politice zaměstnanosti","4351","Osobní asistence, pečovatelská služba a podpora samost.bydlení","5223","Neinvestiční transfery církvím a náboženským společnostem","0435100018","Dotace-Oblastní charita HB -registr.soc.služby-Domácí hospic.péče",40.700000000000003,40.700000000000003,40.700000000000003,0,100]
["43","Sociální služby a společné činnosti v sociálním zabezpečení a politice zaměstnanosti","4351","Osobní asistence, pečovatelská služba a podpora samost.bydlení","5223","Neinvestiční transfery církvím a náboženským společnostem","0435100019","Dotace-Oblastní charita HB -registr.soc.služby-Občanská poradna",46.2,46.2,46.2,0,100]
["43","Sociální služby a společné činnosti v sociálním zabezpečení a politice zaměstnanosti","4351","Osobní asistence, pečovatelská služba a podpora samost.bydlení","5223","Neinvestiční transfery církvím a náboženským společnostem","0435100021","Dotace-Oblastní charita HB-registr.soc.služby-nízkoprah.zaříz.pro děti a mládež",388.3,388.3,388.3,0,100]
["43","Sociální služby a společné činnosti v sociálním zabezpečení a politice zaměstnanosti","4359","Ostatní služby a činnosti v oblasti sociální péče","5169","Nákup ostatních služeb","0435900001","Festival sociál.služeb FESST",25,50,0,50,0]
["43","Sociální služby a společné činnosti v sociálním zabezpečení a politice zaměstnanosti","4359","Ostatní služby a činnosti v oblasti sociální péče","5175","Pohoštění","0435900001","Festival sociál.služeb FESST",25,0,0,0,0]
["43","Sociální služby a společné činnosti v sociálním zabezpečení a politice zaměstnanosti","4371","Raná péče a sociálně aktivizační služby pro rodiny s dětmi","5222","Neinvestiční transfery spolkům","0437100001","Dotace-Společnost pro ranou péči ČB(provoz)-registr.soc.sl.,raná péče",10.5,10.5,10.5,0,100]
["43","Sociální služby a společné činnosti v sociálním zabezpečení a politice zaměstnanosti","4371","Raná péče a sociálně aktivizační služby pro rodiny s dětmi","5222","Neinvestiční transfery spolkům","0437100002","Dotace-Jimedis,z.s. Jihlava neregistr.soc.služba pro rodiny s dětmi",5,5,5,0,100]
["43","Sociální služby a společné činnosti v sociálním zabezpečení a politice zaměstnanosti","4376","Služby následné péče, terapeutické komunity a kontaktní centra","5222","Neinvestiční transfery spolkům","0437600002","Dotace-Fokus H.Brod (činnost)-dobrovolnictví",36.200000000000003,36.200000000000003,36.200000000000003,0,100]
["43","Sociální služby a společné činnosti v sociálním zabezpečení a politice zaměstnanosti","4376","Služby následné péče, terapeutické komunity a kontaktní centra","5222","Neinvestiční transfery spolkům","0437600003","Dotace-Fokus H.Brod(činnost)-registr.soc.služby-Komunitní tým Pelhřimov",28.7,28.7,28.7,0,100]
["43","Sociální služby a společné činnosti v sociálním zabezpečení a politice zaměstnanosti","4376","Služby následné péče, terapeutické komunity a kontaktní centra","5222","Neinvestiční transfery spolkům","0437600004","Dotace-Fokus H.Brod(činnost)-registr.soc.služby-Centrum duševního zdraví",3.1,3.1,3.1,0,100]
["43","Sociální služby a společné činnosti v sociálním zabezpečení a politice zaměstnanosti","4376","Služby následné péče, terapeutické komunity a kontaktní centra","5222","Neinvestiční transfery spolkům","0437600005","Dotace-Fokus H.Brod(činnost)-registr.soc.služby-Tým podpory zaměstnávání",4.2,4.2,4.2,0,100]
["43","Sociální služby a společné činnosti v sociálním zabezpečení a politice zaměstnanosti","4379","Ostatní služby a činnosti v oblasti sociální prevence","5221","Neinvestiční transfery fundacím, ústavům a obecně prospěšným společnostem","0437900001","Dotace-Háta o.p.s. (registr.sociální služby)",33,33,33,0,100]
["43","Sociální služby a společné činnosti v sociálním zabezpečení a politice zaměstnanosti","4379","Ostatní služby a činnosti v oblasti sociální prevence","5222","Neinvestiční transfery spolkům","0437900003","Dotace-Potravinová banka o.s. (sociální služby)",22.2,22.2,22.2,0,100]
["43","Sociální služby a společné činnosti v sociálním zabezpečení a politice zaměstnanosti","4379","Ostatní služby a činnosti v oblasti sociální prevence","5222","Neinvestiční transfery spolkům","0437900006","Dotace-Medou z.s. (provoz)-registr.soc.sl.",482.3,482.3,482.3,0,100]
["43","Sociální služby a společné činnosti v sociálním zabezpečení a politice zaměstnanosti","4379","Ostatní služby a činnosti v oblasti sociální prevence","5222","Neinvestiční transfery spolkům","0437900007","Dotace-Centrum pro zdravotně postižené (konzultační dny)registr.soc.sl.",13,13,13,0,100]
["43","Sociální služby a společné činnosti v sociálním zabezpečení a politice zaměstnanosti","4379","Ostatní služby a činnosti v oblasti sociální prevence","5222","Neinvestiční transfery spolkům","0437900009","Dotace-Spolek pro lůžk.hospic Mezi stromy,HB (psychoterapeut)reg.s.s.",18.8,18.8,18.8,0,100]
["43","Sociální služby a společné činnosti v sociálním zabezpečení a politice zaměstnanosti","4379","Ostatní služby a činnosti v oblasti sociální prevence","5222","Neinvestiční transfery spolkům","0437900013","Dotace-Medou z.s.-registr.soc.sl.-sociální rehabilitace",300,300,300,0,100]
["43","Sociální služby a společné činnosti v sociálním zabezpečení a politice zaměstnanosti","4379","Ostatní služby a činnosti v oblasti sociální prevence","5222","Neinvestiční transfery spolkům","0437900014","Dotace-Střed Třebíč-reg.soc.sl.-telef.krizová pomoc",5,5,5,0,100]
["43","Sociální služby a společné činnosti v sociálním zabezpečení a politice zaměstnanosti","4379","Ostatní služby a činnosti v oblasti sociální prevence","5222","Neinvestiční transfery spolkům","0437900015","Dotace-Integrační centrum Sasov-reg.soc.sl.-odborné poradenství",20,20,20,0,100]
["43","Sociální služby a společné činnosti v sociálním zabezpečení a politice zaměstnanosti","4379","Ostatní služby a činnosti v oblasti sociální prevence","5222","Neinvestiční transfery spolkům","0437900016","Dotace-Integrační centrum Sasov-reg.soc.sl.-denní stacionář",8.3000000000000007,8.3000000000000007,8.3000000000000007,0,100]
["43","Sociální služby a společné činnosti v sociálním zabezpečení a politice zaměstnanosti","4379","Ostatní služby a činnosti v oblasti sociální prevence","5223","Neinvestiční transfery církvím a náboženským společnostem","0437900010","Dotace-Oblastní charita Diecéze Brno-registr.soc.terénní sl. AL PASO",4.8,4.8,4.8,0,100]
["ODPA(2) 43 Sociální služby a společné činnosti v sociálním zabezpečení a politice zaměstnanosti",null,null,null,null,null,null,null,4540.5,4540.5,4475.5,65,98.57]
["52","Civilní připravenost na krizové stavy","5272","Činnost orgánů krizového řízení na územní úrovni a dalších územních správních úřadů v oblasti krizového řízení","5132","Ochranné pomůcky","0000005270","Civilní připravenost-krizové stavy",5,5,0,5,0]
["52","Civilní připravenost na krizové stavy","5272","Činnost orgánů krizového řízení na územní úrovni a dalších územních správních úřadů v oblasti krizového řízení","5901","Nespecifikované rezervy","0527200001","Rezerva na řešení krizí",100,100,0,100,0]
["52","Civilní připravenost na krizové stavy","5273","Ostatní správa v oblasti krizového řízení","5137","Drobný dlouhodobý hmotný majetek","0000005270","Civilní připravenost-krizové stavy",30,30,0,30,0]
["52","Civilní připravenost na krizové stavy","5273","Ostatní správa v oblasti krizového řízení","5162","Služby elektronických komunikací","0000005270","Civilní připravenost-krizové stavy",35,35,0,35,0]
["52","Civilní připravenost na krizové stavy","5273","Ostatní správa v oblasti krizového řízení","5169","Nákup ostatních služeb","0000005270","Civilní připravenost-krizové stavy",0,82.5,22.584,59.915999999999997,27.374545454545455]
["52","Civilní připravenost na krizové stavy","5273","Ostatní správa v oblasti krizového řízení","5171","Opravy a udržování","0000005270","Civilní připravenost-krizové stavy",100,17.5,3.2679999999999998,14.231999999999999,18.674285714285713]
["52","Civilní připravenost na krizové stavy","5273","Ostatní správa v oblasti krizového řízení","5499","Ostatní neinvestiční transfery fyzickým osobám","0000005270","Civilní připravenost-krizové stavy",17,17,0,17,0]
["ODPA(2) 52 Civilní připravenost na krizové stavy",null,null,null,null,null,null,null,287,287,25.85,261.14999999999998,9.01]
["53","Bezpečnost a veřejný pořádek","5311","Bezpečnost a veřejný pořádek","5137","Drobný dlouhodobý hmotný majetek","0000005311","Kamerový systém",40,40,0,40,0]
["53","Bezpečnost a veřejný pořádek","5311","Bezpečnost a veřejný pořádek","5154","Elektrická energie","0000005311","Kamerový systém",150,150,24.066749999999999,125.93325,16.044499999999999]
["53","Bezpečnost a veřejný pořádek","5311","Bezpečnost a veřejný pořádek","5164","Nájemné","0000005311","Kamerový systém",50,50,19.149999999999999,30.85,38.299999999999997]
["53","Bezpečnost a veřejný pořádek","5311","Bezpečnost a veřejný pořádek","5169","Nákup ostatních služeb","0000005311","Kamerový systém",180,180,1.21,178.79,0.67222222222222217]
["53","Bezpečnost a veřejný pořádek","5311","Bezpečnost a veřejný pořádek","5171","Opravy a udržování","0000005311","Kamerový systém",400,400,206.35638,193.64362,51.589095]
["ODPA(2) 53 Bezpečnost a veřejný pořádek",null,null,null,null,null,null,null,820,820,250.79,569.21,30.58]
["55","Požární ochrana a integrovaný záchranný systém","5512","Požární ochrana-dobrovolná část","5019","Ostatní platy","0000005512","SDH",30,60,34.785380000000004,25.21462,57.975633333333334]
["55","Požární ochrana a integrovaný záchranný systém","5512","Požární ochrana-dobrovolná část","5039","Ostatní povinné pojistné placené zaměstnavatelem","0000005512","SDH",7,7,4.45,2.5499999999999998,63.571428571428569]
["55","Požární ochrana a integrovaný záchranný systém","5512","Požární ochrana-dobrovolná část","5123","Podlimitní technické zhodnocení","0000005512","SDH",0,40,0,40,0]
["55","Požární ochrana a integrovaný záchranný systém","5512","Požární ochrana-dobrovolná část","5132","Ochranné pomůcky","0000005512","SDH",45,45,8.3800000000000008,36.619999999999997,18.62222222222222]
["55","Požární ochrana a integrovaný záchranný systém","5512","Požární ochrana-dobrovolná část","5134","Prádlo, oděv a obuv s výjimkou ochranných pomůcek","0000005512","SDH",45,45,0,45,0]
["55","Požární ochrana a integrovaný záchranný systém","5512","Požární ochrana-dobrovolná část","5136","Knihy a obdobné listinné informační prostředky","0000005512","SDH",1,1,0,1,0]
["55","Požární ochrana a integrovaný záchranný systém","5512","Požární ochrana-dobrovolná část","5137","Drobný dlouhodobý hmotný majetek","0000005512","SDH",150,89.427999999999997,0,89.427999999999997,0]
["55","Požární ochrana a integrovaný záchranný systém","5512","Požární ochrana-dobrovolná část","5137","Drobný dlouhodobý hmotný majetek","0000551201","OÚE Akceschopnost JPO - Kraj Vysočina",0,30.571999999999999,30.571999999999999,0,100]
["55","Požární ochrana a integrovaný záchranný systém","5512","Požární ochrana-dobrovolná část","5139","Nákup materiálu jinde nezařazený","0000005512","SDH",120,120,45.377000000000002,74.623000000000005,37.814166666666665]
["55","Požární ochrana a integrovaný záchranný systém","5512","Požární ochrana-dobrovolná část","5151","Studená voda včetně stočného a úplaty za odvod deštových vod","0000005512","SDH",70,70,16.952000000000002,53.048000000000002,24.217142857142857]
["55","Požární ochrana a integrovaný záchranný systém","5512","Požární ochrana-dobrovolná část","5153","Plyn","0000005512","SDH",900,900,63.434840000000001,836.56515999999999,7.0483155555555559]
["55","Požární ochrana a integrovaný záchranný systém","5512","Požární ochrana-dobrovolná část","5154","Elektrická energie","0000005512","SDH",220,220,62.685609999999997,157.31439,28.493459090909088]
["55","Požární ochrana a integrovaný záchranný systém","5512","Požární ochrana-dobrovolná část","5156","Pohonné hmoty a maziva","0000005512","SDH",175,175,67.764930000000007,107.23506999999999,38.722817142857146]
["55","Požární ochrana a integrovaný záchranný systém","5512","Požární ochrana-dobrovolná část","5161","Poštovní služby","0000005512","SDH",4,4,0,4,0]
["55","Požární ochrana a integrovaný záchranný systém","5512","Požární ochrana-dobrovolná část","5162","Služby elektronických komunikací","0000005512","SDH",3,3,1.5692200000000001,1.4307799999999999,52.307333333333332]
["55","Požární ochrana a integrovaný záchranný systém","5512","Požární ochrana-dobrovolná část","5163","Služby peněžních ústavů","0000005512","SDH",10,10,5.6000000000000001E-2,9.9440000000000008,0.56000000000000005]
["55","Požární ochrana a integrovaný záchranný systém","5512","Požární ochrana-dobrovolná část","5167","Služby školení a vzdělávání","0000005512","SDH",40,40,18.899999999999999,21.1,47.25]
["55","Požární ochrana a integrovaný záchranný systém","5512","Požární ochrana-dobrovolná část","5168","Zpracování dat a služby související s informačními a komunikačnímni technologiemi","0000005512","SDH",3,3,0,3,0]
["55","Požární ochrana a integrovaný záchranný systém","5512","Požární ochrana-dobrovolná část","5169","Nákup ostatních služeb","0000005512","SDH",40,45,42.976140000000001,2.02386,95.502533333333346]
["55","Požární ochrana a integrovaný záchranný systém","5512","Požární ochrana-dobrovolná část","5171","Opravy a udržování","0000005512","SDH",100,55,24.571680000000001,30.428319999999999,44.675781818181818]
["55","Požární ochrana a integrovaný záchranný systém","5512","Požární ochrana-dobrovolná část","5173","Cestovné","0000005512","SDH",3,3,0,3,0]
["55","Požární ochrana a integrovaný záchranný systém","5512","Požární ochrana-dobrovolná část","5175","Pohoštění","0000005512","SDH",10,10,1.9039999999999999,8.0960000000000001,19.04]
["55","Požární ochrana a integrovaný záchranný systém","5512","Požární ochrana-dobrovolná část","5181","Převody vnitřním organizačním jednotkám","0000005512","SDH",0,0,0.124,-0.124,0]
["55","Požární ochrana a integrovaný záchranný systém","5512","Požární ochrana-dobrovolná část","5222","Neinvestiční transfery spolkům","0551200001","Dotace-SDH Humpolec (nájemné)",115,115,115,0,100]
["55","Požární ochrana a integrovaný záchranný systém","5512","Požární ochrana-dobrovolná část","5222","Neinvestiční transfery spolkům","0551200002","Dotace-SDH Kletečná (nájemné)",31.5,31.5,31.5,0,100]
["55","Požární ochrana a integrovaný záchranný systém","5512","Požární ochrana-dobrovolná část","5222","Neinvestiční transfery spolkům","0551200003","Dotace-SDH Hněvkovice (nájem,činnost)",72,72,72,0,100]
["55","Požární ochrana a integrovaný záchranný systém","5512","Požární ochrana-dobrovolná část","5222","Neinvestiční transfery spolkům","0551200005","Dotace-SDH Světlice (nájem,činnost)",102,102,102,0,100]
["55","Požární ochrana a integrovaný záchranný systém","5512","Požární ochrana-dobrovolná část","5222","Neinvestiční transfery spolkům","0551200007","Dotace-SDH Petrovice (nájem)",19.2,19.2,19.2,0,100]
["55","Požární ochrana a integrovaný záchranný systém","5512","Požární ochrana-dobrovolná část","5222","Neinvestiční transfery spolkům","0551200012","Dar RM-SH ČMS-SDH Humpolec-pamětní medaile č.usn 242/13/RM/2023",0,20,20,0,100]
["ODPA(2) 55 Požární ochrana a integrovaný záchranný systém",null,null,null,null,null,null,null,2315.6999999999998,2335.6999999999998,784.2,1551.5,33.57]
["61","Státní moc,státní správa,územní samospráva a politické strany","6112","Zastupitelstva obcí","5019","Ostatní platy","0000006112","Zastupitelstvo města",10,10,4.9260000000000002,5.0739999999999998,49.26]
["61","Státní moc,státní správa,územní samospráva a politické strany","6112","Zastupitelstva obcí","5023","Odměny členů zastupitelstev obcí a krajů","0000006112","Zastupitelstvo města",4087,4087,2589.89,1497.11,63.368974798140442]
["61","Státní moc,státní správa,územní samospráva a politické strany","6112","Zastupitelstva obcí","5031","Povinné pojistné na sociální zabezpečení a příspěvek na státní politiku zaměstnanosti","0000006112","Zastupitelstvo města",713,713,462.73500000000001,250.26499999999999,64.899719495091162]
["61","Státní moc,státní správa,územní samospráva a politické strany","6112","Zastupitelstva obcí","5032","Povinné pojistné na veřejné zdravotní pojištění","0000006112","Zastupitelstvo města",370,370,232.822,137.178,62.924864864864865]
["61","Státní moc,státní správa,územní samospráva a politické strany","6112","Zastupitelstva obcí","5179","Ostatní nákupy jinde nezařazené","0000006112","Zastupitelstvo města",15,15,3.9,11.1,26]
["61","Státní moc,státní správa,územní samospráva a politické strany","6115","Volby do zastupitelstev územních samosprávných celků","5021","Ostatní osobní výdaje","0000006115","Volby-zastupit.obcí a Senátu PČR",0,6.2869999999999999,6.2869999999999999,0,100]
["61","Státní moc,státní správa,územní samospráva a politické strany","6115","Volby do zastupitelstev územních samosprávných celků","5031","Povinné pojistné na sociální zabezpečení a příspěvek na státní politiku zaměstnanosti","0000006115","Volby-zastupit.obcí a Senátu PČR",0,1.56,1.56,0,100]
["61","Státní moc,státní správa,územní samospráva a politické strany","6115","Volby do zastupitelstev územních samosprávných celků","5032","Povinné pojistné na veřejné zdravotní pojištění","0000006115","Volby-zastupit.obcí a Senátu PČR",0,0.56599999999999995,0.56599999999999995,0,100]
["61","Státní moc,státní správa,územní samospráva a politické strany","6118","Volba prezidenta republiky","5019","Ostatní platy","0000098008","Volba prezidenta ČR",10,13.311959999999999,13.311959999999999,0,100]
["61","Státní moc,státní správa,územní samospráva a politické strany","6118","Volba prezidenta republiky","5021","Ostatní osobní výdaje","0000098008","Volba prezidenta ČR",350,402.86700000000002,402.86700000000002,0,100]
["61","Státní moc,státní správa,územní samospráva a politické strany","6118","Volba prezidenta republiky","5031","Povinné pojistné na sociální zabezpečení a příspěvek na státní politiku zaměstnanosti","0000098008","Volba prezidenta ČR",10,4.4640000000000004,4.4640000000000004,0,100]
["61","Státní moc,státní správa,územní samospráva a politické strany","6118","Volba prezidenta republiky","5032","Povinné pojistné na veřejné zdravotní pojištění","0000098008","Volba prezidenta ČR",5,1.62,1.62,0,100]
["61","Státní moc,státní správa,územní samospráva a politické strany","6118","Volba prezidenta republiky","5039","Ostatní povinné pojistné placené zaměstnavatelem","0000098008","Volba prezidenta ČR",5,3.4630000000000001,3.4630000000000001,0,100]
["61","Státní moc,státní správa,územní samospráva a politické strany","6118","Volba prezidenta republiky","5132","Ochranné pomůcky","0000098008","Volba prezidenta ČR",5,0,0,0,0]
["61","Státní moc,státní správa,územní samospráva a politické strany","6118","Volba prezidenta republiky","5139","Nákup materiálu jinde nezařazený","0000098008","Volba prezidenta ČR",30,0,0,0,0]
["61","Státní moc,státní správa,územní samospráva a politické strany","6118","Volba prezidenta republiky","5164","Nájemné","0000098008","Volba prezidenta ČR",30,45.7,45.7,0,100]
["61","Státní moc,státní správa,územní samospráva a politické strany","6118","Volba prezidenta republiky","5169","Nákup ostatních služeb","0000098008","Volba prezidenta ČR",144,73.968999999999994,73.968999999999994,0,100]
["61","Státní moc,státní správa,územní samospráva a politické strany","6118","Volba prezidenta republiky","5173","Cestovné","0000098008","Volba prezidenta ČR",5,7.4240000000000004,7.4240000000000004,0,100]
["61","Státní moc,státní správa,územní samospráva a politické strany","6171","Činnost místní správy","5011","Platy zaměstnanců v pracovním poměru vyjma zaměstnanců na služebních místech","0000006171","Správa MěÚ",30306,31798,19114.974999999999,12683.025,60.113765016667713]
["61","Státní moc,státní správa,územní samospráva a politické strany","6171","Činnost místní správy","5021","Ostatní osobní výdaje","0000006171","Správa MěÚ",1699,1699,840.01400000000001,858.98599999999999,49.44167157151265]
["61","Státní moc,státní správa,územní samospráva a politické strany","6171","Činnost místní správy","5031","Povinné pojistné na sociální zabezpečení a příspěvek na státní politiku zaměstnanosti","0000006171","Správa MěÚ",7731,8101,4908.3549999999996,3192.645,60.589495124058757]
["61","Státní moc,státní správa,územní samospráva a politické strany","6171","Činnost místní správy","5032","Povinné pojistné na veřejné zdravotní pojištění","0000006171","Správa MěÚ",2806,2941,1795.4939999999999,1145.5060000000001,61.050459027541656]
["61","Státní moc,státní správa,územní samospráva a politické strany","6171","Činnost místní správy","5038","Pojistné na zákonné pojištění odpovědnosti zaměstnavatele za škodu při pracovním úrazu nebo nemoci z povolání","0000006171","Správa MěÚ",130,130,91.272180000000006,38.727820000000001,70.209369230769227]
["61","Státní moc,státní správa,územní samospráva a politické strany","6171","Činnost místní správy","5041","Odměny za užití duševního vlastnictví","0000006171","Správa MěÚ",4,4,4.6800000000000001E-2,3.9531999999999998,1.17]
["61","Státní moc,státní správa,územní samospráva a politické strany","6171","Činnost místní správy","5042","Odměny za užití počítačových programů","0000006171","Správa MěÚ",2100,2100,1750.7655400000001,349.23446000000001,83.369787619047614]
["61","Státní moc,státní správa,územní samospráva a politické strany","6171","Činnost místní správy","5132","Ochranné pomůcky","0000006171","Správa MěÚ",20,20,0,20,0]
["61","Státní moc,státní správa,územní samospráva a politické strany","6171","Činnost místní správy","5134","Prádlo, oděv a obuv s výjimkou ochranných pomůcek","0000006171","Správa MěÚ",30,30,1.35,28.65,4.5]
["61","Státní moc,státní správa,územní samospráva a politické strany","6171","Činnost místní správy","5136","Knihy a obdobné listinné informační prostředky","0000000202","Osadní výbory",5,5,0,5,0]
["61","Státní moc,státní správa,územní samospráva a politické strany","6171","Činnost místní správy","5136","Knihy a obdobné listinné informační prostředky","0000006171","Správa MěÚ",60,60,31.37,28.63,52.283333333333331]
["61","Státní moc,státní správa,územní samospráva a politické strany","6171","Činnost místní správy","5137","Drobný dlouhodobý hmotný majetek","0000000202","Osadní výbory",150,150,17.724,132.27600000000001,11.816000000000001]
["61","Státní moc,státní správa,územní samospráva a politické strany","6171","Činnost místní správy","5137","Drobný dlouhodobý hmotný majetek","0000006171","Správa MěÚ",870,1070,464.93891000000002,605.06109000000004,43.452234579439249]
["61","Státní moc,státní správa,územní samospráva a politické strany","6171","Činnost místní správy","5139","Nákup materiálu jinde nezařazený","0000000202","Osadní výbory",135,135,47.281999999999996,87.718000000000004,35.023703703703703]
["61","Státní moc,státní správa,územní samospráva a politické strany","6171","Činnost místní správy","5139","Nákup materiálu jinde nezařazený","0000006171","Správa MěÚ",700,700,637.63180999999997,62.368189999999998,91.090258571428578]
["61","Státní moc,státní správa,územní samospráva a politické strany","6171","Činnost místní správy","5151","Studená voda včetně stočného a úplaty za odvod deštových vod","0000000202","Osadní výbory",20,20,1.71,18.29,8.5500000000000007]
["61","Státní moc,státní správa,územní samospráva a politické strany","6171","Činnost místní správy","5151","Studená voda včetně stočného a úplaty za odvod deštových vod","0000006171","Správa MěÚ",100,100,72.888000000000005,27.111999999999998,72.888000000000005]
["61","Státní moc,státní správa,územní samospráva a politické strany","6171","Činnost místní správy","5152","Teplo","0000006171","Správa MěÚ",20,20,0,20,0]
["61","Státní moc,státní správa,územní samospráva a politické strany","6171","Činnost místní správy","5153","Plyn","0000006171","Správa MěÚ",1200,1200,435.68601999999998,764.31398000000002,36.307168333333337]
["61","Státní moc,státní správa,územní samospráva a politické strany","6171","Činnost místní správy","5154","Elektrická energie","0000000202","Osadní výbory",410,410,226.07875000000001,183.92124999999999,55.141158536585372]
["61","Státní moc,státní správa,územní samospráva a politické strany","6171","Činnost místní správy","5154","Elektrická energie","0000006171","Správa MěÚ",1350,1350,780.32710999999995,569.67289000000005,57.802008148148154]
["61","Státní moc,státní správa,územní samospráva a politické strany","6171","Činnost místní správy","5155","Pevná paliva","0000000202","Osadní výbory",40,40,0,40,0]
["61","Státní moc,státní správa,územní samospráva a politické strany","6171","Činnost místní správy","5156","Pohonné hmoty a maziva","0000000202","Osadní výbory",5,5,0,5,0]
["61","Státní moc,státní správa,územní samospráva a politické strany","6171","Činnost místní správy","5156","Pohonné hmoty a maziva","0000006171","Správa MěÚ",80,80,47.45252,32.54748,59.315649999999998]
["61","Státní moc,státní správa,územní samospráva a politické strany","6171","Činnost místní správy","5161","Poštovní služby","0000006171","Správa MěÚ",900,880,603.24440000000004,276.75560000000002,68.5505]
["61","Státní moc,státní správa,územní samospráva a politické strany","6171","Činnost místní správy","5162","Služby elektronických komunikací","0000000202","Osadní výbory",40,40,26.241,13.759,65.602500000000006]
["61","Státní moc,státní správa,územní samospráva a politické strany","6171","Činnost místní správy","5162","Služby elektronických komunikací","0000006171","Správa MěÚ",350,350,179.82534999999999,170.17465000000001,51.378671428571437]
["61","Státní moc,státní správa,územní samospráva a politické strany","6171","Činnost místní správy","5163","Služby peněžních ústavů","0000006171","Správa MěÚ",100,100,50.012,49.988,50.012]
["61","Státní moc,státní správa,územní samospráva a politické strany","6171","Činnost místní správy","5164","Nájemné","0000006171","Správa MěÚ",30,142,12.496,129.50399999999999,8.8000000000000007]
["61","Státní moc,státní správa,územní samospráva a politické strany","6171","Činnost místní správy","5166","Konzultační, poradenské a právní služby","0000006171","Správa MěÚ",400,400,201.51805999999999,198.48194000000001,50.379514999999998]
["61","Státní moc,státní správa,územní samospráva a politické strany","6171","Činnost místní správy","5167","Služby školení a vzdělávání","0000006171","Správa MěÚ",400,552,359.5634,192.4366,65.138297101449268]
["61","Státní moc,státní správa,územní samospráva a politické strany","6171","Činnost místní správy","5167","Služby školení a vzdělávání","0617100010","Správa MěÚ-projekt-efektivní a komunikativní úřad",250,70,70,0,100]
["61","Státní moc,státní správa,územní samospráva a politické strany","6171","Činnost místní správy","5167","Služby školení a vzdělávání","0617100035","OÚE-Kraj Vys.-neinv.dotace ICT 2023-Školení Digitální gramotnost",0,28,0,28,0]
["61","Státní moc,státní správa,územní samospráva a politické strany","6171","Činnost místní správy","5168","Zpracování dat a služby související s informačními a komunikačnímni technologiemi","0000000202","Osadní výbory",5,5,0,5,0]
["61","Státní moc,státní správa,územní samospráva a politické strany","6171","Činnost místní správy","5168","Zpracování dat a služby související s informačními a komunikačnímni technologiemi","0000006171","Správa MěÚ",1905,1905,1137.9478799999999,767.05211999999995,59.7347968503937]
["61","Státní moc,státní správa,územní samospráva a politické strany","6171","Činnost místní správy","5169","Nákup ostatních služeb","0000000202","Osadní výbory",15,35,19.51764,15.48236,55.764685714285712]
["61","Státní moc,státní správa,územní samospráva a politické strany","6171","Činnost místní správy","5169","Nákup ostatních služeb","0000006171","Správa MěÚ",4800,4780,2983.0023200000001,1796.9976799999999,62.405906276150631]
["61","Státní moc,státní správa,územní samospráva a politické strany","6171","Činnost místní správy","5169","Nákup ostatních služeb","0617100004","Zpracování vizuálu města a PO",400,400,0,400,0]
["61","Státní moc,státní správa,územní samospráva a politické strany","6171","Činnost místní správy","5171","Opravy a udržování","0000000202","Osadní výbory",540,540,5.6180300000000001,534.38197000000002,1.040375925925926]
["61","Státní moc,státní správa,územní samospráva a politické strany","6171","Činnost místní správy","5171","Opravy a udržování","0000006171","Správa MěÚ",500,500,276.80903000000001,223.19096999999999,55.361806000000001]
["61","Státní moc,státní správa,územní samospráva a politické strany","6171","Činnost místní správy","5171","Opravy a udržování","0617100005","Správa MěÚ-metropolitní síť",100,100,0,100,0]
["61","Státní moc,státní správa,územní samospráva a politické strany","6171","Činnost místní správy","5171","Opravy a udržování","0617100030","Správa MěÚ-oprava severní fasády čp 300 a střešních prvků (PD)",300,300,0,300,0]
["61","Státní moc,státní správa,územní samospráva a politické strany","6171","Činnost místní správy","5171","Opravy a udržování","0617100034","Správa MěÚ-úpravy Finanční úřad (kanceláře)",0,370,0,370,0]
["61","Státní moc,státní správa,územní samospráva a politické strany","6171","Činnost místní správy","5172","Podlimitní programové vybavení","0000006171","Správa MěÚ",160,160,56.393259999999998,103.60674,35.245787499999999]
["61","Státní moc,státní správa,územní samospráva a politické strany","6171","Činnost místní správy","5173","Cestovné","0000006171","Správa MěÚ",60,60,22.448989999999998,37.551009999999998,37.414983333333332]
["61","Státní moc,státní správa,územní samospráva a politické strany","6171","Činnost místní správy","5175","Pohoštění","0000000202","Osadní výbory",180,200,79.861999999999995,120.13800000000001,39.930999999999997]
["61","Státní moc,státní správa,územní samospráva a politické strany","6171","Činnost místní správy","5175","Pohoštění","0000006171","Správa MěÚ",200,200,89.036140000000003,110.96386,44.518070000000002]
["61","Státní moc,státní správa,územní samospráva a politické strany","6171","Činnost místní správy","5179","Ostatní nákupy jinde nezařazené","0000006171","Správa MěÚ",186,186,69,117,37.096774193548391]
["61","Státní moc,státní správa,územní samospráva a politické strany","6171","Činnost místní správy","5182","Převody vlastní pokladně",null,null,0,0,101.343,-101.343,0]
["61","Státní moc,státní správa,územní samospráva a politické strany","6171","Činnost místní správy","5182","Převody vlastní pokladně","0000000201","Městský úřad",0,0,89.924999999999997,-89.924999999999997,0]
["61","Státní moc,státní správa,územní samospráva a politické strany","6171","Činnost místní správy","5192","Poskytnuté náhrady","0000006171","Správa MěÚ",50,50,30,20,60]
["61","Státní moc,státní správa,územní samospráva a politické strany","6171","Činnost místní správy","5194","Výdaje na věcné dary","0000006171","Správa MěÚ",250,250,87.433000000000007,162.56700000000001,34.973199999999999]
["61","Státní moc,státní správa,územní samospráva a politické strany","6171","Činnost místní správy","5195","Odvody za neplnění povinnosti zaměstnávat zdravotně postižené","0000006171","Správa MěÚ",80,80,68.786000000000001,11.214,85.982500000000002]
["61","Státní moc,státní správa,územní samospráva a politické strany","6171","Činnost místní správy","5362","Platby daní státnímu rozpočtu","0000006171","Správa MěÚ",25,25,5.5,19.5,22]
["61","Státní moc,státní správa,územní samospráva a politické strany","6171","Činnost místní správy","5424","Náhrady mezd a příspěvky v době nemoci nebo karantény","0000006171","Správa MěÚ",450,450,217.89500000000001,232.10499999999999,48.421111111111117]
["61","Státní moc,státní správa,územní samospráva a politické strany","6171","Činnost místní správy","5499","Ostatní neinvestiční transfery fyzickým osobám","0000006171","Správa MěÚ",1200,1200,593.33199999999999,606.66800000000001,49.44433333333334]
["61","Státní moc,státní správa,územní samospráva a politické strany","6171","Činnost místní správy","5660","Neinvestiční půjčené prostředky fyzickým osobám","0000006171","Správa MěÚ",40,40,0,40,0]
["ODPA(2) 61 Státní moc,státní správa,územní samospráva a politické strany",null,null,null,null,null,null,null,69676,72322.23,42557.64,29764.63,58.84]
["62","Jiné veřejné služby a činnosti","6221","Humanitární zahraniční pomoc přímá","5137","Drobný dlouhodobý hmotný majetek","0000006221","Humanitární zahraniční pomoc přímá",30,30,0,30,0]
["62","Jiné veřejné služby a činnosti","6221","Humanitární zahraniční pomoc přímá","5139","Nákup materiálu jinde nezařazený","0000006221","Humanitární zahraniční pomoc přímá",20,20,0,20,0]
["62","Jiné veřejné služby a činnosti","6221","Humanitární zahraniční pomoc přímá","5151","Studená voda včetně stočného a úplaty za odvod deštových vod","0000006221","Humanitární zahraniční pomoc přímá",50,50,0,50,0]
["62","Jiné veřejné služby a činnosti","6221","Humanitární zahraniční pomoc přímá","5152","Teplo","0000006221","Humanitární zahraniční pomoc přímá",40,40,0,40,0]
["62","Jiné veřejné služby a činnosti","6221","Humanitární zahraniční pomoc přímá","5153","Plyn","0000006221","Humanitární zahraniční pomoc přímá",20,20,2.3738899999999998,17.626110000000001,11.869450000000001]
["62","Jiné veřejné služby a činnosti","6221","Humanitární zahraniční pomoc přímá","5154","Elektrická energie","0000006221","Humanitární zahraniční pomoc přímá",60,60,-1.40821,61.408209999999997,-2.3470166666666668]
["62","Jiné veřejné služby a činnosti","6221","Humanitární zahraniční pomoc přímá","5169","Nákup ostatních služeb","0000006221","Humanitární zahraniční pomoc přímá",150,150,6.0149999999999997,143.98500000000001,4.01]
["62","Jiné veřejné služby a činnosti","6221","Humanitární zahraniční pomoc přímá","5194","Výdaje na věcné dary","0000006221","Humanitární zahraniční pomoc přímá",20,20,0,20,0]
["62","Jiné veřejné služby a činnosti","6221","Humanitární zahraniční pomoc přímá","5901","Nespecifikované rezervy","0000006221","Humanitární zahraniční pomoc přímá",210,210,0,210,0]
["ODPA(2) 62 Jiné veřejné služby a činnosti",null,null,null,null,null,null,null,600,600,6.98,593.03,1.1599999999999999]
["63","Finanční operace","6310","Obecné příjmy a výdaje z finančních operací","5141","Úroky vlastní","0000006300","Finanční operace",3000,700,606.49959999999999,93.500399999999999,86.642799999999994]
["63","Finanční operace","6310","Obecné příjmy a výdaje z finančních operací","5163","Služby peněžních ústavů","0000006300","Finanční operace",300,300,103.29808,196.70192,34.432693333333333]
["63","Finanční operace","6320","Pojištění funkčně nespecifikované","5163","Služby peněžních ústavů","0000006300","Finanční operace",1200,1200,496.84,703.16,41.403333333333336]
["63","Finanční operace","6399","Ostatní finanční operace","5362","Platby daní státnímu rozpočtu","0000006300","Finanční operace",8000,8000,2327.1959999999999,5672.8040000000001,29.089950000000002]
["63","Finanční operace","6399","Ostatní finanční operace","5365","Platby daní a poplatků krajům, obcím a státním fondům","0000006300","Finanční operace",15000,17339.400000000001,17339.400000000001,0,100]
["63","Finanční operace","6399","Ostatní finanční operace","5901","Nespecifikované rezervy","0639900001","Rezerva pro poskytnutí darů v gesci RM",200,160,0,160,0]
["ODPA(2) 63 Finanční operace",null,null,null,null,null,null,null,27700,27699.4,20873.240000000002,6826.16,75.36]
["64","Ostatní činnosti","6402","Finanční vypořádání","5364","Vratky transferů poskytnutých z veřejných rozpočtů","0000006118","Volba prezidenta ČR",140.21904000000001,140.21904000000001,140.21904000000001,0,100]
["64","Ostatní činnosti","6402","Finanční vypořádání","5364","Vratky transferů poskytnutých z veřejných rozpočtů","0000006400","Finanční vypořádání dotací",25.367000000000001,25.367000000000001,25.367000000000001,0,100]
["64","Ostatní činnosti","6402","Finanční vypořádání","5364","Vratky transferů poskytnutých z veřejných rozpočtů","0622100003","OÚE-Humpolec pomáhá při integraci držitelů dočasné ochrany",50.786999999999999,50.786999999999999,50.786999999999999,0,100]
["64","Ostatní činnosti","6402","Finanční vypořádání","5366","Výdaje z finančního vypořádání  mezi krajem a obcemi","0323300001","SVČ-neinv.průtok.dotace Míčkování anebo zatočíme s rýmou a kašlem",5.843,5.843,5.843,0,100]
["64","Ostatní činnosti","6402","Finanční vypořádání","5366","Výdaje z finančního vypořádání  mezi krajem a obcemi","0341200117","OÚE - Hřiště ve Světlici",52.456000000000003,52.456000000000003,52.456000000000003,0,100]
["64","Ostatní činnosti","6409","Ostatní činnosti jinde nezařazené","5363","Úhrady sankcí jiným rozpočtům","0000006409","Ostatní činnosti jinde nezařazené",19.05,19.05,19.05,0,100]
["64","Ostatní činnosti","6409","Ostatní činnosti jinde nezařazené","5909","Ostatní neinvestiční výdaje jinde nezařazené","0000006409","Ostatní činnosti jinde nezařazené",12.494,12.494,0,12.494,0]
["ODPA(2) 64 Ostatní činnosti",null,null,null,null,null,null,null,306.22000000000003,306.22000000000003,293.73,12.49,95.92]
["Celkem",null,null,null,null,null,null,null,363339.91,361595.54,209531.04,152064.67000000001,57.95]

{"sheet":"KV 082023","index":2,"n_rows":135,"n_cols":13,"rows_kept":135,"cut":false,"hidden":false,"merged":[[133,0,133,7],[134,0,134,7],[43,0,43,7],[51,0,51,7],[53,0,53,7],[124,0,124,7],[108,0,108,7],[58,0,58,7],[77,0,77,7],[117,0,117,7],[119,0,119,7],[122,0,122,7],[8,0,8,7],[29,0,29,7],[0,7,0,12],[0,0,0,6],[4,8,4,12],[2,0,2,12],[1,0,1,6],[1,7,1,12]]}
["00248266 Město Humpolec"]
["Horní náměstí 300 Humpolec"]
["Plnění rozpisu rozpočtu kapitálových výdajů k 31.07.2023 v tisících Kč"]
[]
["ODPA(2)","Popis","ODPA(4)","Popis","POL(4)","Popis","ORG","Popis",2023]
[null,null,null,null,null,null,null,null,"Schválený rozp.","Upravený rozp.","Skutečnost k 31. 08.","Plnění v Kč k UR","Plnění v % k UR"]
["10","Zemědělství, lesní hospodářství a rybářství","1036","Správa v lesním hospodářství","6119","Ostatní nákup dlouhodobého nehmotného majetku","0103600003","Projekt-Lesní hosp.plán město Humpolec",260,260,129.97819999999999,130.02180000000001,49.991615384615386]
["10","Zemědělství, lesní hospodářství a rybářství","1036","Správa v lesním hospodářství","6119","Ostatní nákup dlouhodobého nehmotného majetku","0103600004","Projekt-Lesní hosp.osnovy Humpolecko",740,740,366.02499999999998,373.97500000000002,49.462837837837839]
["ODPA(2) 10 Zemědělství, lesní hospodářství a rybářství",null,null,null,null,null,null,null,1000,1000,496.01,504,49.6]
["22","Doprava","2212","Silnice","6121","Stavby","0221200007","Projekty komunikací",1000,1000,17.850000000000001,982.15,1.7849999999999999]
["22","Doprava","2212","Silnice","6121","Stavby","0221200122","MK Pelhřimovská (PD)",500,500,55.66,444.34,11.132]
["22","Doprava","2212","Silnice","6121","Stavby","0221200125","MK Mánesova (PD)",400,400,0,400,0]
["22","Doprava","2212","Silnice","6121","Stavby","0221200130","MK 5.května (PD)",150,150,0,150,0]
["22","Doprava","2212","Silnice","6121","Stavby","0221200131","MK Hradská (PD)",150,150,0,150,0]
["22","Doprava","2212","Silnice","6121","Stavby","0221200132","Příprava rekonstr.mostu Kletečná (PD)",150,150,0,150,0]
["22","Doprava","2212","Silnice","6121","Stavby","0221200159","MK Vosmíkova (PD)",150,150,0,150,0]
["22","Doprava","2212","Silnice","6121","Stavby","0221200160","Zábradlí na mostku Kletečná (745/1 v k.ú.Kletečná u Humpolce-účelová komunikace 1e)",0,120,0,120,0]
["22","Doprava","2219","Ostatní záležitosti pozemních komunikací","6121","Stavby","0221900001","Studie a projekty chodníků",500,530,20.57,509.43,3.8811320754716983]
["22","Doprava","2219","Ostatní záležitosti pozemních komunikací","6121","Stavby","0221900021","Chodník(lávka)ul. Lužická-podél komunikace III/34771",10000,10000,4800.2631099999999,5199.7368900000001,48.002631100000002]
["22","Doprava","2219","Ostatní záležitosti pozemních komunikací","6121","Stavby","0221900076","MK Hálkova (PD)",200,235,0,235,0]
["22","Doprava","2219","Ostatní záležitosti pozemních komunikací","6121","Stavby","0221900078","Chodník Světlice část A",2800,2800,1012.4358099999999,1787.5641900000001,36.158421785714289]
["22","Doprava","2219","Ostatní záležitosti pozemních komunikací","6121","Stavby","0221900081","Vnitroblok Hálkova x Lnářská (studie)",250,250,0,250,0]
["22","Doprava","2219","Ostatní záležitosti pozemních komunikací","6121","Stavby","0221900082","Stoupací pruh I/34",2000,2000,0,2000,0]
["22","Doprava","2219","Ostatní záležitosti pozemních komunikací","6121","Stavby","0221900083","Prostor mezi kinem a obch.domem (studie)",250,250,0,250,0]
["22","Doprava","2219","Ostatní záležitosti pozemních komunikací","6121","Stavby","0221900084","XXX Zastávka Světlice (stavba)",600,0,0,0,0]
["22","Doprava","2219","Ostatní záležitosti pozemních komunikací","6121","Stavby","0221900085","XXX Zastávka Kletečná (stavba)",600,0,0,0,0]
["22","Doprava","2219","Ostatní záležitosti pozemních komunikací","6121","Stavby","0221900086","Chodník Hněvkovice",6500,6165,949.26547000000005,5215.7345299999997,15.397655636658556]
["22","Doprava","2221","Provoz veřejné silniční dopravy","6121","Stavby","0222100005","Zastávka Světlice (stavba)",0,600,26.75,573.25,4.458333333333333]
["22","Doprava","2221","Provoz veřejné silniční dopravy","6121","Stavby","0222100006","Zastávka Kletečná (stavba)",0,600,26.75,573.25,4.458333333333333]
["ODPA(2) 22 Doprava",null,null,null,null,null,null,null,26200,26050,6909.55,19140.45,26.52]
["23","Vodní hospodářství","2310","Pitná voda","6121","Stavby","0231000045","Posílení vodního zdroje Lhotka-napojení vrtané studny",1000,1000,0,1000,0]
["23","Vodní hospodářství","2310","Pitná voda","6121","Stavby","0231000054","Plán obnovy-vodovod ul.Pražská-Na Kasárnách",7500,7500,44.695,7455.3050000000003,0.59593333333333343]
["23","Vodní hospodářství","2310","Pitná voda","6121","Stavby","0231000055","Vodovod Plačkov,poz.parc.č. 470/5 a 464/1 (PD)",150,150,0,150,0]
["23","Vodní hospodářství","2310","Pitná voda","6121","Stavby","0231000056","Vodovod Pelhřimovská (PD)",250,0,0,0,0]
["23","Vodní hospodářství","2310","Pitná voda","6121","Stavby","0231000060","Rozšíření vodovodu-lokalita zahrádky v Cípku (PD)",0,43,0,43,0]
["23","Vodní hospodářství","2321","Odvádění a čištění odpadních vod a nakládání s kaly","6121","Stavby","0232100048","Dešťová kanalizace ul. Lužická",2500,2500,783.08898999999997,1716.91101,31.323559599999999]
["23","Vodní hospodářství","2321","Odvádění a čištění odpadních vod a nakládání s kaly","6121","Stavby","0232100052","Plán obnovy-kanalizace ul.Pražská-Na Kasárnách",23200,23200,6921.2989900000002,16278.701010000001,29.833185301724136]
["23","Vodní hospodářství","2321","Odvádění a čištění odpadních vod a nakládání s kaly","6121","Stavby","0232100053","Dešťová a splašk.kanalizace ZTV Blanická-Na Závodí-Spojovací (PD)",100,100,0,100,0]
["23","Vodní hospodářství","2321","Odvádění a čištění odpadních vod a nakládání s kaly","6121","Stavby","0232100054","ČOV Humpolec (PD)",6000,6000,0,6000,0]
["23","Vodní hospodářství","2321","Odvádění a čištění odpadních vod a nakládání s kaly","6121","Stavby","0232100055","Kanalizace Plačkov,poz.parc.č. 470/5 a 464/1 (PD)",150,150,0,150,0]
["23","Vodní hospodářství","2321","Odvádění a čištění odpadních vod a nakládání s kaly","6121","Stavby","0232100056","Kanalizace Pelhřimovská (PD)",250,0,0,0,0]
["23","Vodní hospodářství","2341","Vodní díla v zemědělské krajině","6121","Stavby","0234100002","OÚE-Oprava a odbahnění rybníků Velký (p.č.62) a Malý (p.č.61)v k.ú. Petrovice u HU",0,2920,2649.3107300000001,270.68927000000002,90.729819520547949]
["23","Vodní hospodářství","2341","Vodní díla v zemědělské krajině","6121","Stavby","0234100003","OÚE-Oprava a odbahnění rybníka Kamšovák (p.č. 524/1)v k.ú.Petrovice u HU",0,2400,2398.45361,1.5463899999999999,99.935567083333339]
["ODPA(2) 23 Vodní hospodářství",null,null,null,null,null,null,null,41100,45963,12796.85,33166.160000000003,27.84]
["31","Vzdělávání a školské služby","3111","Mateřské školy","6121","Stavby","0311100001","OÚE-Mateřská škola Podhrad v Humpolci",58153,58153,56227.765149999999,1925.2348500000001,96.689362801575157]
["31","Vzdělávání a školské služby","3111","Mateřské školy","6121","Stavby","0311100006","Vybavení školní zahrady MŠ Podhrad",0,325,288.52784000000003,36.472160000000002,88.77779692307692]
["31","Vzdělávání a školské služby","3111","Mateřské školy","6122","Stroje, přístroje a zařízení","0311100004","Vnitřní vybavení MŠ Podhrad",5100,4625,3586.7183,1038.2817,77.550665945945951]
["31","Vzdělávání a školské služby","3111","Mateřské školy","6122","Stroje, přístroje a zařízení","0311100006","Vybavení školní zahrady MŠ Podhrad",0,49,48.924289999999999,7.571E-2,99.845489795918368]
["31","Vzdělávání a školské služby","3111","Mateřské školy","6351","Investiční transfery zřízeným příspěvkovým organizacím","0000000301","Mateřská škola",1350,1350,728.62807999999995,621.37192000000005,53.972450370370375]
["31","Vzdělávání a školské služby","3113","Základní školy","6351","Investiční transfery zřízeným příspěvkovým organizacím","0000000321","ZŠ Hálkova",100,100,41.515999999999998,58.484000000000002,41.515999999999998]
["31","Vzdělávání a školské služby","3113","Základní školy","6351","Investiční transfery zřízeným příspěvkovým organizacím","0000000322","ZŠ Hradská",500,720,500,220,69.444444444444443]
["ODPA(2) 31 Vzdělávání a školské služby",null,null,null,null,null,null,null,65203,65322,61422.09,3899.91,94.03]
["32","Vzdělávání a školské služby","3233","Střediska volného času","6351","Investiční transfery zřízeným příspěvkovým organizacím","0000000325","SVČ",500,860,127.495,732.505,14.824999999999999]
["ODPA(2) 32 Vzdělávání a školské služby",null,null,null,null,null,null,null,500,860,127.5,732.51,14.83]
["33","Kultura, církve a sdělovací prostředky","3319","Ostatní záležitosti kultury","6121","Stavby","0331900018","Spolkový dům č.p.59-výkup",14050,14050,14050,0,100]
["33","Kultura, církve a sdělovací prostředky","3319","Ostatní záležitosti kultury","6351","Investiční transfery zřízeným příspěvkovým organizacím","0000000376","MěKIS",4680,4680,0,4680,0]
["33","Kultura, církve a sdělovací prostředky","3322","Zachování a obnova kulturních památek","6121","Stavby","0332200022","Hrad Orlík - zastropení sklepení",400,400,8.6430000000000007,391.35700000000003,2.1607500000000002]
["33","Kultura, církve a sdělovací prostředky","3326","Pořízení, zachování a obnova hodnot místního kulturního, národního a historického povědomí","6121","Stavby","0332600031","Kaplička Vilémov zvonění-elektrifikace",150,150,145.48624000000001,4.5137600000000004,96.990826666666663]
["ODPA(2) 33 Kultura, církve a sdělovací prostředky",null,null,null,null,null,null,null,19280,19280,14204.13,5075.87,73.67]
["34","Sport a zájmová činnost","3412","Sportovní zařízení ve vlastnictví obce","6121","Stavby","0341200015","Městská hřiště - herní prvky",600,600,109.8801,490.11989999999997,18.31335]
["34","Sport a zájmová činnost","3412","Sportovní zařízení ve vlastnictví obce","6121","Stavby","0341200091","Fotbal.stadion-rekonstr.stupňů a plochy",10000,10000,125,9875,1.25]
["34","Sport a zájmová činnost","3412","Sportovní zařízení ve vlastnictví obce","6121","Stavby","0341200096","Hřiště Hněvkovice (PD)",250,250,85,165,34]
["34","Sport a zájmová činnost","3412","Sportovní zařízení ve vlastnictví obce","6121","Stavby","0341200097","Hřiště Krasoňov (PD)",250,250,0,250,0]
["34","Sport a zájmová činnost","3412","Sportovní zařízení ve vlastnictví obce","6121","Stavby","0341200102","Zakrytí mantinelů ZS",200,200,0,200,0]
["34","Sport a zájmová činnost","3412","Sportovní zařízení ve vlastnictví obce","6121","Stavby","0341200114","Sestava kontejnerů-šatny fotbal-Okružní ul.",2200,2200,2153.9784199999999,46.02158,97.908109999999994]
["34","Sport a zájmová činnost","3412","Sportovní zařízení ve vlastnictví obce","6121","Stavby","0341200116","Pumpskatetrack-dráha-plocha po LC",750,750,721.76499999999999,28.234999999999999,96.235333333333344]
["34","Sport a zájmová činnost","3412","Sportovní zařízení ve vlastnictví obce","6121","Stavby","0341200126","Fotbal.stadion-rekonstr.zázemí (studie)",250,250,0,250,0]
["34","Sport a zájmová činnost","3412","Sportovní zařízení ve vlastnictví obce","6121","Stavby","0341200127","Rekonstrukce sportovní haly TJ JISKRA (PD)",1000,1000,0,1000,0]
["34","Sport a zájmová činnost","3412","Sportovní zařízení ve vlastnictví obce","6121","Stavby","0341200128","ZS vstupní dveře pokladna",0,200,154.36152999999999,45.638469999999998,77.180764999999994]
["34","Sport a zájmová činnost","3412","Sportovní zařízení ve vlastnictví obce","6121","Stavby","0341200129","Dětské hřiště Smetanova-opatření proti vandalismu (oplocení)",500,500,0,500,0]
["34","Sport a zájmová činnost","3412","Sportovní zařízení ve vlastnictví obce","6121","Stavby","0341200133","Tenisová hala Hradská-výměna osvětlení (LED)",1500,1470,0,1470,0]
["34","Sport a zájmová činnost","3412","Sportovní zařízení ve vlastnictví obce","6122","Stroje, přístroje a zařízení","0341200121","Vybavení sportovišť-místní části",50,50,0,50,0]
["34","Sport a zájmová činnost","3412","Sportovní zařízení ve vlastnictví obce","6122","Stroje, přístroje a zařízení","0341200122","Vybavení sportovišť-město",50,50,0,50,0]
["34","Sport a zájmová činnost","3412","Sportovní zařízení ve vlastnictví obce","6122","Stroje, přístroje a zařízení","0341200128","ZS vstupní dveře pokladna",200,0,0,0,0]
["34","Sport a zájmová činnost","3412","Sportovní zařízení ve vlastnictví obce","6122","Stroje, přístroje a zařízení","0341200130","Rezervní čerpadlo Žabák",200,200,0,200,0]
["34","Sport a zájmová činnost","3412","Sportovní zařízení ve vlastnictví obce","6122","Stroje, přístroje a zařízení","0341200131","Vybavení šaten fotb.stadion",500,500,0,500,0]
["34","Sport a zájmová činnost","3412","Sportovní zařízení ve vlastnictví obce","6122","Stroje, přístroje a zařízení","0341200132","Žabák digitální ukazatel tepl.vody,ovzduší,času",200,230,229.02184,0.97816000000000003,99.574713043478269]
["ODPA(2) 34 Sport a zájmová činnost",null,null,null,null,null,null,null,18700,18700,3579.01,15121,19.14]
["36","Bydlení, komunální služby a územní rozvoj","3612","Bytové hospodářství","6121","Stavby","0000001903","BHS-celk.rekonstrukce bytů čp.19",600,600,0,600,0]
["36","Bydlení, komunální služby a územní rozvoj","3612","Bytové hospodářství","6121","Stavby","0000007303","Byt.hosp.-celk.rekonstr. bytů čp 73",600,600,0,600,0]
["36","Bydlení, komunální služby a územní rozvoj","3612","Bytové hospodářství","6121","Stavby","0000007403","BHS-celk.rekonstrukce bytů čp.74",400,400,0,400,0]
["36","Bydlení, komunální služby a územní rozvoj","3612","Bytové hospodářství","6121","Stavby","0000073004","BHS-výtah Školní čp.730 (PD)",3000,3000,50,2950,1.6666666666666667]
["36","Bydlení, komunální služby a územní rozvoj","3612","Bytové hospodářství","6121","Stavby","0000073005","BHS-odizol.zdiva čp.730",500,500,0,500,0]
["36","Bydlení, komunální služby a územní rozvoj","3612","Bytové hospodářství","6121","Stavby","0000131303","BHS-celk.rekonstrukce bytů čp.1313",600,600,0,600,0]
["36","Bydlení, komunální služby a územní rozvoj","3612","Bytové hospodářství","6121","Stavby","0000132603","BHS-celk.rekonstrukce bytů čp.1326",600,600,237.09549999999999,362.90449999999998,39.515916666666669]
["36","Bydlení, komunální služby a územní rozvoj","3612","Bytové hospodářství","6121","Stavby","0000160703","BHS-rekonstrukce bytů čp.1607",600,600,0,600,0]
["36","Bydlení, komunální služby a územní rozvoj","3612","Bytové hospodářství","6121","Stavby","0361200013","Byt.hosp.-bytový dům Hálkova (PD)",3500,3500,72.599999999999994,3427.4,2.0742857142857143]
["36","Bydlení, komunální služby a územní rozvoj","3612","Bytové hospodářství","6121","Stavby","0361200016","Byt.hosp.-ZTV Podkova (PD)",800,800,0,800,0]
["36","Bydlení, komunální služby a územní rozvoj","3613","Nebytové hospodářství","6121","Stavby","0361300148","Nebyt.-čp.803 LTRN-izolace zdiva",250,250,0,250,0]
["36","Bydlení, komunální služby a územní rozvoj","3613","Nebytové hospodářství","6121","Stavby","0361300175","Nebyt.hosp.-čp.885-rekonstrukce ordinace",500,500,0,500,0]
["36","Bydlení, komunální služby a územní rozvoj","3613","Nebytové hospodářství","6121","Stavby","0361300185","Nebyt.hosp.-rekonstrukce budov OV (studie)",500,500,0,500,0]
["36","Bydlení, komunální služby a územní rozvoj","3613","Nebytové hospodářství","6121","Stavby","0361300186","Nebyt.hosp.-budova u hřiště v Plačkově (studie)",400,400,27.591999999999999,372.40800000000002,6.8979999999999997]
["36","Bydlení, komunální služby a územní rozvoj","3613","Nebytové hospodářství","6121","Stavby","0361300187","Nebyt.hosp.-výměna oken-chata Bělice",50,50,49.61,0.39,99.22]
["36","Bydlení, komunální služby a územní rozvoj","3613","Nebytové hospodářství","6121","Stavby","0361300188","Nebyt.-Altán Stromovka-modernizace",0,350,84.155500000000004,265.84449999999998,24.044428571428572]
["36","Bydlení, komunální služby a územní rozvoj","3613","Nebytové hospodářství","6121","Stavby","0361300190","Budova čp.86 Hněvk. a příslušenství (pozemky st.84/1 a p.č.811 kú Hněvkovice u Humpolce)",0,3450,2596.4543399999998,853.54566,75.259546086956519]
["36","Bydlení, komunální služby a územní rozvoj","3613","Nebytové hospodářství","6121","Stavby","0361300191","Nebyt.hosp.-Rampa OV Vilémov (246/9 v k.ú.Vilémov u Humpolce)",0,150,0,150,0]
["36","Bydlení, komunální služby a územní rozvoj","3613","Nebytové hospodářství","6121","Stavby","0361300192","Nebyt.hosp.-Sanace vlhkého zdiva OV Krasoňov",0,500,23.594999999999999,476.40499999999997,4.7190000000000003]
["36","Bydlení, komunální služby a územní rozvoj","3631","Veřejné osvětlení","6121","Stavby","0363100012","VO nové akce (PD)",100,100,0,100,0]
["36","Bydlení, komunální služby a územní rozvoj","3631","Veřejné osvětlení","6121","Stavby","0363100043","VO Hněvkovice",1500,1500,0,1500,0]
["36","Bydlení, komunální služby a územní rozvoj","3631","Veřejné osvětlení","6121","Stavby","0363100059","VO nové akce",600,600,288.17344000000003,311.82655999999997,48.028906666666671]
["36","Bydlení, komunální služby a územní rozvoj","3631","Veřejné osvětlení","6121","Stavby","0363100062","VO ul. Lužická",2500,2500,816.68885999999998,1683.31114,32.6675544]
["36","Bydlení, komunální služby a územní rozvoj","3631","Veřejné osvětlení","6121","Stavby","0363100065","VO Kletečná",250,250,228.88722999999999,21.112770000000001,91.554891999999995]
["36","Bydlení, komunální služby a územní rozvoj","3632","Pohřebnictví","6121","Stavby","0363200016","Pohřebnictví-hřbitov, UH-rekonstrukce cest",1000,50,0,50,0]
["36","Bydlení, komunální služby a územní rozvoj","3632","Pohřebnictví","6121","Stavby","0363200022","Pohřebnictví-přístřešek+cesta-čp.934 SOS (studie)",150,150,0,150,0]
["36","Bydlení, komunální služby a územní rozvoj","3632","Pohřebnictví","6122","Stroje, přístroje a zařízení","0363200026","Pohřebnictví-kuch.linka čp.934 SOS",50,50,48.7,1.3,97.4]
["36","Bydlení, komunální služby a územní rozvoj","3635","Územní plánování","6119","Ostatní nákup dlouhodobého nehmotného majetku","0363500015","Územní plán-příprava nového ÚP",2500,2500,0,2500,0]
["36","Bydlení, komunální služby a územní rozvoj","3639","Komunální služby a územní rozvoj jinde nezařazené","6130","Pozemky","0361300190","Budova čp.86 Hněvk. a příslušenství (pozemky st.84/1 a p.č.811 kú Hněvkovice u Humpolce)",0,1317,1300.703,16.297000000000001,98.762566438876235]
["36","Bydlení, komunální služby a územní rozvoj","3639","Komunální služby a územní rozvoj jinde nezařazené","6130","Pozemky","0363900020","Komunální služby-výkup nemovitostí",10000,6033,1310.9380000000001,4722.0619999999999,21.729454666003647]
["ODPA(2) 36 Bydlení, komunální služby a územní rozvoj",null,null,null,null,null,null,null,31550,32400,7135.2,25264.81,22.02]
["37","Ochrana životního prostředí","3725","Využívání a zneškodňování komunálních odpadů","6121","Stavby","0372500011","Kompostárna-stav.úpravy plochy, likvidace cesty",6000,6000,4147.7640000000001,1852.2360000000001,69.129400000000004]
["37","Ochrana životního prostředí","3745","Péče o vzhled obcí a veřejnou zeleň","6119","Ostatní nákup dlouhodobého nehmotného majetku","0374500104","Digitálně technická mapa města-doplnění pasportu zeleně",500,500,0,500,0]
["37","Ochrana životního prostředí","3745","Péče o vzhled obcí a veřejnou zeleň","6121","Stavby","0374500049","Veř.zeleň-vodní plocha u Dvoráku",700,600,16.224,583.77599999999995,2.7040000000000002]
["37","Ochrana životního prostředí","3745","Péče o vzhled obcí a veřejnou zeleň","6121","Stavby","0374500080","Péče o vzhled obce-protihluková stěna Okružní-Stodůlky",30,30,0,30,0]
["37","Ochrana životního prostředí","3745","Péče o vzhled obcí a veřejnou zeleň","6121","Stavby","0374500083","Péče o vzhled obce-protihluková stěna u D1",300,380,0,380,0]
["37","Ochrana životního prostředí","3745","Péče o vzhled obcí a veřejnou zeleň","6121","Stavby","0374500091","Veřejná zeleň-parkové úpravy Plačkov",100,100,8.702,91.298000000000002,8.702]
["37","Ochrana životního prostředí","3745","Péče o vzhled obcí a veřejnou zeleň","6121","Stavby","0374500105","Veřejná zeleň-pěšina Lnářská",140,160,0,160,0]
["37","Ochrana životního prostředí","3745","Péče o vzhled obcí a veřejnou zeleň","6121","Stavby","0374500106","Veřejná zeleň-závlaha Stromovka",300,300,0,300,0]
["ODPA(2) 37 Ochrana životního prostředí",null,null,null,null,null,null,null,8070,8070,4172.68,3897.32,51.71]
["52","Civilní připravenost na krizové stavy","5273","Ostatní správa v oblasti krizového řízení","6122","Stroje, přístroje a zařízení","0527300001","OÚE-Rozšíř.digit.povodň.plánu a varovného inf.systému pro město Humpolec",10000,10000,76.567999999999998,9923.4320000000007,0.76568000000000003]
["ODPA(2) 52 Civilní připravenost na krizové stavy",null,null,null,null,null,null,null,10000,10000,76.569999999999993,9923.43,0.77]
["53","Bezpečnost a veřejný pořádek","5311","Bezpečnost a veřejný pořádek","6121","Stavby","0531100003","Kamerový systém-nové kamery",100,100,0,100,0]
["53","Bezpečnost a veřejný pořádek","5311","Bezpečnost a veřejný pořádek","6122","Stroje, přístroje a zařízení","0531100003","Kamerový systém-nové kamery",600,600,124.40978,475.59021999999999,20.734963333333333]
["ODPA(2) 53 Bezpečnost a veřejný pořádek",null,null,null,null,null,null,null,700,700,124.41,575.59,17.77]
["55","Požární ochrana a integrovaný záchranný systém","5512","Požární ochrana-dobrovolná část","6121","Stavby","0551200010","Novostavba budovy SDH Humpolec",1200,1200,0,1200,0]
["ODPA(2) 55 Požární ochrana a integrovaný záchranný systém",null,null,null,null,null,null,null,1200,1200,0,1200,0]
["61","Státní moc,státní správa,územní samospráva a politické strany","6171","Činnost místní správy","6111","Programové vybavení","0617100022","Správa MěÚ-Portál občana",150,150,0,150,0]
["61","Státní moc,státní správa,územní samospráva a politické strany","6171","Činnost místní správy","6111","Programové vybavení","0617100031","Správa MěÚ-DMS program-St.úřad",650,650,586.75319999999999,63.2468,90.269723076923086]
["61","Státní moc,státní správa,územní samospráva a politické strany","6171","Činnost místní správy","6119","Ostatní nákup dlouhodobého nehmotného majetku","0617100028","Správa MěÚ-zhotovení www města",400,400,84.7,315.3,21.175000000000001]
["61","Státní moc,státní správa,územní samospráva a politické strany","6171","Činnost místní správy","6119","Ostatní nákup dlouhodobého nehmotného majetku","0617100032","Správa MěÚ-infokiosek u Infocentra Humpolec",105,105,102.85,2.15,97.952380952380949]
["61","Státní moc,státní správa,územní samospráva a politické strany","6171","Činnost místní správy","6121","Stavby","0617100005","Správa MěÚ-metropolitní síť",1000,800,205.23519999999999,594.76480000000004,25.654399999999999]
["61","Státní moc,státní správa,územní samospráva a politické strany","6171","Činnost místní správy","6123","Dopravní prostředky","0617100033","Správa MěÚ-služební auto",600,600,435.8,164.2,72.63333333333334]
["61","Státní moc,státní správa,územní samospráva a politické strany","6171","Činnost místní správy","6125","Informační a komunikační technologie","0617100009","Správa MěÚ-výpočetní technika",610,257,65.073800000000006,191.92619999999999,25.320544747081712]
["61","Státní moc,státní správa,územní samospráva a politické strany","6171","Činnost místní správy","6125","Informační a komunikační technologie","0617100036","OÚE-Kraj Vys.-inv.dotace-ICT 2023-Výměna dosluhujícího databáz.serveru pro IS VERA",0,553,0,553,0]
["ODPA(2) 61 Státní moc,státní správa,územní samospráva a politické strany",null,null,null,null,null,null,null,3515,3515,1480.41,2034.59,42.12]
["Celkem",null,null,null,null,null,null,null,227018,233060,112524.41,120535.64,48.28]

{"sheet":"Výdaje za oddíly","index":3,"n_rows":71,"n_cols":8,"rows_kept":71,"cut":false,"hidden":false,"merged":[[48,0,48,6],[49,2,49,6],[70,0,70,1],[29,2,29,6],[44,0,44,1],[47,0,47,6],[4,2,4,6],[25,0,25,1],[3,0,3,6],[2,0,2,6],[28,0,28,6],[0,0,0,2],[0,3,0,6],[1,0,1,2],[1,3,1,6],[29,0,30,0],[27,0,27,6]]}
["00248266 Město Humpolec"]
["Horní náměstí 300 Humpolec"]
["Plnění běžných výdajů - za oddíly - k 31.08.2023 v tisících Kč"]
["Podmínka: AND POL=5*"]
["ODPA(2)","Popis","2023"]
[null,"Závazné ukazatele - oddíly:","Schválený rozp.","Upravený rozp.","Skutečnost","Plnění v Kč k UR","Plnění v % k UR","Skutečnost k 31.8.2022"]
["10","Zemědělství, lesní hospodářství a rybářství",1580,1580,466.68664999999999,1113.3133499999999,29.537129746835443,718.68745000000001]
["21","Průmysl, stavebnictví, obchod a služby",175,235,25.725999999999999,209.274,10.947234042553191,42.195230000000002]
["22","Doprava",16225,16225,5730.6144199999999,10494.38558,35.319657442218798,5746.9249499999996]
["23","Vodní hospodářství",52044,47444,23292.965749999999,24151.034250000001,49.095703882471973,24458.740099999999]
["31","Vzdělávání a školské služby",28419,28374,23283.39487,5090.6051299999999,82.05890910692888,13249.09245]
["32","Vzdělávání a školské služby",4764,4404,3189.6,1214.4000000000001,72.425068119891009,2143]
["33","Kultura, církve a sdělovací prostředky",25585,25566,13337.223190000001,12228.776809999999,52.167813463193305,10187.05848]
["34","Sport a zájmová činnost",24882.3,24882.3,18012.08455,6870.2154499999997,72.389146300784091,12598.317590000001]
["36","Bydlení, komunální služby a územní rozvoj",64860.186999999998,65214.186999999998,30294.907289999999,34919.279710000003,46.454473610167064,18612.354240000001]
["37","Ochrana životního prostředí",38490,38690,22583.639569999999,16106.360430000001,58.370740682346863,20077.3037]
["39","Ostatní činnosti související se službami pro fyzické osoby",70,70,46.188000000000002,23.812000000000001,65.982857142857142,66.02]
["43","Sociální služby a společné činnosti v sociálním zabezpečení a politice zaměstnanosti",4540.5,4540.5,4475.5,65,98.568439599163085,4095]
["52","Civilní připravenost na krizové stavy",287,287,25.852,261.14800000000002,9.0076655052264805,42.003999999999998]
["53","Bezpečnost a veřejný pořádek",820,820,250.78313,569.21686999999997,30.583308536585367,228.31074000000001]
["55","Požární ochrana a integrovaný záchranný systém",2315.6999999999998,2335.6999999999998,784.20280000000002,1551.4972,33.574637153744064,844.3125]
["61","Státní moc,státní správa,územní samospráva a politické strany",69676,72322.231960000005,42557.616099999999,29764.615860000002,58.844445126552202,37474.960830000004]
["62","Jiné veřejné služby a činnosti",600,600,6.9806800000000004,593.01931999999999,1.1634466666666665,186.72800000000001]
["63","Finanční operace",27700,27699.4,20873.233680000001,6826.1663200000003,75.356266489526845,21340.690399999999]
["64","Ostatní činnosti",306.21604000000002,306.21604000000002,293.72203999999999,12.494,95.919874086282363,165.74199999999999]
["Celkem",null,363339.91,361595.54,209530.91,152064.63,57.95,172277.43]
[]
["Plnění kapitálových výdajů - za oddíly - k 31.08.2023 v tisících Kč"]
["Podmínka: AND POL=6*"]
["ODPA(2)","Popis","2023"]
[null,"Závazné ukazatele - oddíly:","Schválený rozp.","Upravený rozp.","Skutečnost","Plnění v Kč k UR","Plnění v % k UR","Skutečnost k 31.8.2022"]
["10","Zemědělství, lesní hospodářství a rybářství",1000,1000,496.00319999999999,503.99680000000001,49.600320000000004,496.00319999999999]
["22","Doprava",26200,26050,6909.54439,19140.455610000001,26.52416272552783,6909.54439]
["23","Vodní hospodářství",41100,45963,12796.847320000001,33166.152679999999,27.841627657028482,12796.847320000001]
["31","Vzdělávání a školské služby",65203,65322,61422.079660000003,3899.9203400000001,94.029698508925023,61422.079660000003]
["32","Vzdělávání a školské služby",500,860,127.495,732.505,14.824999999999999,127.495]
["33","Kultura, církve a sdělovací prostředky",19280,19280,14204.12924,5075.8707599999998,73.67286950207469,14204.12924]
["34","Sport a zájmová činnost",18700,18700,3579.0068900000001,15120.993109999999,19.139074278074865,3579.0068900000001]
["36","Bydlení, komunální služby a územní rozvoj",31550,32400,7135.1928699999999,25264.807130000001,22.022200216049381,7135.1928699999999]
["37","Ochrana životního prostředí",8070,8070,4172.6899999999996,3897.31,51.706195786864932,4172.6899999999996]
["52","Civilní připravenost na krizové stavy",10000,10000,76.567999999999998,9923.4320000000007,0.76568000000000003,76.567999999999998]
["53","Bezpečnost a veřejný pořádek",700,700,124.40978,575.59022000000004,17.772825714285712,124.40978]
["55","Požární ochrana a integrovaný záchranný systém",1200,1200,0,1200,0]
["61","Státní moc,státní správa,územní samospráva a politické strany",3515,3515,1480.4122,2034.5878,42.116990042674253,1480.4122]
["Celkem",null,227018,233060,112524.38,120535.63,48.28,112524.38]
[]
[]
["Plnění celkových výdajů - za oddíly - k 31.08.2023 v tisících Kč"]
["Podmínka: AND POL je mezi 5000, 6999"]
["ODPA(2)","Popis","2023"]
[null,null,"Schválený rozp.","Upravený rozp.","Skutečnost","Plnění v Kč k UR","Plnění v % k UR","Skutečnost k 31.8.2022"]
["10","Zemědělství, lesní hospodářství a rybářství",2580,2580,962.68984999999998,1617.31015,37.313560077519377,718.68745000000001]
["21","Průmysl, stavebnictví, obchod a služby",175,235,25.725999999999999,209.274,10.947234042553191,42.195230000000002]
["22","Doprava",42425,42275,12640.158810000001,29634.841189999999,29.899843429923123,10608.93633]
["23","Vodní hospodářství",93144,93407,36089.813069999997,57317.186930000003,38.637161101416382,30312.73389]
["31","Vzdělávání a školské služby",93622,93696,84705.474530000007,8990.5254700000005,90.404579202954238,15490.5859]
["32","Vzdělávání a školské služby",5264,5264,3317.0949999999998,1946.905,63.014722644376896,2850.835]
["33","Kultura, církve a sdělovací prostředky",44865,44846,27541.352429999999,17304.647570000001,61.413174931989474,23972.502479999999]
["34","Sport a zájmová činnost",43582.3,43582.3,21591.09144,21991.208559999999,49.540963739866875,18297.607950000001]
["36","Bydlení, komunální služby a územní rozvoj",96410.187000000005,97614.187000000005,37430.100160000002,60184.086840000004,38.344938692159573,24403.97638]
["37","Ochrana životního prostředí",46560,46760,26756.329570000002,20003.670429999998,57.220550834046193,20143.240699999998]
["39","Ostatní činnosti související se službami pro fyzické osoby",70,70,46.188000000000002,23.812000000000001,65.982857142857142,66.02]
["43","Sociální služby a společné činnosti v sociálním zabezpečení a politice zaměstnanosti",4540.5,4540.5,4475.5,65,98.568439599163085,4095]
["52","Civilní připravenost na krizové stavy",10287,10287,102.42,10184.58,0.99562554680664916,42.003999999999998]
["53","Bezpečnost a veřejný pořádek",1520,1520,375.19290999999998,1144.80709,24.68374407894737,340.92665]
["55","Požární ochrana a integrovaný záchranný systém",3515.7,3535.7,784.20280000000002,2751.4971999999998,22.179562745708065,1134.7125000000001]
["61","Státní moc,státní správa,územní samospráva a politické strany",73191,75837.231960000005,44038.028299999998,31799.203659999999,58.069139869487394,38292.65986]
["62","Jiné veřejné služby a činnosti",600,600,6.9806800000000004,593.01931999999999,1.1634466666666665,186.72800000000001]
["63","Finanční operace",27700,27699.4,20873.233680000001,6826.1663200000003,75.356266489526845,21340.690399999999]
["64","Ostatní činnosti",306.21604000000002,306.21604000000002,293.72203999999999,12.494,95.919874086282363,165.74199999999999]
["Celkem",null,590357.91,594655.54,322055.28999999998,272600.25,54.16,212505.8]

{"sheet":"energie","index":4,"n_rows":12,"n_cols":10,"rows_kept":12,"cut":false,"hidden":false,"merged":[[0,0,0,7],[1,0,1,7],[2,2,2,3],[2,4,2,7],[11,0,11,1]]}
["Plnění výdajů - energie-  k 31.08.2023 v tisících Kč"]
["Podmínka: AND POL=515*"]
["POL(4)","Popis",2022,null,2023]
[null,null,"Skutečnost k 31.12.","Skutečnost k 31. 8.","Upravený rozp.","Skutečnost","Plnění v Kč k UR","Plnění v % k UR","Index UR 23/SK22 ","SK 8_23/SK 8_22"]
["5151","Studená voda včetně stočného a úplaty za odvod deštových vod",9078.2857999999997,5358.7428,10220,5442.9689900000003,4777.0310099999997,53.258013600782775,{"$f":"E5/C5","v":1.1257631919893951},{"$f":"F5/D5","v":1.0157175279992912}]
["5152","Teplo",2720.3842199999999,1916.1842200000001,7160,3822.97289,3337.02711,53.393476117318428,{"$f":"E6/C6","v":2.6319811544855969},1.9950967397069994]
["5153","Plyn",974.15282999999999,671.12157000000002,3140,999.78183000000001,2140.2181700000001,31.840185668789811,3.2233135328467917,1.4897179210020026]
["5154","Elektrická energie",5210.5158000000001,3609.45703,10698,5566.7846600000003,5131.2153399999997,52.035751168442701,2.0531556587929356,1.5422775818444916]
["5155","Pevná paliva",36.700000000000003,0,40,0,40,0,1.0899182561307901,{"$error":"#DIV/0!"}]
["5156","Pohonné hmoty a maziva",226.26924,160.74852999999999,260,115.21745,144.78254999999999,44.314403846153844,1.1490735550267461,0.71675585462585567]
["5157","Teplá voda",600.34,405.80700000000002,1440,851.61040000000003,588.38959999999997,59.139611111111115,2.3986407702302026,2.0985601529791253]
["Celkem",null,18846.650000000001,12122.06,32958,16799.330000000002,16158.67,50.97,1.7487457983249011,1.3858477849474431]

{"sheet":"Stav Bú,TV a úvěrů","index":5,"n_rows":46,"n_cols":11,"rows_kept":46,"cut":false,"hidden":false,"merged":[[45,0,45,2],[19,0,19,2],[39,0,39,2],[34,0,34,2],[20,0,20,2],[27,0,27,2],[28,0,28,2],[42,0,42,2],[0,0,0,6],[1,0,1,6],[2,0,2,6],[3,0,3,3],[15,0,15,2]]}
["00248266 Město Humpolec                                                              "]
["Horní náměstí 300 Humpolec"]
["HLAVNÍ KNIHA ZKRÁCENÁ K 31.08.2023 V KČ"]
[]
["SU","AU","Popis","PS","MD Celkem","DAL Celkem","Zůstatek",null,null,null,"PS-zůstatek"]
["231","0123","Základní běžný účet ÚSC - vodní hospodářství",18232132.170000002,40398268.93,50195989.969999999,8434411.1300000008]
["231","0136","Základní běžný účet - bytové hospodářství",16409034.380000001,16139420.810000001,26115727.739999998,6432727.4500000002]
["231","0210","Základní běžný účet - ČS",442463.29,11490031.119999999,11480739.140000001,451755.27]
["231","0410","Základní běžný účet ÚSC 9005",2499869.1,18012930,20133027,379772.1]
["231","0510","ZBÚ - ČNB",846481.02,29799440,30641212.280000001,4708.74]
["231","0610","Základní běžný účet-příjmy",6608479.2999999998,197270454.38,203677976.94,200956.74]
["231","0611","ZBÚ - příjmy - úsekové měření",198958.64,8231.27,2414,204775.91]
["231","0630","ZBÚ - příjmy-ČSOB-spořící účet",182383054.91999999,46120482.640000001,217300000,11203537.560000001]
["231","0631","ZBÚ - příjmy-ČSOB-běžný účet",142459.78,222780000,222833953.05000001,88506.73]
["231","0810","Základní běžný účet ÚSC - výdaje",13742516.76,265514033.11000001,277123094.52999997,2133455.34]
["SU 231 Základní běžný účet ÚSC",null,null,{"$f":"SUM(D6:D13,D14:D15)","v":241505449.35999998},{"$f":"SUM(E6:E13,E14:E15)","v":847533292.25999999},{"$f":"SUM(F6:F13,F14:F15)","v":1059504134.6499999},{"$f":"SUM(G6:G13,G14:G15)","v":29534606.970000003},null,null,null,{"$f":"D16-G16","v":211970842.38999999}]
["244","0300","Termínované vklady krátkodobé - ČSOB",5000,174103656.31999999,5220910.68,168887745.63999999]
[null,null,"z toho fin. prostř. bytového hospodářství",0,15000000,0,15000000]
[null,null,"z toho fin. prostř. vodního hospodářství",0,15000000,0,15000000]
["SU 244 Termínované vklady krátkodobé",null,null,5000,174103656.31999999,5220910.68,168887745.63999999]
["Celkem běžné účty + termínovaný vklad",null,null,{"$f":"SUM(D20,D16)","v":241510449.35999998},{"$f":"SUM(E20,E16)","v":1021636948.5799999},{"$f":"SUM(F20,F16)","v":1064725045.3299998},{"$f":"SUM(G20,G16)","v":198422352.60999998}]
[]
["236","0100","Běžné účty fondů ÚSC - sociální fond",530864.31000000006,740432.09,632559.5,638736.9]
["236","0140","Fond bydlení a rozvoje infrastruktury (FBI)",5229303.03,1291857.8899999999,4500462.5,2020698.42," v 08/23 čerpáno 4500 tis. Kč dle schv.rozp.na inv.akci Chodník(lávka)ul. Lužická-podél komunikace III/34771"]
["236","0160","Fond ekologie",467459.3,0,0,467459.3]
["236","0180","Fond příspěvkových organizací",793056.92,1718793.36,0,2511850.2799999998]
["236","0190","Fond benefiční",24973,0,0,24973]
["SU 236 Běžné účty fondů ÚSC",null,null,{"$f":"SUM(D23:D27)","v":7045656.5599999996},3751083.34,5133022,5663717.8999999994,null,null,null,{"$f":"D28-G28","v":1381938.6600000001}]
["Celkem běžné účty + termínovaný vklad + FONDY",null,null,{"$f":"SUM(D28,D21)","v":248556105.91999999},{"$f":"SUM(E28,E21)","v":1025388031.92},1069858067.3299998,204086070.50999999]
[null,null,null,null,null,null,null,null,null,"Celkem 8115",{"$f":"SUM(K28,K16)","v":213352781.04999998}]
[null,null,"Úvěry","PS","splátky","přijaté","KS"]
["451","0101","Dlouhodobé úvěry-zápůjčka SFŽP- technologie ZS",-18247538.359999999,{"$f":"570235.58*2","v":1140471.1599999999},0,{"$f":"D32+E32","v":-17107067.199999999},"do 2030 0,45 % p.a. Q.spl."]
["451","0102","Dlouhodobé úvěry- ČSOB - nepřímo čerpaný- na výkup pozemků Blanická ul.",-20465260,20465260,0,0,"do 12/2024 0,08% p.a.+1M PRIBOR, 0,78% od 01/2025-2034","splaceno k 27. 3. 2023, do 12/2024 zbývá dočerpat 79,5 mil. Kč"]
["451","0201","Dlouhodobé úvěry přímo čerpané - ČS, a-s. - ZTV Blanická",-11085025.039999999,11085025.039999999,0,0,"do 09/2026 0,07% p.a.+1M PRIBOR","splaceno k 24.3.2023"]
["SU 451 Dlouhodobé úvěry",null,null,{"$f":"SUM(D32:D34)","v":-49797823.399999999},{"$f":"SUM(E32:E34)","v":32690756.199999999},0,-17107067.199999999]
[]
[null,null,null,"PS","MD Celkem","DAL Celkem","Zůstatek"]
["261","0100","Pokladna",0,11434675,11255157,179518]
["261","0111","Pokladna BHS",0,207982,203370,4612]
["SU 261 Pokladna",null,null,0,11642657,11458527,184130]
[]
[null,null,null,"PS","MD Celkem","DAL Celkem","Zůstatek"]
["SU 262 Peníze na cestě",null,null,3910,709602384.67999995,709590634.67999995,15660]
[]
[null,null,null,"PS","MD Celkem","DAL Celkem","Zůstatek"]
["SU 245 Depozitní účet - cizí prostředky",null,null,6960941.3200000003,6851906.3600000003,6623642.8799999999,7189204.7999999998]